Ref No,Fund Type,Dept,Cost Centre Description    ,Description    ,Creditor Name    ,GL Code Net Amount,Payment date        
2,Revenue,CCHD,Bed purchasing - Under 65s PWLD - North,Residential Homes,.,6847.46, 17-Apr-2012
3,Revenue,CCHD,Supported Living - KH,Private & Voluntary Home Care,3 Trees Community Support Ltd,1879.02, 16-Apr-2012
4,Revenue,CCHD,Purchase of Non-Res Care - KD,Private & Voluntary Day Care,3 Trees Community Support Ltd,1568.55, 02-Apr-2012
5,Revenue,CCHD,Purchase of Non-Res Care - KD,Private & Voluntary Day Care,3 Trees Community Support Ltd,4938.04, 16-Apr-2012
6,Revenue,CCHD,Supported Living - KH,Private & Voluntary Home Care,3 Trees Community Support Ltd,1971.6, 05-Apr-2012
7,Revenue,CCHD,Supported Living (S28a) South,Private & Voluntary Home Care,3 Trees Community Support Ltd,6085.56, 19-Apr-2012
8,Revenue,CCHD,Purchase of Non-Res Care - KD,Private & Voluntary Day Care,3 Trees Community Support Ltd,5844.64, 20-Apr-2012
9,Revenue,CCHD,Supported Living - KD,Private & Voluntary Home Care,3 Trees Community Support Ltd,2222.55, 19-Apr-2012
10,Revenue,CCHD,Supported Living - KD,Private & Voluntary Home Care,3 Trees Community Support Ltd,540.05, 20-Apr-2012
11,Revenue,CCHD,Purchase of Non-Res Care - KD,Private & Voluntary Day Care,3 Trees Community Support Ltd,2091.4, 27-Apr-2012
12,Revenue,CCHD,Home Care - Elderly - North,Other Small Contracts,3 Trees Community Support Ltd,46.56, 13-Apr-2012
13,Revenue,CCHD,Day Care - North,Private & Voluntary Day Care,3 Trees Community Support Ltd,81.48, 13-Apr-2012
14,Revenue,CCHD,Home Care - LD Under 65 - South,Private & Voluntary Home Care,3 Trees Community Support Ltd,112.52, 13-Apr-2012
15,Revenue,CCHD,PWLD Home Care - Under 65 - KH,Private & Voluntary Home Care,3 Trees Community Support Ltd,263.84, 13-Apr-2012
16,Revenue,CCHD,Home Care - Elderly - North,Other Small Contracts,3 Trees Community Support Ltd,46.56, 17-Apr-2012
17,Revenue,CCHD,Day Care - North,Private & Voluntary Day Care,3 Trees Community Support Ltd,77.6, 17-Apr-2012
18,Revenue,CCHD,Home Care - LD Under 65 - South,Private & Voluntary Home Care,3 Trees Community Support Ltd,108.64, 17-Apr-2012
19,Revenue,CCHD,PWLD Home Care - Under 65 - KH,Private & Voluntary Home Care,3 Trees Community Support Ltd,279.36, 17-Apr-2012
20,Revenue,CCHD,Purchase of Non-Res Care - KD,Private & Voluntary Day Care,3 Trees Community Support Ltd,1944.73, 27-Apr-2012
21,Revenue,CCHD,Home Care - Elderly - North,Other Small Contracts,3 Trees Community Support Ltd,47.28, 27-Apr-2012
22,Revenue,CCHD,Day Care - North,Private & Voluntary Day Care,3 Trees Community Support Ltd,78.32, 27-Apr-2012
23,Revenue,CCHD,Home Care - LD Under 65 - South,Private & Voluntary Home Care,3 Trees Community Support Ltd,110.32, 27-Apr-2012
24,Revenue,CCHD,PWLD Home Care - Under 65 - KH,Private & Voluntary Home Care,3 Trees Community Support Ltd,271.86, 27-Apr-2012
25,Revenue,CCHD,Purchase of Non-Res Care - KD,Private & Voluntary Day Care,3 Trees Community Support Ltd,1684.21, 20-Apr-2012
26,Revenue,CCHD,Purchase of Non-Res Care - KD,Private & Voluntary Day Care,3 Trees Community Support Ltd,7325.55, 19-Apr-2012
27,Revenue,CCHD,Bed Purchasing - Elderly S117- North,Residential Homes,3Rd Floor Westbury House,1709, 17-Apr-2012
28,Revenue,CCHD,Direct Payments - Phys Dis - North,Grants to Voluntary Bodies,A4E Management Limited,22857.93, 02-Apr-2012
29,Revenue,CCHD,Bed Purchasing - Elderly - North,Nursing Homes,Aabletone Nursing Home,901.74, 17-Apr-2012
30,Revenue,CCHD,Bed Purchasing - Elderly - South,Residential Homes,Ablecare Homes,666.39, 17-Apr-2012
31,Revenue,CCHD,Frenchay Hospital Purchasing,Residential Homes,Ablecare Homes,1058.4, 17-Apr-2012
32,Revenue,CCHD,Southmead Hospital Purchasing,Residential Homes,Ablecare Homes,1007.07, 17-Apr-2012
33,Revenue,CCHD,Frenchay Hospital Purchasing,Residential Homes,Ablecare Homes,924.63, 17-Apr-2012
34,Revenue,CCHD,Bed Purchasing - Elderly - South,Residential Homes,Ablecare Homes,1199.1, 17-Apr-2012
35,Revenue,CCHD,Bed Purchasing - Elderly - North,Residential Homes,Ablecare Homes,931.02, 17-Apr-2012
36,Revenue,CCHD,Frenchay Hospital Purchasing,Residential Homes,Ablecare Homes,932.07, 17-Apr-2012
37,Revenue,CCHD,Southmead Hospital Purchasing,Residential Homes,Ablecare Homes,873.87, 17-Apr-2012
38,Revenue,CCHD,Bed Purchasing - Elderly MH - South,Residential Homes,Ablecare Homes,907.41, 17-Apr-2012
39,Revenue,CCHD,Bed purchasing - Elderly MH - North,Residential Homes,Ablecare Homes,1045.68, 17-Apr-2012
40,Revenue,CCHD,Bed Purchasing - Elderly - South,Residential Homes,Ablecare Homes,960.87, 17-Apr-2012
41,Revenue,CCHD,Preventative Technology Grant,Other Supplies & Services,Action for Blind People,9000, 16-Apr-2012
42,Revenue,CCHD,Day Care - North,Private & Voluntary Day Care,Age UK South Gloucestershire,1252.16, 30-Apr-2012
43,Revenue,CCHD,Day Care - North,Private & Voluntary Day Care,Age UK South Gloucestershire,1223.64, 30-Apr-2012
44,Revenue,CCHD,Elderly MH Day Care North,Private & Voluntary Day Care,Age UK South Gloucestershire,615.68, 10-Apr-2012
45,Revenue,CCHD,Elderly MH Day Care North,Private & Voluntary Day Care,Age UK South Gloucestershire,769.6, 24-Apr-2012
46,Revenue,CCHD,Day Care - South,Private & Voluntary Day Care,Age UK South Gloucestershire,626.08, 30-Apr-2012
47,Revenue,CCHD,Day Care - South,Private & Voluntary Day Care,Age UK South Gloucestershire,1231.36, 20-Apr-2012
48,Revenue,CCHD,Day Care - South,Private & Voluntary Day Care,Age UK South Gloucestershire,1077.44, 20-Apr-2012
49,Revenue,CCHD,Day Care - South,Private & Voluntary Day Care,Age UK South Gloucestershire,1237.56, 30-Apr-2012
50,Revenue,CCHD,Home Care - Elderly - South,Other Small Contracts,Agincare Chippenham,630.8, 13-Apr-2012
51,Revenue,CCHD,Home Care - Elderly - South,Other Small Contracts,Agincare Chippenham,665, 13-Apr-2012
52,Revenue,CCHD,Home Care - Elderly - South,Other Small Contracts,Agincare Chippenham,665, 13-Apr-2012
53,Revenue,CCHD,Home Care - Elderly - South,Other Small Contracts,Agincare Chippenham,619.4, 13-Apr-2012
54,Revenue,CCHD,Home Care - Elderly - South,Other Small Contracts,Agincare Chippenham,634.6, 13-Apr-2012
55,Revenue,CCHD,Home Care - Elderly - South,Other Small Contracts,Agincare Chippenham,619.4, 23-Apr-2012
56,Revenue,CCHD,Home Care - Elderly - South,Other Small Contracts,Agincare Chippenham,625.96, 30-Apr-2012
57,Revenue,CCHD,Home Care - Elderly - South,Other Small Contracts,Agincare UK Limited,531.72, 03-Apr-2012
58,Revenue,CCHD,Home Care - Elderly - South,Other Small Contracts,Agincare UK Limited,531.72, 03-Apr-2012
59,Revenue,CCHD,Home Care - Elderly - South,Other Small Contracts,Agincare UK Limited,531.72, 10-Apr-2012
60,Revenue,CCHD,Home Care - Elderly - South,Other Small Contracts,Agincare UK Limited,1208.4, 23-Apr-2012
61,Revenue,CCHD,Home Care - Elderly - North,Other Small Contracts,Agincare UK Limited,304, 23-Apr-2012
62,Revenue,CCHD,Day Care - South,Private & Voluntary Day Care,Agincare UK Limited,205.2, 23-Apr-2012
63,Revenue,CCHD,Elderly MH Day Care North,Private & Voluntary Day Care,Agincare UK Limited,106.4, 23-Apr-2012
64,Revenue,CCHD,Home Care - Elderly - South,Other Small Contracts,Agincare UK Limited,1113.4, 13-Apr-2012
65,Revenue,CCHD,Home Care - Elderly - North,Other Small Contracts,Agincare UK Limited,300.2, 13-Apr-2012
66,Revenue,CCHD,Day Care - South,Private & Voluntary Day Care,Agincare UK Limited,205.2, 13-Apr-2012
67,Revenue,CCHD,Elderly MH Day Care North,Private & Voluntary Day Care,Agincare UK Limited,106.4, 13-Apr-2012
68,Revenue,CCHD,Home Care - Elderly - South,Other Small Contracts,Agincare UK Limited,1162.8, 17-Apr-2012
69,Revenue,CCHD,Home Care - Elderly - North,Other Small Contracts,Agincare UK Limited,387.6, 17-Apr-2012
70,Revenue,CCHD,Day Care - South,Private & Voluntary Day Care,Agincare UK Limited,254.6, 17-Apr-2012
71,Revenue,CCHD,Elderly MH Day Care North,Private & Voluntary Day Care,Agincare UK Limited,83.6, 17-Apr-2012
72,Revenue,CCHD,Home Care - Elderly - South,Other Small Contracts,Agincare UK Limited,1094.4, 10-Apr-2012
73,Revenue,CCHD,Home Care - Elderly - North,Other Small Contracts,Agincare UK Limited,288.8, 10-Apr-2012
74,Revenue,CCHD,Day Care - South,Private & Voluntary Day Care,Agincare UK Limited,250.8, 10-Apr-2012
75,Revenue,CCHD,Elderly MH Day Care North,Private & Voluntary Day Care,Agincare UK Limited,106.4, 10-Apr-2012
76,Revenue,CCHD,Home Care - Elderly - South,Other Small Contracts,Agincare UK Limited,1079.2, 10-Apr-2012
77,Revenue,CCHD,Home Care - Elderly - North,Other Small Contracts,Agincare UK Limited,296.4, 10-Apr-2012
78,Revenue,CCHD,Day Care - South,Private & Voluntary Day Care,Agincare UK Limited,212.8, 10-Apr-2012
79,Revenue,CCHD,Elderly MH Day Care North,Private & Voluntary Day Care,Agincare UK Limited,106.4, 10-Apr-2012
80,Revenue,CCHD,S117 Placements PCT,Residential Homes,Alexandra House,6782.15, 17-Apr-2012
81,Revenue,CCHD,Home Care - Elderly - North,Other Small Contracts,Allied  Healthcare Group Limited,862.89, 19-Apr-2012
82,Revenue,CCHD,Home Care - Elderly - South,Other Small Contracts,Allied Healthcare Group,762.96, 19-Apr-2012
83,Revenue,CCHD,Home Care - Elderly - North,Other Small Contracts,Allied Healthcare Group,1103.13, 19-Apr-2012
84,Revenue,CCHD,Day Care - North,Private & Voluntary Day Care,Allied Healthcare Group,22.44, 19-Apr-2012
85,Revenue,CCHD,Home Care - Elderly - South,Other Small Contracts,Allied Healthcare Group,1063.97, 03-Apr-2012
86,Revenue,CCHD,Home Care - Elderly - North,Other Small Contracts,Allied Healthcare Group,964.92, 03-Apr-2012
87,Revenue,CCHD,Day Care - North,Private & Voluntary Day Care,Allied Healthcare Group,52.36, 03-Apr-2012
88,Revenue,CCHD,Home Care - Elderly - South,Other Small Contracts,Allied Healthcare Group,863.54, 10-Apr-2012
89,Revenue,CCHD,Home Care - Elderly - North,Other Small Contracts,Allied Healthcare Group,886.38, 10-Apr-2012
90,Revenue,CCHD,Day Care - North,Private & Voluntary Day Care,Allied Healthcare Group,52.36, 10-Apr-2012
91,Revenue,CCHD,Home Care - Elderly - South,Other Small Contracts,Allied Healthcare Group,920.04, 19-Apr-2012
92,Revenue,CCHD,Home Care - Elderly - North,Other Small Contracts,Allied Healthcare Group,1372.24, 19-Apr-2012
93,Revenue,CCHD,Day Care - North,Private & Voluntary Day Care,Allied Healthcare Group,44.88, 19-Apr-2012
94,Revenue,CCHD,Home Care - Elderly - South,Other Small Contracts,Allied Healthcare Group,852.72, 19-Apr-2012
95,Revenue,CCHD,Home Care - Elderly - North,Other Small Contracts,Allied Healthcare Group,1368.5, 19-Apr-2012
96,Revenue,CCHD,Day Care - North,Private & Voluntary Day Care,Allied Healthcare Group,22.44, 19-Apr-2012
97,Revenue,CCHD,Home Care - Elderly - South,Other Small Contracts,Allied Healthcare Group,762.96, 19-Apr-2012
98,Revenue,CCHD,Home Care - Elderly - North,Other Small Contracts,Allied Healthcare Group,1349.8, 19-Apr-2012
99,Revenue,CCHD,Day Care - North,Private & Voluntary Day Care,Allied Healthcare Group,44.88, 19-Apr-2012
100,Revenue,CCHD,Home Care - Elderly - South,Other Small Contracts,Allied Healthcare Group,706.86, 27-Apr-2012
101,Revenue,CCHD,Home Care - Elderly - North,Other Small Contracts,Allied Healthcare Group,935, 27-Apr-2012
102,Revenue,CCHD,Day Care - North,Private & Voluntary Day Care,Allied Healthcare Group,22.44, 27-Apr-2012
103,Revenue,CCHD,Home Care - Elderly - South,Other Small Contracts,Allied Healthcare Group,775.28, 27-Apr-2012
104,Revenue,CCHD,Home Care - Elderly - North,Other Small Contracts,Allied Healthcare Group,1440.87, 27-Apr-2012
105,Revenue,CCHD,Day Care - North,Private & Voluntary Day Care,Allied Healthcare Group,44.88, 27-Apr-2012
106,Revenue,CCHD,Younger MH non-res purchasing,Private & Voluntary Day Care,Alzheimer`s Society Bristol,538.24, 27-Apr-2012
107,Revenue,CCHD,Elderly MH Day Care North,Private & Voluntary Day Care,Alzheimer`s Society Bristol,807.36, 27-Apr-2012
108,Revenue,CCHD,Elderly MH Day Care North,Private & Voluntary Day Care,Alzheimer`s Society Bristol,874.64, 27-Apr-2012
109,Revenue,CCHD,Elderly MH Day Care North,Private & Voluntary Day Care,Alzheimer`s Society Bristol,538.24, 27-Apr-2012
110,Revenue,CCHD,Elderly MH Day Care North,Private & Voluntary Day Care,Alzheimer`s Society Bristol,538.24, 27-Apr-2012
111,Revenue,CCHD,Elderly MH Day Care North,Private & Voluntary Day Care,Alzheimer`s Society Bristol,874.64, 27-Apr-2012
112,Revenue,CCHD,Elderly MH Day Care North,Private & Voluntary Day Care,Alzheimer`s Society Bristol,807.36, 27-Apr-2012
113,Revenue,CCHD,Elderly MH Day Care North,Private & Voluntary Day Care,Alzheimer`s Society Bristol,807.36, 27-Apr-2012
114,Revenue,CCHD,Elderly MH Day Care North,Private & Voluntary Day Care,Alzheimer`s Society Bristol,538.24, 27-Apr-2012
115,Revenue,CCHD,Elderly MH Day Care North,Private & Voluntary Day Care,Alzheimer`s Society Bristol,605.52, 27-Apr-2012
116,Revenue,CCHD,Elderly MH Day Care North,Private & Voluntary Day Care,Alzheimer`s Society Bristol,874.64, 27-Apr-2012
117,Revenue,CCHD,Elderly MH Day Care North,Private & Voluntary Day Care,Alzheimer`s Society Bristol,874.64, 27-Apr-2012
118,Revenue,CCHD,Bed Purchasing - Elderly S117- North,Private & Voluntary Day Care,Alzheimer`s Society Bristol,605.52, 27-Apr-2012
119,Revenue,CCHD,Frenchay Hospital Purchasing,Residential Homes,Anbridge Care Home,826.03, 17-Apr-2012
120,Revenue,CCHD,Tenancy Start Up Scheme,Other Supplies & Services,Another Agent Ltd,1360, 23-Apr-2012
121,Revenue,CCHD,Bed purchasing - Under 65s PWLD - North,Residential Homes,Ark Care Homes Ltd,10476.96, 17-Apr-2012
122,Revenue,CCHD,Bed and Breakfast,Bed & Breakfast,Ashley Guest Houses Ltd,1272, 19-Apr-2012
123,Revenue,CCHD,Bed and Breakfast,Bed & Breakfast,Ashley Guest Houses Ltd,1608, 19-Apr-2012
124,Revenue,CCHD,Bed Purchasing - S28A - Over 65- North,Residential Homes,Aspects &  Milestones Trust,2911.74, 17-Apr-2012
125,Revenue,CCHD,Bed Purchasing - LD S28A- Over 65- South,Residential Homes,Aspects &  Milestones Trust,957.02, 17-Apr-2012
126,Revenue,CCHD,Bed Purchasing - Elderly - South,Residential Homes,Aspects &  Milestones Trust,1393.55, 17-Apr-2012
127,Revenue,CCHD,Bed Purchasing - Under 65s PWLD - South,Residential Homes,Aspects &  Milestones Trust,12890.42, 17-Apr-2012
128,Revenue,CCHD,Bed Purchasing - Under 65s PWLD - South,Residential Homes,Aspects &  Milestones Trust,4431.9, 17-Apr-2012
129,Revenue,CCHD,Bed Purchasing - Under 65s PWLD - South,Residential Homes,Aspects &  Milestones Trust,1455.37, 17-Apr-2012
130,Revenue,CCHD,Bed Purchasing - Elderly S117- North,Residential Homes,Aspects &  Milestones Trust,994.44, 17-Apr-2012
131,Revenue,CCHD,Bed Purchasing - Elderly S117- North,Nursing Homes,Aspects &  Milestones Trust,1458.06, 17-Apr-2012
132,Revenue,CCHD,Bed purchasing - Elderly PWLD - North,Residential Homes,Aspects &  Milestones Trust,2666.16, 17-Apr-2012
133,Revenue,CCHD,Bed purchasing - Elderly PWLD - North,Residential Homes,Aspects &  Milestones Trust,876.38, 17-Apr-2012
134,Revenue,CCHD,Bed Purchasing - Under 65s PWLD - South,Residential Homes,Aspects &  Milestones Trust,3920.34, 17-Apr-2012
135,Revenue,CCHD,Bed Purchasing - Under 65s PWLD - South,Residential Homes,Aspects &  Milestones Trust,1288, 17-Apr-2012
136,Revenue,CCHD,Bed Purchasing - Under 65s PWLD - South,Residential Homes,Aspects &  Milestones Trust,4262.79, 17-Apr-2012
137,Revenue,CCHD,Bed Purchasing - Under 65s PWLD - South,Residential Homes,Aspects &  Milestones Trust,1400.27, 17-Apr-2012
138,Revenue,CCHD,Bed purchasing - Elderly PWLD - South,Nursing Homes,Aspects &  Milestones Trust,2045.04, 17-Apr-2012
139,Revenue,CCHD,Bed purchasing - Under 65s PWLD - North,Nursing Homes,Aspects &  Milestones Trust,675.86, 17-Apr-2012
140,Revenue,CCHD,Bed Purchasing - Elderly S117- North,Nursing Homes,Aspects &  Milestones Trust,1458, 17-Apr-2012
141,Revenue,CCHD,Bed purchasing - Elderly MH - North,Nursing Homes,Aspects &  Milestones Trust,1106.4, 17-Apr-2012
142,Revenue,CCHD,Bed purchasing - Elderly PWLD - South,Residential Homes,Aspects &  Milestones Trust,15219.32, 17-Apr-2012
143,Revenue,CCHD,Bed purchasing - Elderly PWLD - South,Residential Homes,Aspects &  Milestones Trust,2399.64, 17-Apr-2012
144,Revenue,CCHD,Bed purchasing - Elderly PWLD - South,Residential Homes,Aspects &  Milestones Trust,789.15, 17-Apr-2012
145,Revenue,CCHD,Bed Purchasing - Elderly S117- North,Residential Homes,Aspects &  Milestones Trust,10450.43, 17-Apr-2012
146,Revenue,CCHD,South Glos Users in South Glos Homes,Nursing Homes,Aspects &  Milestones Trust,1055.94, 17-Apr-2012
147,Revenue,CCHD,Bed purchasing - Elderly PWLD - South,Residential Homes,Aspects &  Milestones Trust,3268.35, 17-Apr-2012
148,Revenue,CCHD,Bed purchasing - Elderly PWLD - South,Residential Homes,Aspects &  Milestones Trust,1073.93, 17-Apr-2012
149,Revenue,CCHD,Bed purchasing -S28A  Under 65 - North,Nursing Homes,Aspects &  Milestones Trust,4350.54, 17-Apr-2012
150,Revenue,CCHD,Bed purchasing - S28A Under 65 - South,Nursing Homes,Aspects &  Milestones Trust,1428.08, 17-Apr-2012
151,Revenue,CCHD,Bed purchasing -S28A  Under 65 - North,Residential Homes,Aspects &  Milestones Trust,3887.97, 17-Apr-2012
152,Revenue,CCHD,Bed purchasing - S28A Under 65 - South,Residential Homes,Aspects &  Milestones Trust,1318.06, 17-Apr-2012
153,Revenue,CCHD,Under 65s PWLD - KH,Residential Homes,Aspects &  Milestones Trust,7498.12, 17-Apr-2012
154,Revenue,CCHD,Bed Purchasing - Under 65s PWLD - South,Residential Homes,Aspects &  Milestones Trust,2621.49, 17-Apr-2012
155,Revenue,CCHD,Under 65s PWLD - KH,Residential Homes,Aspects &  Milestones Trust,860.44, 17-Apr-2012
156,Revenue,CCHD,Bed purchasing - S28A Under 65 - South,Residential Homes,Aspects &  Milestones Trust,3995.85, 17-Apr-2012
157,Revenue,CCHD,Bed purchasing - S28A Under 65 - South,Residential Homes,Aspects &  Milestones Trust,1312.76, 17-Apr-2012
158,Revenue,CCHD,Bed purchasing - Elderly PWLD - South,Residential Homes,Aspects &  Milestones Trust,4291.2, 17-Apr-2012
159,Revenue,CCHD,Bed purchasing - Under 65s PWLD - North,Residential Homes,Aspects &  Milestones Trust,1409.58, 17-Apr-2012
160,Revenue,CCHD,Bed purchasing - Under 65s PWLD - North,Residential Homes,Aspects &  Milestones Trust,2882.79, 17-Apr-2012
161,Revenue,CCHD,Under 65s PWLD - KH,Residential Homes,Aspects &  Milestones Trust,945.51, 17-Apr-2012
162,Revenue,CCHD,Bed purchasing - S28A Under 65 - South,Nursing Homes,Aspects &  Milestones Trust,5682.06, 17-Apr-2012
163,Revenue,CCHD,Bed purchasing - S28A Under 65 - South,Nursing Homes,Aspects &  Milestones Trust,1865.21, 17-Apr-2012
164,Revenue,CCHD,MH Purchasing - Younger,Residential Homes,Aspects &  Milestones Trust,771.75, 17-Apr-2012
165,Revenue,CCHD,Bed purchasing - Elderly PWLD - South,Residential Homes,Aspects &  Milestones Trust,3957.24, 17-Apr-2012
166,Revenue,CCHD,Bed purchasing - Elderly PWLD - South,Residential Homes,Aspects &  Milestones Trust,1297.8, 17-Apr-2012
167,Revenue,CCHD,Elderly PWLD - KH,Residential Homes,Aspects &  Milestones Trust,2843.94, 17-Apr-2012
168,Revenue,CCHD,Bed purchasing - Elderly PWLD - South,Residential Homes,Aspects &  Milestones Trust,934.8, 17-Apr-2012
169,Revenue,CCHD,Bed purchasing - Elderly PWLD - North,Residential Homes,Aspects &  Milestones Trust,3549.39, 17-Apr-2012
170,Revenue,CCHD,Elderly PWLD - KH,Residential Homes,Aspects &  Milestones Trust,1166.06, 17-Apr-2012
171,Revenue,CCHD,Bed purchasing -S28A  Under 65 - North,Residential Homes,Aspects &  Milestones Trust,3951.51, 17-Apr-2012
172,Revenue,CCHD,Bed purchasing - S28A Under 65 - South,Residential Homes,Aspects &  Milestones Trust,1296.92, 17-Apr-2012
173,Revenue,CCHD,Bed purchasing -S28A  Under 65 - North,Residential Homes,Aspects &  Milestones Trust,4594.47, 17-Apr-2012
174,Revenue,CCHD,Bed purchasing - S28A Under 65 - South,Residential Homes,Aspects &  Milestones Trust,1509, 17-Apr-2012
175,Revenue,CCHD,Bed purchasing -S28A  Under 65 - North,Nursing Homes,Aspects &  Milestones Trust,4660.41, 17-Apr-2012
176,Revenue,CCHD,Bed purchasing - S28A Under 65 - South,Nursing Homes,Aspects &  Milestones Trust,1530.62, 17-Apr-2012
177,Revenue,CCHD,Bed Purchasing - Under 65s PWLD - South,Residential Homes,Aspects &  Milestones Trust,2774.7, 17-Apr-2012
178,Revenue,CCHD,Bed Purchasing - Under 65s PWLD - South,Residential Homes,Aspects &  Milestones Trust,912.1, 17-Apr-2012
179,Revenue,CCHD,Bed purchasing -S28A  Under 65 - North,Residential Homes,Aspects &  Milestones Trust,4594.47, 17-Apr-2012
180,Revenue,CCHD,Bed purchasing - S28A Under 65 - South,Residential Homes,Aspects &  Milestones Trust,1509, 17-Apr-2012
181,Revenue,CCHD,Bed purchasing - S28A Under 65 - South,Residential Homes,Aspects &  Milestones Trust,3642.69, 17-Apr-2012
182,Revenue,CCHD,Bed purchasing - S28A Under 65 - South,Residential Homes,Aspects &  Milestones Trust,1196.98, 17-Apr-2012
183,Revenue,CCHD,Bed Purchasing - S28A - Over 65- North,Residential Homes,Aspects &  Milestones Trust,3549.57, 17-Apr-2012
184,Revenue,CCHD,Bed Purchasing - LD S28A- Over 65- South,Residential Homes,Aspects &  Milestones Trust,1166.12, 17-Apr-2012
185,Revenue,CCHD,Bed Purchasing - LD S28A- Over 65- South,Residential Homes,Aspects &  Milestones Trust,3011.64, 17-Apr-2012
186,Revenue,CCHD,Bed Purchasing - LD S28A- Over 65- South,Residential Homes,Aspects &  Milestones Trust,989.77, 17-Apr-2012
187,Revenue,CCHD,Bed purchasing -S28A  Under 65 - North,Residential Homes,Aspects &  Milestones Trust,4594.47, 17-Apr-2012
188,Revenue,CCHD,Bed purchasing - S28A Under 65 - South,Residential Homes,Aspects &  Milestones Trust,1509, 17-Apr-2012
189,Revenue,CCHD,Bed Purchasing - S28A - Over 65- North,Residential Homes,Aspects &  Milestones Trust,3179.4, 17-Apr-2012
190,Revenue,CCHD,Bed Purchasing - LD S28A- Over 65- South,Residential Homes,Aspects &  Milestones Trust,1044.77, 17-Apr-2012
191,Revenue,CCHD,Bed purchasing -S28A  Under 65 - North,Residential Homes,Aspects &  Milestones Trust,4594.47, 17-Apr-2012
192,Revenue,CCHD,Bed purchasing - S28A Under 65 - South,Residential Homes,Aspects &  Milestones Trust,1509, 17-Apr-2012
193,Revenue,CCHD,Bed Purchasing - LD S28A- Over 65- South,Residential Homes,Aspects &  Milestones Trust,2929.08, 17-Apr-2012
194,Revenue,CCHD,Bed Purchasing - LD S28A- Over 65- South,Residential Homes,Aspects &  Milestones Trust,963.73, 17-Apr-2012
195,Revenue,CCHD,Bed purchasing - S28A Under 65 - South,Residential Homes,Aspects &  Milestones Trust,3789.15, 17-Apr-2012
196,Revenue,CCHD,Bed purchasing - S28A Under 65 - South,Residential Homes,Aspects &  Milestones Trust,1245, 17-Apr-2012
197,Revenue,CCHD,Bed purchasing - S28A Under 65 - South,Residential Homes,Aspects &  Milestones Trust,4969.71, 17-Apr-2012
198,Revenue,CCHD,Bed purchasing - S28A Under 65 - South,Residential Homes,Aspects &  Milestones Trust,1632.01, 17-Apr-2012
199,Revenue,CCHD,Bed purchasing - S28A Under 65 - South,Residential Homes,Aspects &  Milestones Trust,3035.85, 17-Apr-2012
200,Revenue,CCHD,Bed purchasing - S28A Under 65 - South,Residential Homes,Aspects &  Milestones Trust,998.04, 17-Apr-2012
201,Revenue,CCHD,Bed Purchasing - LD S28A- Over 65- South,Residential Homes,Aspects &  Milestones Trust,4368.21, 17-Apr-2012
202,Revenue,CCHD,Bed Purchasing - LD S28A- Over 65- South,Residential Homes,Aspects &  Milestones Trust,1434.49, 17-Apr-2012
203,Revenue,CCHD,Bed Purchasing - S28A - Over 65- North,Residential Homes,Aspects &  Milestones Trust,2548.29, 17-Apr-2012
204,Revenue,CCHD,Bed Purchasing - LD S28A- Over 65- South,Residential Homes,Aspects &  Milestones Trust,837.88, 17-Apr-2012
205,Revenue,CCHD,Bed Purchasing - LD S28A- Over 65- South,Residential Homes,Aspects &  Milestones Trust,3570.39, 17-Apr-2012
206,Revenue,CCHD,Bed Purchasing - LD S28A- Over 65- South,Residential Homes,Aspects &  Milestones Trust,1172.95, 17-Apr-2012
207,Revenue,CCHD,Bed Purchasing - LD S28A- Over 65- South,Residential Homes,Aspects &  Milestones Trust,3681.15, 17-Apr-2012
208,Revenue,CCHD,Bed Purchasing - LD S28A- Over 65- South,Residential Homes,Aspects &  Milestones Trust,1209.26, 17-Apr-2012
209,Revenue,CCHD,Bed Purchasing - LD S28A- Over 65- South,Residential Homes,Aspects &  Milestones Trust,3466.95, 17-Apr-2012
210,Revenue,CCHD,Bed Purchasing - LD S28A- Over 65- South,Residential Homes,Aspects &  Milestones Trust,1139.04, 17-Apr-2012
211,Revenue,CCHD,Bed Purchasing - LD S28A- Over 65- South,Residential Homes,Aspects &  Milestones Trust,3128.46, 17-Apr-2012
212,Revenue,CCHD,Bed Purchasing - LD S28A- Over 65- South,Residential Homes,Aspects &  Milestones Trust,1028.07, 17-Apr-2012
213,Revenue,CCHD,Bed purchasing -S28A  Under 65 - North,Residential Homes,Aspects &  Milestones Trust,5482.14, 17-Apr-2012
214,Revenue,CCHD,Bed purchasing - S28A Under 65 - South,Residential Homes,Aspects &  Milestones Trust,1800, 17-Apr-2012
215,Revenue,CCHD,Bed purchasing -S28A  Under 65 - North,Nursing Homes,Aspects &  Milestones Trust,4722.33, 17-Apr-2012
216,Revenue,CCHD,Bed purchasing - S28A Under 65 - South,Nursing Homes,Aspects &  Milestones Trust,1550.92, 17-Apr-2012
217,Revenue,CCHD,Bed Purchasing - LD S28A- Over 65- South,Residential Homes,Aspects &  Milestones Trust,2619.69, 17-Apr-2012
218,Revenue,CCHD,Bed Purchasing - LD S28A- Over 65- South,Residential Homes,Aspects &  Milestones Trust,861.28, 17-Apr-2012
219,Revenue,CCHD,Bed Purchasing - LD S28A- Over 65- South,Residential Homes,Aspects &  Milestones Trust,2438.61, 17-Apr-2012
220,Revenue,CCHD,Bed Purchasing - LD S28A- Over 65- South,Residential Homes,Aspects &  Milestones Trust,801.92, 17-Apr-2012
221,Revenue,CCHD,Bed Purchasing - S28A - Over 65- North,Residential Homes,Aspects &  Milestones Trust,2481.54, 17-Apr-2012
222,Revenue,CCHD,Bed Purchasing - LD S28A- Over 65- South,Residential Homes,Aspects &  Milestones Trust,815.99, 17-Apr-2012
223,Revenue,CCHD,Bed Purchasing - LD S28A- Over 65- South,Residential Homes,Aspects &  Milestones Trust,3540.33, 17-Apr-2012
224,Revenue,CCHD,Bed Purchasing - LD S28A- Over 65- South,Residential Homes,Aspects &  Milestones Trust,1163.09, 17-Apr-2012
225,Revenue,CCHD,Section 117 Placements MH Younger,Residential Homes,Aspects &  Milestones Trust,1319, 17-Apr-2012
226,Revenue,CCHD,Bed purchasing - Elderly MH - North,Residential Homes,Aspects &  Milestones Trust,650.46, 17-Apr-2012
227,Revenue,CCHD,Bed purchasing - S28A Under 65 - South,Residential Homes,Aspects &  Milestones Trust,3593.22, 17-Apr-2012
228,Revenue,CCHD,Bed purchasing - S28A Under 65 - South,Residential Homes,Aspects &  Milestones Trust,1180.76, 17-Apr-2012
229,Revenue,CCHD,Bed purchasing - Elderly PWLD - North,Residential Homes,Aspects &  Milestones Trust,2068.89, 17-Apr-2012
230,Revenue,CCHD,Bed purchasing - Elderly PWLD - North,Residential Homes,Aspects &  Milestones Trust,680.72, 17-Apr-2012
231,Revenue,CCHD,Bed purchasing - Elderly PWLD - North,Residential Homes,Aspects &  Milestones Trust,4068.03, 17-Apr-2012
232,Revenue,CCHD,Elderly PWLD - KH,Residential Homes,Aspects &  Milestones Trust,1336.09, 17-Apr-2012
233,Revenue,CCHD,Bed purchasing - Under 65s PWLD - North,Residential Homes,Aspects &  Milestones Trust,4133.34, 17-Apr-2012
234,Revenue,CCHD,Bed purchasing - Under 65s PWLD - North,Residential Homes,Aspects &  Milestones Trust,1355.02, 17-Apr-2012
235,Revenue,CCHD,Bed purchasing - Elderly PWLD - North,Residential Homes,Aspects &  Milestones Trust,3180.57, 17-Apr-2012
236,Revenue,CCHD,Bed purchasing - Elderly PWLD - North,Residential Homes,Aspects &  Milestones Trust,1045.15, 17-Apr-2012
237,Revenue,CCHD,Bed purchasing - Elderly MH - North,Nursing Homes,Aspects &  Milestones Trust,6668.12, 17-Apr-2012
238,Revenue,CCHD,Bed purchasing - Elderly MH - North,Nursing Homes,Aspects &  Milestones Trust,1497.44, 17-Apr-2012
239,Revenue,CCHD,Bed purchasing - Elderly MH - North,Nursing Homes,Aspects &  Milestones Trust,822.51, 17-Apr-2012
240,Revenue,CCHD,Bed Purchasing - Under 65s PWLD - South,Residential Homes,Aspects &  Milestones Trust,2887.05, 17-Apr-2012
241,Revenue,CCHD,Bed Purchasing - Under 65s PWLD - South,Residential Homes,Aspects &  Milestones Trust,949.26, 17-Apr-2012
242,Revenue,CCHD,Bed purchasing -S28A  Under 65 - North,Residential Homes,Aspects &  Milestones Trust,4328.7, 17-Apr-2012
243,Revenue,CCHD,Bed purchasing - S28A Under 65 - South,Residential Homes,Aspects &  Milestones Trust,1421.87, 17-Apr-2012
244,Revenue,CCHD,Bed Purchasing - S28A - Over 65- North,Residential Homes,Aspects &  Milestones Trust,2453.61, 17-Apr-2012
245,Revenue,CCHD,Bed Purchasing - LD S28A- Over 65- South,Residential Homes,Aspects &  Milestones Trust,806.84, 17-Apr-2012
246,Revenue,CCHD,Section 117 Placements MH Younger,Residential Homes,Aspects &  Milestones Trust,1287, 17-Apr-2012
247,Revenue,CCHD,MH Purchasing - Younger,Residential Homes,Aspects &  Milestones Trust,759.45, 17-Apr-2012
248,Revenue,CCHD,Bed Purchasing - S28A - Over 65- North,Residential Homes,Aspects &  Milestones Trust,2633.46, 17-Apr-2012
249,Revenue,CCHD,Bed Purchasing - LD S28A- Over 65- South,Residential Homes,Aspects &  Milestones Trust,865.8, 17-Apr-2012
250,Revenue,CCHD,Bed purchasing - S28A Under 65 - South,Residential Homes,Aspects &  Milestones Trust,2672.94, 17-Apr-2012
251,Revenue,CCHD,Bed purchasing - S28A Under 65 - South,Residential Homes,Aspects &  Milestones Trust,878.74, 17-Apr-2012
252,Revenue,CCHD,Bed purchasing - S28A Under 65 - South,Residential Homes,Aspects &  Milestones Trust,3789.15, 17-Apr-2012
253,Revenue,CCHD,Bed purchasing - S28A Under 65 - South,Residential Homes,Aspects &  Milestones Trust,1245, 17-Apr-2012
254,Revenue,CCHD,Bed purchasing - S28A Under 65 - South,Residential Homes,Aspects &  Milestones Trust,4518.48, 17-Apr-2012
255,Revenue,CCHD,Bed purchasing - S28A Under 65 - South,Residential Homes,Aspects &  Milestones Trust,1484.09, 17-Apr-2012
256,Revenue,CCHD,Bed Purchasing - LD S28A- Over 65- South,Residential Homes,Aspects &  Milestones Trust,4423.62, 17-Apr-2012
257,Revenue,CCHD,Bed Purchasing - LD S28A- Over 65- South,Residential Homes,Aspects &  Milestones Trust,1452.66, 17-Apr-2012
258,Revenue,CCHD,Bed Purchasing - LD S28A- Over 65- South,Residential Homes,Aspects &  Milestones Trust,3123.72, 17-Apr-2012
259,Revenue,CCHD,Bed Purchasing - LD S28A- Over 65- South,Residential Homes,Aspects &  Milestones Trust,1026.52, 17-Apr-2012
260,Revenue,CCHD,Bed Purchasing - LD S28A- Over 65- South,Residential Homes,Aspects &  Milestones Trust,3540.33, 17-Apr-2012
261,Revenue,CCHD,Bed Purchasing - LD S28A- Over 65- South,Residential Homes,Aspects &  Milestones Trust,1163.09, 17-Apr-2012
262,Revenue,CCHD,Bed Purchasing - S28A - Over 65- North,Residential Homes,Aspects &  Milestones Trust,3571.98, 17-Apr-2012
263,Revenue,CCHD,Bed Purchasing - LD S28A- Over 65- South,Residential Homes,Aspects &  Milestones Trust,1173.47, 17-Apr-2012
264,Revenue,CCHD,Bed Purchasing - LD S28A- Over 65- South,Residential Homes,Aspects &  Milestones Trust,4205.7, 17-Apr-2012
265,Revenue,CCHD,Bed Purchasing - LD S28A- Over 65- South,Residential Homes,Aspects &  Milestones Trust,1381.22, 17-Apr-2012
266,Revenue,CCHD,Bed purchasing - S28A Under 65 - South,Residential Homes,Aspects &  Milestones Trust,5803.74, 17-Apr-2012
267,Revenue,CCHD,Bed purchasing - S28A Under 65 - South,Residential Homes,Aspects &  Milestones Trust,1905.43, 17-Apr-2012
268,Revenue,CCHD,Bed Purchasing - LD S28A- Over 65- South,Residential Homes,Aspects &  Milestones Trust,3676.74, 17-Apr-2012
269,Revenue,CCHD,Bed Purchasing - LD S28A- Over 65- South,Residential Homes,Aspects &  Milestones Trust,1207.81, 17-Apr-2012
270,Revenue,CCHD,Bed purchasing -S28A  Under 65 - North,Residential Homes,Aspects &  Milestones Trust,3557.94, 17-Apr-2012
271,Revenue,CCHD,Bed purchasing - S28A Under 65 - South,Residential Homes,Aspects &  Milestones Trust,1168.87, 17-Apr-2012
272,Revenue,CCHD,Bed Purchasing - S28A - Over 65- North,Residential Homes,Aspects &  Milestones Trust,3664.05, 17-Apr-2012
273,Revenue,CCHD,Bed Purchasing - LD S28A- Over 65- South,Residential Homes,Aspects &  Milestones Trust,1203.65, 17-Apr-2012
274,Revenue,CCHD,Bed Purchasing - S28A - Over 65- North,Residential Homes,Aspects &  Milestones Trust,4105.23, 17-Apr-2012
275,Revenue,CCHD,Bed Purchasing - LD S28A- Over 65- South,Residential Homes,Aspects &  Milestones Trust,1348.28, 17-Apr-2012
276,Revenue,CCHD,Bed purchasing - S28A Under 65 - South,Residential Homes,Aspects &  Milestones Trust,3458.58, 17-Apr-2012
277,Revenue,CCHD,Bed purchasing - S28A Under 65 - South,Residential Homes,Aspects &  Milestones Trust,1136.63, 17-Apr-2012
278,Revenue,CCHD,Bed Purchasing - S28A - Over 65- North,Residential Homes,Aspects &  Milestones Trust,3664.05, 17-Apr-2012
279,Revenue,CCHD,Bed Purchasing - LD S28A- Over 65- South,Residential Homes,Aspects &  Milestones Trust,1203.65, 17-Apr-2012
280,Revenue,CCHD,Bed Purchasing - S28A - Over 65- North,Residential Homes,Aspects &  Milestones Trust,3957.96, 17-Apr-2012
281,Revenue,CCHD,Bed Purchasing - LD S28A- Over 65- South,Residential Homes,Aspects &  Milestones Trust,1300, 17-Apr-2012
282,Revenue,CCHD,Bed Purchasing - LD S28A- Over 65- South,Residential Homes,Aspects &  Milestones Trust,3681.15, 17-Apr-2012
283,Revenue,CCHD,Bed Purchasing - LD S28A- Over 65- South,Residential Homes,Aspects &  Milestones Trust,1209.26, 17-Apr-2012
284,Revenue,CCHD,Bed purchasing - S28A Under 65 - South,Residential Homes,Aspects &  Milestones Trust,3550.8, 17-Apr-2012
285,Revenue,CCHD,Bed purchasing - S28A Under 65 - South,Residential Homes,Aspects &  Milestones Trust,1166.86, 17-Apr-2012
286,Revenue,CCHD,Bed purchasing -S28A  Under 65 - North,Residential Homes,Aspects &  Milestones Trust,4594.47, 17-Apr-2012
287,Revenue,CCHD,Bed purchasing - S28A Under 65 - South,Residential Homes,Aspects &  Milestones Trust,1509, 17-Apr-2012
288,Revenue,CCHD,Bed Purchasing - S28A - Over 65- North,Residential Homes,Aspects &  Milestones Trust,4216.26, 17-Apr-2012
289,Revenue,CCHD,Bed Purchasing - LD S28A- Over 65- South,Residential Homes,Aspects &  Milestones Trust,1384.68, 17-Apr-2012
290,Revenue,CCHD,Bed purchasing -S28A  Under 65 - North,Residential Homes,Aspects &  Milestones Trust,2601.63, 17-Apr-2012
291,Revenue,CCHD,Bed purchasing - S28A Under 65 - South,Residential Homes,Aspects &  Milestones Trust,855.7, 17-Apr-2012
292,Revenue,CCHD,Bed Purchasing - S28A - Over 65- North,Residential Homes,Aspects &  Milestones Trust,2456.37, 17-Apr-2012
293,Revenue,CCHD,Bed Purchasing - LD S28A- Over 65- South,Residential Homes,Aspects &  Milestones Trust,807.74, 17-Apr-2012
294,Revenue,CCHD,Bed Purchasing - S28A - Over 65- North,Residential Homes,Aspects &  Milestones Trust,2559.66, 17-Apr-2012
295,Revenue,CCHD,Bed Purchasing - LD S28A- Over 65- South,Residential Homes,Aspects &  Milestones Trust,841.6, 17-Apr-2012
296,Revenue,CCHD,Bed Purchasing - LD S28A- Over 65- South,Residential Homes,Aspects &  Milestones Trust,2403.15, 17-Apr-2012
297,Revenue,CCHD,Bed Purchasing - LD S28A- Over 65- South,Residential Homes,Aspects &  Milestones Trust,790.3, 17-Apr-2012
298,Revenue,CCHD,Bed Purchasing - Under 65s PWLD - South,Residential Homes,Aspects &  Milestones Trust,5322.96, 17-Apr-2012
299,Revenue,CCHD,Under 65s PWLD - KH,Residential Homes,Aspects &  Milestones Trust,1761.87, 17-Apr-2012
300,Revenue,CCHD,Bed purchasing - Elderly S117 - South,Residential Homes,Aspects &  Milestones Trust,1458.87, 17-Apr-2012
301,Revenue,CCHD,Bed purchasing - Elderly MH - North,Nursing Homes,Aspects &  Milestones Trust,1002.9, 17-Apr-2012
302,Revenue,CCHD,Bed purchasing - Under 65s PWLD - North,Residential Homes,Aspects &  Milestones Trust,7697.85, 17-Apr-2012
303,Revenue,CCHD,Bed purchasing - Under 65s PWLD - North,Residential Homes,Aspects &  Milestones Trust,1509, 17-Apr-2012
304,Revenue,CCHD,MH Purchasing - Younger,Nursing Homes,Aspects &  Milestones Trust,690.42, 17-Apr-2012
305,Revenue,CCHD,South Glos Users in South Glos Homes,Nursing Homes,Aspects &  Milestones Trust,2484.57, 17-Apr-2012
306,Revenue,CCHD,MH Purchasing - Younger,Nursing Homes,Aspects &  Milestones Trust,840.75, 17-Apr-2012
307,Revenue,CCHD,MH Purchasing - Younger,Residential Homes,Aspects &  Milestones Trust,759.45, 17-Apr-2012
308,Revenue,CCHD,South Glos Users in South Glos Homes,Nursing Homes,Aspects &  Milestones Trust,605.61, 17-Apr-2012
309,Revenue,CCHD,Elderly PWLD - KH,Residential Homes,Aspects &  Milestones Trust,2549.82, 17-Apr-2012
310,Revenue,CCHD,Bed purchasing - Elderly PWLD - South,Residential Homes,Aspects &  Milestones Trust,838.38, 17-Apr-2012
311,Revenue,CCHD,Section 117 Placements MH Younger,Nursing Homes,Aspects &  Milestones Trust,1061.55, 17-Apr-2012
312,Revenue,CCHD,Bed Purchasing - LD S28A- Over 65- South,Residential Homes,Aspects &  Milestones Trust,40176.79, 17-Apr-2012
313,Revenue,CCHD,Bed Purchasing - LD S28A- Over 65- South,Residential Homes,Aspects &  Milestones Trust,1765.25, 17-Apr-2012
314,Revenue,CCHD,Bed purchasing - S28A Under 65 - South,Residential Homes,Aspects &  Milestones Trust,3650.04, 17-Apr-2012
315,Revenue,CCHD,Bed purchasing - S28A Under 65 - South,Residential Homes,Aspects &  Milestones Trust,1199.06, 17-Apr-2012
316,Revenue,CCHD,Bed Purchasing - LD S28A- Over 65- South,Residential Homes,Aspects &  Milestones Trust,3471.51, 17-Apr-2012
317,Revenue,CCHD,Bed Purchasing - LD S28A- Over 65- South,Residential Homes,Aspects &  Milestones Trust,1140.53, 17-Apr-2012
318,Revenue,CCHD,Bed Purchasing - Under 65s PWLD - South,Residential Homes,Aspects &  Milestones Trust,3129.81, 17-Apr-2012
319,Revenue,CCHD,Under 65s PWLD - KH,Residential Homes,Aspects &  Milestones Trust,1028.85, 17-Apr-2012
320,Revenue,CCHD,Bed Purchasing - S28A - Over 65- North,Residential Homes,Aspects &  Milestones Trust,3071.79, 17-Apr-2012
321,Revenue,CCHD,Bed Purchasing - LD S28A- Over 65- South,Residential Homes,Aspects &  Milestones Trust,1009.49, 17-Apr-2012
322,Revenue,CCHD,Bed Purchasing - LD S28A- Over 65- South,Residential Homes,Aspects &  Milestones Trust,2851.47, 17-Apr-2012
323,Revenue,CCHD,Bed Purchasing - LD S28A- Over 65- South,Residential Homes,Aspects &  Milestones Trust,937.22, 17-Apr-2012
324,Revenue,CCHD,Bed Purchasing - LD S28A- Over 65- South,Residential Homes,Aspects &  Milestones Trust,4423.62, 17-Apr-2012
325,Revenue,CCHD,Bed Purchasing - LD S28A- Over 65- South,Residential Homes,Aspects &  Milestones Trust,1452.66, 17-Apr-2012
326,Revenue,CCHD,Bed Purchasing - S28A - Over 65- North,Residential Homes,Aspects &  Milestones Trust,3354.96, 17-Apr-2012
327,Revenue,CCHD,Bed Purchasing - LD S28A- Over 65- South,Residential Homes,Aspects &  Milestones Trust,1102.32, 17-Apr-2012
328,Revenue,CCHD,Bed Purchasing - LD S28A- Over 65- South,Residential Homes,Aspects &  Milestones Trust,2979.81, 17-Apr-2012
329,Revenue,CCHD,Bed Purchasing - LD S28A- Over 65- South,Residential Homes,Aspects &  Milestones Trust,979.34, 17-Apr-2012
330,Revenue,CCHD,Bed Purchasing - LD S28A- Over 65- South,Residential Homes,Aspects &  Milestones Trust,3305.1, 17-Apr-2012
331,Revenue,CCHD,Bed Purchasing - LD S28A- Over 65- South,Residential Homes,Aspects &  Milestones Trust,1085.98, 17-Apr-2012
332,Revenue,CCHD,Bed Purchasing - LD S28A- Over 65- South,Residential Homes,Aspects &  Milestones Trust,3866.91, 17-Apr-2012
333,Revenue,CCHD,Bed Purchasing - LD S28A- Over 65- South,Residential Homes,Aspects &  Milestones Trust,1270.15, 17-Apr-2012
334,Revenue,CCHD,Bed Purchasing - Elderly S117- North,Nursing Homes,Aspects &  Milestones Trust,3079.76, 17-Apr-2012
335,Revenue,CCHD,Bed Purchasing - Elderly S117- North,Residential Homes,Aspects &  Milestones Trust,878.64, 17-Apr-2012
336,Revenue,CCHD,Bed Purchasing - Elderly S117- North,Nursing Homes,Aspects &  Milestones Trust,878.64, 17-Apr-2012
337,Revenue,CCHD,Bed Purchasing - Elderly MH - South,Residential Homes,Aspects &  Milestones Trust,904.92, 17-Apr-2012
338,Revenue,CCHD,Bed purchasing - S28A Under 65 - South,Residential Homes,Aspects &  Milestones Trust,17823.43, 17-Apr-2012
339,Revenue,CCHD,Bed Purchasing - S28A - Over 65- North,Residential Homes,Aspects &  Milestones Trust,3571.98, 17-Apr-2012
340,Revenue,CCHD,Bed Purchasing - LD S28A- Over 65- South,Residential Homes,Aspects &  Milestones Trust,1173.47, 17-Apr-2012
341,Revenue,CCHD,Bed purchasing - Elderly MH - North,Nursing Homes,Aspects &  Milestones Trust,1736, 17-Apr-2012
342,Revenue,CCHD,Bed Purchasing - Elderly S117- North,Nursing Homes,Aspects &  Milestones Trust,1458, 17-Apr-2012
343,Revenue,CCHD,Bed Purchasing - Elderly S117- North,Nursing Homes,Aspects &  Milestones Trust,1458, 17-Apr-2012
344,Revenue,CCHD,Bed Purchasing - Elderly S117- North,Residential Homes,Aspects &  Milestones Trust,1319, 17-Apr-2012
345,Revenue,CCHD,Bed purchasing - Under 65s PWLD - North,Residential Homes,Aspects & Milestones Trust,8808.39, 17-Apr-2012
346,Revenue,CCHD,Supporting People Programme,Grants to Voluntary Bodies,Aspects and Milestones Trust,596.47, 18-Apr-2012
347,Revenue,CCHD,Supporting People Programme,Grants to Voluntary Bodies,Aspects and Milestones Trust,609.64, 18-Apr-2012
348,Revenue,CCHD,Supporting People Programme,Grants to Voluntary Bodies,Aspects and Milestones Trust,4049.15, 18-Apr-2012
349,Revenue,CCHD,Bed Purchasing - Under 65s PWLD - South,Residential Homes,Autism Specialised Care Homes,4136.28, 17-Apr-2012
350,Revenue,CCHD,Under 65s PWLD - KH,Residential Homes,Autism Specialised Care Homes,1356.44, 17-Apr-2012
351,Revenue,CCHD,Purchase of Non-Res Care - KD,Private & Voluntary Day Care,Avon Autistic Foundation Limited,3290.64, 02-Apr-2012
352,Revenue,CCHD,Purchase of Non-Res Care - KD,Private & Voluntary Day Care,Avon Autistic Foundation Limited,2242.08, 02-Apr-2012
353,Revenue,CCHD,Purchase of Non-Res Care - KD,Private & Voluntary Day Care,Avon Autistic Foundation Limited,3290.64, 19-Apr-2012
354,Revenue,CCHD,Purchase of Non-Res Care - KD,Private & Voluntary Day Care,Avon Autistic Foundation Limited,2242.08, 19-Apr-2012
355,Revenue,CCHD,Purchase of RAC places,Other L.A.'s - General,Bath & North East Somerset Dist Council,4020.2, 10-Apr-2012
356,Revenue,CCHD,Purchase of RAC places,Other L.A.'s - General,Bath & North East Somerset Dist Council,21022.34, 10-Apr-2012
357,Revenue,CCHD,Purchase of RAC places,Other L.A.'s - General,Bath & North East Somerset Dist Council,9744.83, 19-Apr-2012
358,Revenue,CCHD,Purchase of RAC places,Other L.A.'s - General,Bath & North East Somerset Dist Council,1902.4, 25-Apr-2012
359,Revenue,CCHD,Bed purchasing - Elderly MH - North,Residential Homes,Beaufort House,1063.77, 17-Apr-2012
360,Revenue,CCHD,Bed Purchasing - Elderly - South,Residential Homes,Beaufort House,1051.71, 17-Apr-2012
361,Revenue,CCHD,Southmead Hospital Purchasing,Residential Homes,Beaufort House,1243.86, 17-Apr-2012
362,Revenue,CCHD,Frenchay Hospital Purchasing,Residential Homes,Beaufort House,957.18, 17-Apr-2012
363,Revenue,CCHD,Bed purchasing - Elderly MH - North,Residential Homes,Beaufort House,977.97, 17-Apr-2012
364,Revenue,CCHD,Bed purchasing - Elderly MH - North,Residential Homes,Beaufort House,1005.09, 17-Apr-2012
365,Revenue,CCHD,Bed Purchasing - Elderly - North,Residential Homes,Beaufort House,1273.05, 17-Apr-2012
366,Revenue,CCHD,Bed purchasing - Elderly MH - North,Residential Homes,Beaufort House,758.49, 17-Apr-2012
367,Revenue,CCHD,Bed purchasing - Elderly MH - North,Residential Homes,Beaufort House,1254.51, 17-Apr-2012
368,Revenue,CCHD,Bed purchasing - Elderly PWLD - South,Residential Homes,Bedrock Lodge,2143.95, 17-Apr-2012
369,Revenue,CCHD,Elderly PWLD - KH,Residential Homes,Bedrock Lodge,705.32, 17-Apr-2012
370,Revenue,CCHD,Section 117 Placements MH Younger,Residential Homes,Bedrock Lodge,1365.15, 17-Apr-2012
371,Revenue,CCHD,South Glos Users in South Glos Homes,Nursing Homes,Beech House,1614.97, 17-Apr-2012
372,Revenue,CCHD,Frenchay Hospital Purchasing,Nursing Homes,Beech House,1192.02, 17-Apr-2012
373,Revenue,CCHD,South Glos Users in South Glos Homes,Nursing Homes,Beech House,1133.59, 17-Apr-2012
374,Revenue,CCHD,Bed Purchasing - Elderly - North,Nursing Homes,Beech House,1461.72, 17-Apr-2012
375,Revenue,CCHD,Southmead Hospital Purchasing,Nursing Homes,Beech House,1190.79, 17-Apr-2012
376,Revenue,CCHD,Bed Purchasing - Elderly - North,Nursing Homes,Beech House,888.9, 17-Apr-2012
377,Revenue,CCHD,Bed purchasing - Elderly MH - North,Nursing Homes,Blossom Field,1043.37, 17-Apr-2012
378,Revenue,CCHD,Bed Purchasing - Elderly - South,Nursing Homes,Blossom Fields,2920, 17-Apr-2012
379,Revenue,CCHD,Bed Purchasing - Elderly - North,Nursing Homes,Blossom Fields,6035.56, 17-Apr-2012
380,Revenue,CCHD,South Glos Users in South Glos Homes,Nursing Homes,Blossom Fields,1692.61, 17-Apr-2012
381,Revenue,CCHD,Bed purchasing - Elderly MH - North,Nursing Homes,Blossom Fields,1545.52, 17-Apr-2012
382,Revenue,CCHD,Frenchay Hospital Purchasing,Nursing Homes,Bradbury House,1362.65, 17-Apr-2012
383,Revenue,CCHD,Bed Purchasing - Elderly - North,Residential Homes,Bradley House,1236.65, 17-Apr-2012
384,Revenue,CCHD,Home Care - Elderly - South,Other Small Contracts,Bradley House Home Care Services,159.9, 13-Apr-2012
385,Revenue,CCHD,Home Care - Elderly - North,Other Small Contracts,Bradley House Home Care Services,1480.1, 13-Apr-2012
386,Revenue,CCHD,Day Care - South,Private & Voluntary Day Care,Bradley House Home Care Services,49.2, 13-Apr-2012
387,Revenue,CCHD,Day Care - North,Private & Voluntary Day Care,Bradley House Home Care Services,123, 13-Apr-2012
388,Revenue,CCHD,Younger MH non-res purchasing,Private & Voluntary Day Care,Bradley House Home Care Services,57.4, 13-Apr-2012
389,Revenue,CCHD,Home Care - Elderly - South,Other Small Contracts,Bradley House Home Care Services,159.9, 17-Apr-2012
390,Revenue,CCHD,Home Care - Elderly - North,Other Small Contracts,Bradley House Home Care Services,1430.9, 17-Apr-2012
391,Revenue,CCHD,Day Care - South,Private & Voluntary Day Care,Bradley House Home Care Services,41, 17-Apr-2012
392,Revenue,CCHD,Day Care - North,Private & Voluntary Day Care,Bradley House Home Care Services,127.1, 17-Apr-2012
393,Revenue,CCHD,Younger MH non-res purchasing,Private & Voluntary Day Care,Bradley House Home Care Services,57.4, 17-Apr-2012
394,Revenue,CCHD,Home Care - Elderly - South,Other Small Contracts,Bradley House Home Care Services,147.6, 23-Apr-2012
395,Revenue,CCHD,Home Care - Elderly - North,Other Small Contracts,Bradley House Home Care Services,1459.6, 23-Apr-2012
396,Revenue,CCHD,Day Care - South,Private & Voluntary Day Care,Bradley House Home Care Services,49.2, 23-Apr-2012
397,Revenue,CCHD,Day Care - North,Private & Voluntary Day Care,Bradley House Home Care Services,131.2, 23-Apr-2012
398,Revenue,CCHD,Younger MH non-res purchasing,Private & Voluntary Day Care,Bradley House Home Care Services,61.5, 23-Apr-2012
399,Revenue,CCHD,Home Care - Elderly - South,Other Small Contracts,Bradley House Home Care Services,145.95, 30-Apr-2012
400,Revenue,CCHD,Home Care - Elderly - North,Other Small Contracts,Bradley House Home Care Services,1501.87, 30-Apr-2012
401,Revenue,CCHD,Day Care - South,Private & Voluntary Day Care,Bradley House Home Care Services,50.04, 30-Apr-2012
402,Revenue,CCHD,Day Care - North,Private & Voluntary Day Care,Bradley House Home Care Services,128.46, 30-Apr-2012
403,Revenue,CCHD,Home Care - Elderly - South,Other Small Contracts,Bradley House Home Care Services,151.7, 10-Apr-2012
404,Revenue,CCHD,Home Care - Elderly - North,Other Small Contracts,Bradley House Home Care Services,1402.2, 10-Apr-2012
405,Revenue,CCHD,Day Care - South,Private & Voluntary Day Care,Bradley House Home Care Services,49.2, 10-Apr-2012
406,Revenue,CCHD,Day Care - North,Private & Voluntary Day Care,Bradley House Home Care Services,123, 10-Apr-2012
407,Revenue,CCHD,Younger MH non-res purchasing,Private & Voluntary Day Care,Bradley House Home Care Services,57.4, 10-Apr-2012
408,Revenue,CCHD,Home Care - Elderly - South,Other Small Contracts,Bradley House Home Care Services,151.7, 10-Apr-2012
409,Revenue,CCHD,Home Care - Elderly - North,Other Small Contracts,Bradley House Home Care Services,1447.3, 10-Apr-2012
410,Revenue,CCHD,Day Care - South,Private & Voluntary Day Care,Bradley House Home Care Services,45.1, 10-Apr-2012
411,Revenue,CCHD,Day Care - North,Private & Voluntary Day Care,Bradley House Home Care Services,135.3, 10-Apr-2012
412,Revenue,CCHD,Younger MH non-res purchasing,Private & Voluntary Day Care,Bradley House Home Care Services,61.5, 10-Apr-2012
413,Revenue,CCHD,Woodleaze,"Provisions (Food, etc)",Brake Bros,553.58, 10-Apr-2012
414,Revenue,CCHD,Alexandra Way,"Provisions (Food, etc)",Brake Bros,520.03, 19-Apr-2012
415,Revenue,CCHD,Bed Purchasing - Elderly - North,Residential Homes,Bridge House Care Home,920.31, 17-Apr-2012
416,Revenue,CCHD,Bed Purchasing - Elderly - North,Residential Homes,Bridge House Care Home,1127.28, 17-Apr-2012
417,Revenue,CCHD,Bed Purchasing - Elderly - North,Residential Homes,Bridge House Care Home,804.63, 17-Apr-2012
418,Revenue,CCHD,Bed Purchasing - Elderly - North,Residential Homes,Bridge House Care Home,785.22, 17-Apr-2012
419,Revenue,CCHD,Bed Purchasing - Elderly MH - South,Residential Homes,Brightbow,1896.75, 17-Apr-2012
420,Revenue,CCHD,Bed purchasing - Elderly MH - North,Residential Homes,Brightbow,621.8, 17-Apr-2012
421,Revenue,CCHD,MH Purchasing - Younger,Residential Homes,Brightbow,691.77, 17-Apr-2012
422,Revenue,CCHD,Enabling Activities,Fees - General,Bristol City Council,10000, 10-Apr-2012
423,Revenue,CCHD,Community Support ACM - South,Other Supplies & Services,Bristol City Council,485.25, 30-Apr-2012
424,Revenue,CCHD,Supported Living - KD,Private & Voluntary Home Care,Bristol Houses UK Ltd,1269.1, 03-Apr-2012
425,Revenue,CCHD,Supported Living - KD,Private & Voluntary Home Care,Bristol Houses UK Ltd,1251.95, 23-Apr-2012
426,Revenue,CCHD,Supported Living - KD,Private & Voluntary Home Care,Bristol Houses UK Ltd,1029, 02-Apr-2012
427,Revenue,CCHD,Supported Living - KD,Private & Voluntary Home Care,Bristol Houses UK Ltd,977.55, 23-Apr-2012
428,Revenue,CCHD,Supported Living - KD,Private & Voluntary Home Care,Bristol Houses UK Ltd,1637.83, 03-Apr-2012
429,Revenue,CCHD,Supported Living - KD,Private & Voluntary Home Care,Bristol Houses UK Ltd,1474.9, 23-Apr-2012
430,Revenue,CCHD,Day Care - North,Private & Voluntary Day Care,Bristol Houses UK Ltd,1483.15, 17-Apr-2012
431,Revenue,CCHD,Supported Living - KD,Private & Voluntary Home Care,Bristol Houses UK Ltd,1029, 23-Apr-2012
432,Revenue,CCHD,Supported Living - KD,Private & Voluntary Home Care,Bristol Houses UK Ltd,545.75, 03-Apr-2012
433,Revenue,CCHD,Supported Living - KD,Private & Voluntary Home Care,Bristol Houses UK Ltd,590, 23-Apr-2012
434,Revenue,CCHD,Supported Living - KD,Private & Voluntary Home Care,Bristol Houses UK Ltd,944, 03-Apr-2012
435,Revenue,CCHD,Supported Living - KD,Private & Voluntary Home Care,Bristol Houses UK Ltd,944, 23-Apr-2012
436,Revenue,CCHD,Younger MH non-res purchasing,Private & Voluntary Day Care,Bristol Houses UK Ltd,1047.25, 10-Apr-2012
437,Revenue,CCHD,Younger MH non-res purchasing,Private & Voluntary Day Care,Bristol Houses UK Ltd,1062, 20-Apr-2012
438,Revenue,CCHD,Supported Living - KD,Private & Voluntary Home Care,Bristol Houses UK Ltd,590, 03-Apr-2012
439,Revenue,CCHD,Supported Living - KD,Private & Voluntary Home Care,Bristol Houses UK Ltd,545.75, 23-Apr-2012
440,Revenue,CCHD,Day Care - North,Private & Voluntary Day Care,Bristol Houses UK Ltd,2915.5, 17-Apr-2012
441,Revenue,CCHD,Supported Living - KD,Private & Voluntary Home Care,Bristol Houses UK Ltd,590, 03-Apr-2012
442,Revenue,CCHD,Supported Living - KD,Private & Voluntary Home Care,Bristol Houses UK Ltd,545.75, 23-Apr-2012
443,Revenue,CCHD,Bed and Breakfast,Bed & Breakfast,Bristol Housing & Support Limited,1120, 19-Apr-2012
444,Revenue,CCHD,Bed and Breakfast,Bed & Breakfast,Bristol Housing & Support Limited,1120, 19-Apr-2012
445,Revenue,CCHD,Training - Adult Services,Training Expenses,Bristol Mind Advocacy Services,2675, 05-Apr-2012
446,Revenue,CCHD,Bed Purchasing - Elderly S117- North,Residential Homes,Brockley Court Care Home,1810.53, 17-Apr-2012
447,Revenue,CCHD,Bed Purchasing - Elderly - North,Residential Homes,Brook Lane Residential Home,879.62, 17-Apr-2012
448,Revenue,CCHD,Bed Purchasing - Elderly - South,Nursing Homes,Brunel Care,1076.7, 17-Apr-2012
449,Revenue,CCHD,Bed purchasing - Elderly MH - North,Nursing Homes,Brunel Care,8639.86, 17-Apr-2012
450,Revenue,CCHD,Southmead Hospital Purchasing,Residential Homes,Brunel Care,929.52, 17-Apr-2012
451,Revenue,CCHD,Bed Purchasing - Elderly MH - South,Nursing Homes,Brunel Care,1522.35, 17-Apr-2012
452,Revenue,CCHD,Bed purchasing - Elderly MH - North,Nursing Homes,Brunel Care,501.55, 17-Apr-2012
453,Revenue,CCHD,Southmead Hospital Purchasing,Nursing Homes,Brunel Care,950.37, 17-Apr-2012
454,Revenue,CCHD,South Glos Users in South Glos Homes,Nursing Homes,Brunel Care,1490.74, 17-Apr-2012
455,Revenue,CCHD,Southmead Hospital Purchasing,Residential Homes,Brunel Care,987.3, 17-Apr-2012
456,Revenue,CCHD,Home Care - Elderly - North,Private & Voluntary Home Care,Brunelcare,6720, 02-Apr-2012
457,Revenue,CCHD,Home Care - Elderly - North,Private & Voluntary Home Care,Brunelcare,6720, 10-Apr-2012
458,Revenue,CCHD,Home Care - Elderly - North,Private & Voluntary Home Care,Brunelcare,6720, 16-Apr-2012
459,Revenue,CCHD,Home Care - Elderly - North,Private & Voluntary Home Care,Brunelcare,6720, 23-Apr-2012
460,Revenue,CCHD,Home Care - Elderly - North,Private & Voluntary Home Care,Brunelcare,6720, 30-Apr-2012
461,Revenue,CCHD,Bed Purchasing - Elderly - South,Nursing Homes,Brunelcare,9387.96, 27-Apr-2012
462,Revenue,CCHD,Bed Purchasing - Elderly - North,Nursing Homes,Brunelcare,3148.27, 27-Apr-2012
463,Revenue,CCHD,Frenchay Hospital Purchasing,Nursing Homes,Brunelcare,3104.35, 27-Apr-2012
464,Revenue,CCHD,Southmead Hospital Purchasing,Nursing Homes,Brunelcare,7135.27, 27-Apr-2012
465,Revenue,CCHD,South Glos Users in South Glos Homes,Nursing Homes,Brunelcare,11196.1, 27-Apr-2012
466,Revenue,CCHD,Bed purchasing - Elderly MH - North,Nursing Homes,Brunelcare,11592.45, 27-Apr-2012
467,Revenue,CCHD,Bed Purchasing - Elderly S117- North,Nursing Homes,Brunelcare,6687.59, 27-Apr-2012
468,Revenue,CCHD,Elderly MH Day Care North,Private & Voluntary Day Care,Brunelcare,712.4, 10-Apr-2012
469,Revenue,CCHD,Elderly MH Day Care North,Private & Voluntary Day Care,Brunelcare,712.4, 27-Apr-2012
470,Revenue,CCHD,Home Care - Elderly - South,Other Small Contracts,Brunelcare,2563.58, 27-Apr-2012
471,Revenue,CCHD,Home Care - Elderly - North,Other Small Contracts,Brunelcare,4755.96, 27-Apr-2012
472,Revenue,CCHD,Day Care - South,Private & Voluntary Day Care,Brunelcare,170.28, 27-Apr-2012
473,Revenue,CCHD,Day Care - North,Private & Voluntary Day Care,Brunelcare,328.61, 27-Apr-2012
474,Revenue,CCHD,Carer`s Grant - North,Carers Breaks & Services,Brunelcare,15.84, 27-Apr-2012
475,Revenue,CCHD,Home care - Elderly MH - North,Other Small Contracts,Brunelcare,352.44, 27-Apr-2012
476,Revenue,CCHD,Elderly MH Day Care North,Private & Voluntary Day Care,Brunelcare,439.56, 27-Apr-2012
477,Revenue,CCHD,Home Care - Elderly - South,Other Small Contracts,Brunelcare,2876.57, 10-Apr-2012
478,Revenue,CCHD,Home Care - Elderly - North,Other Small Contracts,Brunelcare,4304.52, 10-Apr-2012
479,Revenue,CCHD,Day Care - South,Private & Voluntary Day Care,Brunelcare,170.28, 10-Apr-2012
480,Revenue,CCHD,Day Care - North,Private & Voluntary Day Care,Brunelcare,79.2, 10-Apr-2012
481,Revenue,CCHD,Carer`s Grant - North,Carers Breaks & Services,Brunelcare,11.88, 10-Apr-2012
482,Revenue,CCHD,Home care - Elderly MH - North,Other Small Contracts,Brunelcare,613.8, 10-Apr-2012
483,Revenue,CCHD,Elderly MH Day Care North,Private & Voluntary Day Care,Brunelcare,483.12, 10-Apr-2012
484,Revenue,CCHD,Home Care - Elderly - South,Other Small Contracts,Brunelcare,2698.37, 30-Apr-2012
485,Revenue,CCHD,Home Care - Elderly - North,Other Small Contracts,Brunelcare,4746.56, 30-Apr-2012
486,Revenue,CCHD,Day Care - South,Private & Voluntary Day Care,Brunelcare,171.9, 30-Apr-2012
487,Revenue,CCHD,Day Care - North,Private & Voluntary Day Care,Brunelcare,128.88, 30-Apr-2012
488,Revenue,CCHD,Carer`s Grant - North,Carers Breaks & Services,Brunelcare,20.13, 30-Apr-2012
489,Revenue,CCHD,Home care - Elderly MH - North,Other Small Contracts,Brunelcare,366.34, 30-Apr-2012
490,Revenue,CCHD,Elderly MH Day Care North,Private & Voluntary Day Care,Brunelcare,426.96, 30-Apr-2012
491,Revenue,CCHD,Home Care - Elderly - South,Other Small Contracts,Brunelcare,2864.75, 11-Apr-2012
492,Revenue,CCHD,Home Care - Elderly - North,Other Small Contracts,Brunelcare,4431.24, 11-Apr-2012
493,Revenue,CCHD,Day Care - South,Private & Voluntary Day Care,Brunelcare,138.6, 11-Apr-2012
494,Revenue,CCHD,Day Care - North,Private & Voluntary Day Care,Brunelcare,47.52, 11-Apr-2012
495,Revenue,CCHD,Carer`s Grant - North,Carers Breaks & Services,Brunelcare,15.84, 11-Apr-2012
496,Revenue,CCHD,Home care - Elderly MH - North,Other Small Contracts,Brunelcare,629.64, 11-Apr-2012
497,Revenue,CCHD,Elderly MH Day Care North,Private & Voluntary Day Care,Brunelcare,498.96, 11-Apr-2012
498,Revenue,CCHD,Home Care - Elderly - South,Other Small Contracts,Brunelcare,2884.65, 19-Apr-2012
499,Revenue,CCHD,Home Care - Elderly - North,Other Small Contracts,Brunelcare,4629.24, 19-Apr-2012
500,Revenue,CCHD,Day Care - South,Private & Voluntary Day Care,Brunelcare,142.56, 19-Apr-2012
501,Revenue,CCHD,Day Care - North,Private & Voluntary Day Care,Brunelcare,1111.71, 19-Apr-2012
502,Revenue,CCHD,Carer`s Grant - North,Carers Breaks & Services,Brunelcare,15.84, 19-Apr-2012
503,Revenue,CCHD,Home care - Elderly MH - North,Other Small Contracts,Brunelcare,613.8, 19-Apr-2012
504,Revenue,CCHD,Elderly MH Day Care North,Private & Voluntary Day Care,Brunelcare,463.32, 19-Apr-2012
505,Revenue,CCHD,Home Care - Elderly - South,Other Small Contracts,Brunelcare,2848.85, 19-Apr-2012
506,Revenue,CCHD,Home Care - Elderly - North,Other Small Contracts,Brunelcare,4704.48, 19-Apr-2012
507,Revenue,CCHD,Day Care - South,Private & Voluntary Day Care,Brunelcare,162.36, 19-Apr-2012
508,Revenue,CCHD,Day Care - North,Private & Voluntary Day Care,Brunelcare,154.44, 19-Apr-2012
509,Revenue,CCHD,Carer`s Grant - North,Carers Breaks & Services,Brunelcare,15.84, 19-Apr-2012
510,Revenue,CCHD,Home care - Elderly MH - North,Other Small Contracts,Brunelcare,621.72, 19-Apr-2012
511,Revenue,CCHD,Elderly MH Day Care North,Private & Voluntary Day Care,Brunelcare,443.52, 19-Apr-2012
512,Revenue,CCHD,Information Systems - Software,Computer Equipment - Purchase,BT Global Services Solutions,759.31, 17-Apr-2012
513,Revenue,CCHD,South Glos Users in all other LA Homes,Nursing Homes,Bupa Care Services  Bridge House,7821.94, 17-Apr-2012
514,Revenue,CCHD,Bed purchasing - Phys Dis - North,Nursing Homes,Bupa Care Services  Bridge House,5771.98, 17-Apr-2012
515,Revenue,CCHD,Bed purchasing - Elderly MH - North,Residential Homes,Bupa Care Services  Bridge House,810.66, 17-Apr-2012
516,Revenue,CCHD,Supported Living - KD,Private & Voluntary Home Care,Camphill Communities Thornbury Limited,2434.12, 17-Apr-2012
517,Revenue,CCHD,Supported Living - KD,Private & Voluntary Home Care,Camphill Communities Thornbury Limited,2231.64, 02-Apr-2012
518,Revenue,CCHD,Supported Living - KD,Private & Voluntary Home Care,Camphill Communities Thornbury Limited,1996.72, 02-Apr-2012
519,Revenue,CCHD,Supported Living - KD,Private & Voluntary Home Care,Camphill Communities Thornbury Limited,2211.36, 02-Apr-2012
520,Revenue,CCHD,Supported Living - KD,Private & Voluntary Home Care,Camphill Communities Thornbury Limited,1964.32, 02-Apr-2012
521,Revenue,CCHD,Supported Living - KD,Private & Voluntary Home Care,Camphill Communities Thornbury Limited,2077.72, 05-Apr-2012
522,Revenue,CCHD,Supported Living - KD,Private & Voluntary Home Care,Camphill Communities Thornbury Limited,1017.22, 05-Apr-2012
523,Revenue,CCHD,Supported Living - KD,Private & Voluntary Home Care,Camphill Communities Thornbury Limited,1964.32, 05-Apr-2012
524,Revenue,CCHD,Supported Living - KD,Private & Voluntary Home Care,Camphill Communities Thornbury Limited,2179.44, 05-Apr-2012
525,Revenue,CCHD,Supported Living - KD,Private & Voluntary Home Care,Camphill Communities Thornbury Limited,1017.22, 19-Apr-2012
526,Revenue,CCHD,Supported Living - KD,Private & Voluntary Home Care,Camphill Communities Thornbury Limited,2434.12, 19-Apr-2012
527,Revenue,CCHD,Supported Living - KD,Private & Voluntary Home Care,Camphill Communities Thornbury Limited,1964.32, 27-Apr-2012
528,Revenue,CCHD,Bed purchasing - Under 65s PWLD - North,Residential Homes,Camphill Devon Community,2388.93, 17-Apr-2012
529,Revenue,CCHD,Bed purchasing - Under 65s PWLD - North,Residential Homes,Camphill Devon Community,785.97, 17-Apr-2012
530,Revenue,CCHD,Bed purchasing - Under 65s PWLD - North,Residential Homes,Camphill Devon Community,1687.86, 17-Apr-2012
531,Revenue,CCHD,Bed purchasing - Under 65s PWLD - North,Residential Homes,Camphill Devon Community,552.11, 17-Apr-2012
532,Revenue,CCHD,Home Care - Elderly - South,Other Small Contracts,Care 1st Homecare,3184, 10-Apr-2012
533,Revenue,CCHD,Home Care - Elderly - North,Other Small Contracts,Care 1st Homecare,4656.6, 10-Apr-2012
534,Revenue,CCHD,Day Care - South,Private & Voluntary Day Care,Care 1st Homecare,143.28, 10-Apr-2012
535,Revenue,CCHD,Day Care - North,Private & Voluntary Day Care,Care 1st Homecare,409.94, 10-Apr-2012
536,Revenue,CCHD,Home care - Elderly MH - North,Other Small Contracts,Care 1st Homecare,214.92, 10-Apr-2012
537,Revenue,CCHD,Home Care - LD Under 65 - South,Private & Voluntary Home Care,Care 1st Homecare,27.86, 10-Apr-2012
538,Revenue,CCHD,PWLD Home Care - Under 65 - KH,Private & Voluntary Home Care,Care 1st Homecare,135.32, 10-Apr-2012
539,Revenue,CCHD,Home Care - Elderly - South,Other Small Contracts,Care 1st Homecare,3156.14, 10-Apr-2012
540,Revenue,CCHD,Home Care - Elderly - North,Other Small Contracts,Care 1st Homecare,4425.76, 10-Apr-2012
541,Revenue,CCHD,Day Care - South,Private & Voluntary Day Care,Care 1st Homecare,143.28, 10-Apr-2012
542,Revenue,CCHD,Day Care - North,Private & Voluntary Day Care,Care 1st Homecare,254.72, 10-Apr-2012
543,Revenue,CCHD,Home care - Elderly MH - North,Other Small Contracts,Care 1st Homecare,222.88, 10-Apr-2012
544,Revenue,CCHD,Home Care - LD Under 65 - South,Private & Voluntary Home Care,Care 1st Homecare,31.84, 10-Apr-2012
545,Revenue,CCHD,PWLD Home Care - Under 65 - KH,Private & Voluntary Home Care,Care 1st Homecare,167.16, 10-Apr-2012
546,Revenue,CCHD,Home Care - Elderly - South,Other Small Contracts,Care 1st Homecare,3132.26, 10-Apr-2012
547,Revenue,CCHD,Home Care - Elderly - North,Other Small Contracts,Care 1st Homecare,4421.78, 10-Apr-2012
548,Revenue,CCHD,Day Care - South,Private & Voluntary Day Care,Care 1st Homecare,95.52, 10-Apr-2012
549,Revenue,CCHD,Day Care - North,Private & Voluntary Day Care,Care 1st Homecare,310.44, 10-Apr-2012
550,Revenue,CCHD,Home care - Elderly MH - North,Other Small Contracts,Care 1st Homecare,226.86, 10-Apr-2012
551,Revenue,CCHD,Home Care - LD Under 65 - South,Private & Voluntary Home Care,Care 1st Homecare,31.84, 10-Apr-2012
552,Revenue,CCHD,PWLD Home Care - Under 65 - KH,Private & Voluntary Home Care,Care 1st Homecare,167.16, 10-Apr-2012
553,Revenue,CCHD,Home Care - Elderly - South,Other Small Contracts,Care 1st Homecare,3215.84, 10-Apr-2012
554,Revenue,CCHD,Home Care - Elderly - North,Other Small Contracts,Care 1st Homecare,4413.82, 10-Apr-2012
555,Revenue,CCHD,Day Care - South,Private & Voluntary Day Care,Care 1st Homecare,95.52, 10-Apr-2012
556,Revenue,CCHD,Day Care - North,Private & Voluntary Day Care,Care 1st Homecare,374.12, 10-Apr-2012
557,Revenue,CCHD,Home care - Elderly MH - North,Other Small Contracts,Care 1st Homecare,206.96, 10-Apr-2012
558,Revenue,CCHD,Home Care - LD Under 65 - South,Private & Voluntary Home Care,Care 1st Homecare,31.84, 10-Apr-2012
559,Revenue,CCHD,PWLD Home Care - Under 65 - KH,Private & Voluntary Home Care,Care 1st Homecare,71.64, 10-Apr-2012
560,Revenue,CCHD,Home Care - Elderly - South,Other Small Contracts,Care 1st Homecare,3223.8, 13-Apr-2012
561,Revenue,CCHD,Home Care - Elderly - North,Other Small Contracts,Care 1st Homecare,4421.78, 13-Apr-2012
562,Revenue,CCHD,Day Care - South,Private & Voluntary Day Care,Care 1st Homecare,95.52, 13-Apr-2012
563,Revenue,CCHD,Day Care - North,Private & Voluntary Day Care,Care 1st Homecare,386.06, 13-Apr-2012
564,Revenue,CCHD,Home care - Elderly MH - North,Other Small Contracts,Care 1st Homecare,214.92, 13-Apr-2012
565,Revenue,CCHD,Home Care - LD Under 65 - South,Private & Voluntary Home Care,Care 1st Homecare,15.92, 13-Apr-2012
566,Revenue,CCHD,PWLD Home Care - Under 65 - KH,Private & Voluntary Home Care,Care 1st Homecare,167.16, 13-Apr-2012
567,Revenue,CCHD,Bed Purchasing - PWLD S 117 Placements,Residential Homes,Care Community Ltd,7341.4, 17-Apr-2012
568,Revenue,CCHD,Supported Living - KD,Private & Voluntary Home Care,Care Horizons Limited,5323.29, 02-Apr-2012
569,Revenue,CCHD,Purchase of Non-Res Care - PS,Private & Voluntary Day Care,Care Horizons Limited,1221.83, 16-Apr-2012
570,Revenue,CCHD,Purchase of Non-Res Care - PS,Private & Voluntary Day Care,Care Horizons Limited,1066.07, 16-Apr-2012
571,Revenue,CCHD,Supported Living - KD,Private & Voluntary Home Care,Care Horizons Limited,5234.74, 02-Apr-2012
572,Revenue,CCHD,Purchase of Non-Res Care - KD,Private & Voluntary Day Care,Care Horizons Limited,1726.2, 27-Apr-2012
573,Revenue,CCHD,Supported Living - KD,Private & Voluntary Home Care,Care Horizons Limited,5694.82, 27-Apr-2012
574,Revenue,CCHD,Purchase of Non-Res Care - KD,Private & Voluntary Day Care,Care Horizons Limited,1371.05, 27-Apr-2012
575,Revenue,CCHD,Purchase of Non-Res Care - KD,Private & Voluntary Day Care,Care Horizons Limited,1327.77, 27-Apr-2012
576,Revenue,CCHD,Purchase of Non-Res Care - KD,Private & Voluntary Day Care,Care Horizons Limited,748.88, 27-Apr-2012
577,Revenue,CCHD,Day Care - South,Private & Voluntary Day Care,Care Horizons Limited,622.54, 30-Apr-2012
578,Revenue,CCHD,Day Care - South,Private & Voluntary Day Care,Care Horizons Limited,693.9, 30-Apr-2012
579,Revenue,CCHD,Home Care - Elderly - South,Other Small Contracts,Care Horizons Limited,17.04, 23-Apr-2012
580,Revenue,CCHD,Day Care - South,Private & Voluntary Day Care,Care Horizons Limited,336.54, 23-Apr-2012
581,Revenue,CCHD,Day Care - North,Private & Voluntary Day Care,Care Horizons Limited,357.84, 23-Apr-2012
582,Revenue,CCHD,Training - Adult Services,Training Expenses,Care Learning Limited,6000, 17-Apr-2012
583,Revenue,CCHD,Home Care - General,Other Supplies & Services,Care Monitoring 2000 Limited,12515.4, 18-Apr-2012
584,Revenue,CCHD,Electronic Home Care Monitoring,Other Supplies & Services,Care Monitoring 2000 Limited,2400, 26-Apr-2012
585,Revenue,CCHD,Home Care - Elderly - South,Other Small Contracts,Care UK,7850.44, 10-Apr-2012
586,Revenue,CCHD,Home Care - Elderly - North,Other Small Contracts,Care UK,4860, 10-Apr-2012
587,Revenue,CCHD,Day Care - South,Private & Voluntary Day Care,Care UK,405, 10-Apr-2012
588,Revenue,CCHD,Day Care - North,Private & Voluntary Day Care,Care UK,900, 10-Apr-2012
589,Revenue,CCHD,Home care - Elderly MH - North,Other Small Contracts,Care UK,1856.25, 10-Apr-2012
590,Revenue,CCHD,Elderly MH Day Care North,Private & Voluntary Day Care,Care UK,258.75, 10-Apr-2012
591,Revenue,CCHD,Home Care - Elderly - South,Other Small Contracts,Care UK,7569.19, 10-Apr-2012
592,Revenue,CCHD,Home Care - Elderly - North,Other Small Contracts,Care UK,4620, 10-Apr-2012
593,Revenue,CCHD,Day Care - South,Private & Voluntary Day Care,Care UK,382.5, 10-Apr-2012
594,Revenue,CCHD,Day Care - North,Private & Voluntary Day Care,Care UK,847.5, 10-Apr-2012
595,Revenue,CCHD,Home care - Elderly MH - North,Other Small Contracts,Care UK,866.25, 10-Apr-2012
596,Revenue,CCHD,Elderly MH Day Care North,Private & Voluntary Day Care,Care UK,270, 10-Apr-2012
597,Revenue,CCHD,Home Care - Elderly - South,Other Small Contracts,Care UK,7456.69, 10-Apr-2012
598,Revenue,CCHD,Home Care - Elderly - North,Other Small Contracts,Care UK,4458.75, 10-Apr-2012
599,Revenue,CCHD,Day Care - South,Private & Voluntary Day Care,Care UK,386.25, 10-Apr-2012
600,Revenue,CCHD,Day Care - North,Private & Voluntary Day Care,Care UK,907.5, 10-Apr-2012
601,Revenue,CCHD,Home care - Elderly MH - North,Other Small Contracts,Care UK,862.5, 10-Apr-2012
602,Revenue,CCHD,Elderly MH Day Care North,Private & Voluntary Day Care,Care UK,273.75, 10-Apr-2012
603,Revenue,CCHD,Home Care - Elderly - South,Other Small Contracts,Care UK,7161.27, 10-Apr-2012
604,Revenue,CCHD,Home Care - Elderly - North,Other Small Contracts,Care UK,4353.75, 10-Apr-2012
605,Revenue,CCHD,Day Care - South,Private & Voluntary Day Care,Care UK,378.75, 10-Apr-2012
606,Revenue,CCHD,Day Care - North,Private & Voluntary Day Care,Care UK,952.5, 10-Apr-2012
607,Revenue,CCHD,Home care - Elderly MH - North,Other Small Contracts,Care UK,843.75, 10-Apr-2012
608,Revenue,CCHD,Elderly MH Day Care North,Private & Voluntary Day Care,Care UK,266.25, 10-Apr-2012
609,Revenue,CCHD,Home Care - Elderly - South,Other Small Contracts,Care UK,7130.44, 24-Apr-2012
610,Revenue,CCHD,Home Care - Elderly - North,Other Small Contracts,Care UK,4222.5, 24-Apr-2012
611,Revenue,CCHD,Day Care - South,Private & Voluntary Day Care,Care UK,266.25, 24-Apr-2012
612,Revenue,CCHD,Day Care - North,Private & Voluntary Day Care,Care UK,993.75, 24-Apr-2012
613,Revenue,CCHD,Home care - Elderly MH - North,Other Small Contracts,Care UK,408.75, 24-Apr-2012
614,Revenue,CCHD,Elderly MH Day Care North,Private & Voluntary Day Care,Care UK,45, 24-Apr-2012
615,Revenue,CCHD,Home Care - Elderly - South,Other Small Contracts,Care UK,7328.76, 24-Apr-2012
616,Revenue,CCHD,Home Care - Elderly - North,Other Small Contracts,Care UK,4286.25, 24-Apr-2012
617,Revenue,CCHD,Day Care - South,Private & Voluntary Day Care,Care UK,123.75, 24-Apr-2012
618,Revenue,CCHD,Day Care - North,Private & Voluntary Day Care,Care UK,930, 24-Apr-2012
619,Revenue,CCHD,Home care - Elderly MH - North,Other Small Contracts,Care UK,817.5, 24-Apr-2012
620,Revenue,CCHD,Elderly MH Day Care North,Private & Voluntary Day Care,Care UK,217.5, 24-Apr-2012
621,Revenue,CCHD,Home Care - Elderly - South,Other Small Contracts,Carewatch (Bristol),240.12, 19-Apr-2012
622,Revenue,CCHD,Home Care - Elderly - North,Other Small Contracts,Carewatch (Bristol),281.52, 19-Apr-2012
623,Revenue,CCHD,Day Care - North,Private & Voluntary Day Care,Carewatch (Bristol),99.36, 19-Apr-2012
624,Revenue,CCHD,Home Care - Elderly - South,Other Small Contracts,Carewatch (Bristol),244.26, 27-Apr-2012
625,Revenue,CCHD,Home Care - Elderly - North,Other Small Contracts,Carewatch (Bristol),277.38, 27-Apr-2012
626,Revenue,CCHD,Day Care - North,Private & Voluntary Day Care,Carewatch (Bristol),99.36, 27-Apr-2012
627,Revenue,CCHD,Home Care - Elderly - South,Other Small Contracts,Carewatch (Bristol),239.97, 27-Apr-2012
628,Revenue,CCHD,Home Care - Elderly - North,Other Small Contracts,Carewatch (Bristol),324.17, 27-Apr-2012
629,Revenue,CCHD,Home Care - Elderly - South,Other Small Contracts,Carewatch (Bristol),227.7, 19-Apr-2012
630,Revenue,CCHD,Home Care - Elderly - North,Other Small Contracts,Carewatch (Bristol),289.8, 19-Apr-2012
631,Revenue,CCHD,Day Care - North,Private & Voluntary Day Care,Carewatch (Bristol),99.36, 19-Apr-2012
632,Revenue,CCHD,Day Care - South,Private & Voluntary Day Care,Caring Home Healthcare Grp Ltd,2180, 20-Apr-2012
633,Revenue,CCHD,Home Care - Elderly - South,Other Small Contracts,Cash Friday at Lloyds TSB,181.92, 18-Apr-2012
634,Revenue,CCHD,Home Care - Elderly - North,Other Small Contracts,Cash Friday at Lloyds TSB,1398.51, 18-Apr-2012
635,Revenue,CCHD,Day Care - South,Private & Voluntary Day Care,Cash Friday at Lloyds TSB,30.32, 18-Apr-2012
636,Revenue,CCHD,Day Care - North,Private & Voluntary Day Care,Cash Friday at Lloyds TSB,72.01, 18-Apr-2012
637,Revenue,CCHD,Home Care - Elderly - South,Other Small Contracts,Cash Friday at Lloyds TSB,181.92, 10-Apr-2012
638,Revenue,CCHD,Home Care - Elderly - North,Other Small Contracts,Cash Friday at Lloyds TSB,1402.3, 10-Apr-2012
639,Revenue,CCHD,Day Care - South,Private & Voluntary Day Care,Cash Friday at Lloyds TSB,30.32, 10-Apr-2012
640,Revenue,CCHD,Day Care - North,Private & Voluntary Day Care,Cash Friday at Lloyds TSB,87.17, 10-Apr-2012
641,Revenue,CCHD,Home Care - Elderly - South,Other Small Contracts,Cash Friday at Lloyds TSB,181.92, 10-Apr-2012
642,Revenue,CCHD,Home Care - Elderly - North,Other Small Contracts,Cash Friday at Lloyds TSB,1368.19, 10-Apr-2012
643,Revenue,CCHD,Day Care - South,Private & Voluntary Day Care,Cash Friday at Lloyds TSB,30.32, 10-Apr-2012
644,Revenue,CCHD,Day Care - North,Private & Voluntary Day Care,Cash Friday at Lloyds TSB,87.17, 10-Apr-2012
645,Revenue,CCHD,Home Care - Elderly - South,Other Small Contracts,Cash Friday at Lloyds TSB,185.71, 27-Apr-2012
646,Revenue,CCHD,Home Care - Elderly - North,Other Small Contracts,Cash Friday at Lloyds TSB,1394.72, 27-Apr-2012
647,Revenue,CCHD,Day Care - South,Private & Voluntary Day Care,Cash Friday at Lloyds TSB,30.32, 27-Apr-2012
648,Revenue,CCHD,Day Care - North,Private & Voluntary Day Care,Cash Friday at Lloyds TSB,87.17, 27-Apr-2012
649,Revenue,CCHD,Home Care - Elderly - South,Other Small Contracts,Cash Friday at Lloyds TSB,181.92, 27-Apr-2012
650,Revenue,CCHD,Home Care - Elderly - North,Other Small Contracts,Cash Friday at Lloyds TSB,1379.56, 27-Apr-2012
651,Revenue,CCHD,Day Care - South,Private & Voluntary Day Care,Cash Friday at Lloyds TSB,30.32, 27-Apr-2012
652,Revenue,CCHD,Day Care - North,Private & Voluntary Day Care,Cash Friday at Lloyds TSB,83.38, 27-Apr-2012
653,Revenue,CCHD,Home Care - Elderly - South,Other Small Contracts,Cash Friday at Lloyds TSB,188.88, 27-Apr-2012
654,Revenue,CCHD,Home Care - Elderly - North,Other Small Contracts,Cash Friday at Lloyds TSB,1402.84, 27-Apr-2012
655,Revenue,CCHD,Day Care - South,Private & Voluntary Day Care,Cash Friday at Lloyds TSB,30.82, 27-Apr-2012
656,Revenue,CCHD,Day Care - North,Private & Voluntary Day Care,Cash Friday at Lloyds TSB,88.61, 27-Apr-2012
657,Revenue,CCHD,Bed Purchasing - Elderly - North,Nursing Homes,Cedar Care Homes Ltd,870.27, 17-Apr-2012
658,Revenue,CCHD,Frenchay Hospital Purchasing,Nursing Homes,Cedar Care Homes Ltd,781.14, 17-Apr-2012
659,Revenue,CCHD,Frenchay Hospital Purchasing,Residential Homes,Centenary Care Homes Ltd,1236.65, 17-Apr-2012
660,Revenue,CCHD,Bed Purchasing - Elderly - South,Residential Homes,Cepen Lodge Care Home,1616.7, 17-Apr-2012
661,Revenue,CCHD,Bed Purchasing - Elderly - South,Residential Homes,Cepen Lodge Care Home,530, 17-Apr-2012
662,Revenue,CCHD,Bed Purchasing - Elderly - South,Residential Homes,Cepen Lodge Care Home,1616.7, 17-Apr-2012
663,Revenue,CCHD,Bed Purchasing - Elderly - South,Residential Homes,Cepen Lodge Care Home,530, 17-Apr-2012
664,Revenue,CCHD,Home Care - Elderly - South,Other Small Contracts,Cherish Able Care Limited,1449.9, 05-Apr-2012
665,Revenue,CCHD,Home care - Elderly MH - North,Other Small Contracts,Cherish Able Care Limited,392.85, 05-Apr-2012
666,Revenue,CCHD,Home Care - Elderly - South,Other Small Contracts,Cherish Able Care Limited,1591.65, 13-Apr-2012
667,Revenue,CCHD,Day Care - South,Private & Voluntary Day Care,Cherish Able Care Limited,32.4, 13-Apr-2012
668,Revenue,CCHD,Home care - Elderly MH - North,Other Small Contracts,Cherish Able Care Limited,392.85, 13-Apr-2012
669,Revenue,CCHD,Home Care - Elderly - South,Other Small Contracts,Cherish Able Care Limited,1409.4, 19-Apr-2012
670,Revenue,CCHD,Home care - Elderly MH - North,Other Small Contracts,Cherish Able Care Limited,396.9, 19-Apr-2012
671,Revenue,CCHD,Home Care - Elderly - South,Other Small Contracts,Cherish Able Care Limited,1660.5, 27-Apr-2012
672,Revenue,CCHD,Home care - Elderly MH - North,Other Small Contracts,Cherish Able Care Limited,400.95, 27-Apr-2012
673,Revenue,CCHD,Bed purchasing -S28A  Under 65 - North,Residential Homes,Chescombe Lodge,6379.08, 17-Apr-2012
674,Revenue,CCHD,Bed purchasing - S28A Under 65 - South,Residential Homes,Chescombe Lodge,2090.01, 17-Apr-2012
675,Revenue,CCHD,Bed Purchasing - PWLD S 117 Placements,Residential Homes,Chosen Court,7475.27, 17-Apr-2012
676,Revenue,CCHD,Bed purchasing - Under 65s PWLD - North,Residential Homes,Church House,1619.56, 17-Apr-2012
677,Revenue,CCHD,Bed purchasing - Under 65s PWLD - North,Residential Homes,Churchill House,7509.09, 17-Apr-2012
678,Revenue,CCHD,Under 65s PWLD - KH,Nursing Homes,Churchill House,9504.88, 17-Apr-2012
679,Revenue,CCHD,Bed Purchasing - Under 65s PWLD - South,Residential Homes,Churchill House,12548.31, 17-Apr-2012
680,Revenue,CCHD,Bed Purchasing - Elderly - South,Residential Homes,Cleeve Lodge,1197.78, 17-Apr-2012
681,Revenue,CCHD,Bed Purchasing - Elderly - North,Residential Homes,Cleeve Lodge,1580.14, 17-Apr-2012
682,Revenue,CCHD,Southmead Hospital Purchasing,Residential Homes,Cleeve Lodge,1069.02, 17-Apr-2012
683,Revenue,CCHD,Bed Purchasing - Elderly - South,Residential Homes,Cleeve Lodge,1244.61, 17-Apr-2012
684,Revenue,CCHD,Bed Purchasing - Elderly - South,Residential Homes,Cleeve Lodge,504.01, 17-Apr-2012
685,Revenue,CCHD,Bed Purchasing - Elderly - South,Residential Homes,Cleeve Lodge,1255.38, 17-Apr-2012
686,Revenue,CCHD,Bed Purchasing - Elderly - South,Residential Homes,Cleeve Lodge,1083.39, 17-Apr-2012
687,Revenue,CCHD,Bed Purchasing - Elderly - South,Residential Homes,Cleeve Lodge,1677.72, 17-Apr-2012
688,Revenue,CCHD,Bed Purchasing - Elderly - South,Residential Homes,Cleeve Lodge,550, 17-Apr-2012
689,Revenue,CCHD,Bed Purchasing - Elderly - South,Residential Homes,Cleeve Lodge,1325.97, 17-Apr-2012
690,Revenue,CCHD,Southmead Hospital Purchasing,Residential Homes,Cleeve Lodge,1076.1, 17-Apr-2012
691,Revenue,CCHD,Southmead Hospital Purchasing,Residential Homes,Clifftop Care Home,1186.31, 17-Apr-2012
692,Revenue,CCHD,Frenchay Hospital Purchasing,Residential Homes,Collingwood Residential Home,770.76, 17-Apr-2012
693,Revenue,CCHD,Frenchay Hospital Purchasing,Residential Homes,Collingwood Residential Home,6821.07, 17-Apr-2012
694,Revenue,CCHD,Bed Purchasing - Elderly - South,Residential Homes,Collingwood Residential Home,938.94, 17-Apr-2012
695,Revenue,CCHD,Bed Purchasing - Elderly - South,Residential Homes,Collingwood Residential Home,632.13, 17-Apr-2012
696,Revenue,CCHD,Bed Purchasing - Elderly - South,Residential Homes,Collingwood Residential Home,1013.37, 17-Apr-2012
697,Revenue,CCHD,Bed Purchasing - Elderly - South,Residential Homes,Collingwood Residential Home,793.95, 17-Apr-2012
698,Revenue,CCHD,Bed Purchasing - Elderly - South,Residential Homes,Collingwood Residential Home,992.73, 17-Apr-2012
699,Revenue,CCHD,Frenchay Hospital Purchasing,Residential Homes,Collingwood Residential Home,924, 17-Apr-2012
700,Revenue,CCHD,Bed Purchasing - Elderly MH - South,Residential Homes,Collingwood Residential Home,973.8, 17-Apr-2012
701,Revenue,CCHD,Bed Purchasing - Elderly - South,Residential Homes,Collingwood Residential Home,935.94, 17-Apr-2012
702,Revenue,CCHD,Southmead Hospital Purchasing,Residential Homes,Collingwood Residential Home,1316.78, 17-Apr-2012
703,Revenue,CCHD,Bed Purchasing - Elderly - South,Residential Homes,Collingwood Residential Home,1030.32, 17-Apr-2012
704,Revenue,CCHD,Bed Purchasing - Elderly - South,Residential Homes,Collingwood Residential Home,896.01, 17-Apr-2012
705,Revenue,CCHD,Bed Purchasing - Elderly - South,Residential Homes,Collingwood Residential Home,1047.54, 17-Apr-2012
706,Revenue,CCHD,Bed and Breakfast,Bed & Breakfast,Connolly & Callaghan Limited,546, 19-Apr-2012
707,Revenue,CCHD,Bed and Breakfast,Bed & Breakfast,Connolly & Callaghan Limited,581, 19-Apr-2012
708,Revenue,CCHD,Bed and Breakfast,Bed & Breakfast,Connolly & Callaghan Limited,546, 19-Apr-2012
709,Revenue,CCHD,Bed and Breakfast,Bed & Breakfast,Connolly & Callaghan Limited,511, 19-Apr-2012
710,Revenue,CCHD,Bed and Breakfast,Bed & Breakfast,Connolly & Callaghan Limited,581, 25-Apr-2012
711,Revenue,CCHD,Bed and Breakfast,Bed & Breakfast,Connolly & Callaghan Limited,546, 25-Apr-2012
712,Revenue,CCHD,Bed and Breakfast,Bed & Breakfast,Connolly & Callaghan Limited,511, 25-Apr-2012
713,Revenue,CCHD,Bed purchasing - Under 65s PWLD - North,Residential Homes,Consensus Support Services Ltd,8938, 04-Apr-2012
714,Revenue,CCHD,Kerr House,Gas,Corona Energy Retail 3 Limited,664.4, 16-Apr-2012
715,Revenue,CCHD,Kerr House,Gas,Corona Energy Retail 3 Limited,636.17, 16-Apr-2012
716,Revenue,CCHD,Kerr House,Gas,Corona Energy Retail 3 Limited,642.63, 16-Apr-2012
717,Revenue,CCHD,Newton House,Gas,Corona Energy Retail 3 Limited,1057.75, 16-Apr-2012
718,Revenue,CCHD,Newton House,Gas,Corona Energy Retail 3 Limited,645.02, 16-Apr-2012
719,Revenue,CCHD,Alexandra Way,Gas,Corona Energy Retail 3 Limited,876.1, 16-Apr-2012
720,Revenue,CCHD,Alexandra Way,Gas,Corona Energy Retail 3 Limited,695.38, 16-Apr-2012
721,Revenue,CCHD,Newton House,Gas,Corona Energy Retail 3 Limited,777.11, 16-Apr-2012
722,Revenue,CCHD,Alexandra Way,Gas,Corona Energy Retail 3 Limited,902.58, 16-Apr-2012
723,Revenue,CCHD,Kerr House,Gas,Corona Energy Retail 3 Limited,790.51, 16-Apr-2012
724,Revenue,CCHD,Newton House,Gas,Corona Energy Retail 3 Limited,1472.16, 16-Apr-2012
725,Revenue,CCHD,Alexandra Way,Gas,Corona Energy Retail 3 Limited,1195.61, 16-Apr-2012
726,Revenue,CCHD,Charlton,Gas,Corona Energy Retail 3 Limited,836.67, 16-Apr-2012
727,Revenue,CCHD,Woodleaze,Gas,Corona Energy Retail 3 Limited,573.14, 16-Apr-2012
728,Revenue,CCHD,Woodleaze,Gas,Corona Energy Retail 3 Limited,712.5, 16-Apr-2012
729,Revenue,CCHD,Woodleaze,Gas,Corona Energy Retail 3 Limited,983.55, 16-Apr-2012
730,Revenue,CCHD,Kerr House,Gas,Corona Energy Retail 3 Limited,789.73, 16-Apr-2012
731,Revenue,CCHD,Newton House,Gas,Corona Energy Retail 3 Limited,1233.32, 16-Apr-2012
732,Revenue,CCHD,Alexandra Way,Gas,Corona Energy Retail 3 Limited,1195.62, 16-Apr-2012
733,Revenue,CCHD,Charlton,Gas,Corona Energy Retail 3 Limited,834.28, 16-Apr-2012
734,Revenue,CCHD,Woodleaze,Gas,Corona Energy Retail 3 Limited,1192.29, 16-Apr-2012
735,Revenue,CCHD,Kerr House,Gas,Corona Energy Retail 3 Limited,747.84, 16-Apr-2012
736,Revenue,CCHD,Newton House,Gas,Corona Energy Retail 3 Limited,539.68, 16-Apr-2012
737,Revenue,CCHD,Newton House,Gas,Corona Energy Retail 3 Limited,1355.19, 16-Apr-2012
738,Revenue,CCHD,Alexandra Way,Gas,Corona Energy Retail 3 Limited,1613.61, 16-Apr-2012
739,Revenue,CCHD,Charlton,Gas,Corona Energy Retail 3 Limited,1213.78, 16-Apr-2012
740,Revenue,CCHD,Woodleaze,Gas,Corona Energy Retail 3 Limited,1618.84, 16-Apr-2012
741,Revenue,CCHD,Kerr House,Gas,Corona Energy Retail 3 Limited,1000.46, 16-Apr-2012
742,Revenue,CCHD,Newton House,Gas,Corona Energy Retail 3 Limited,2460, 16-Apr-2012
743,Revenue,CCHD,Alexandra Way,Gas,Corona Energy Retail 3 Limited,1821.57, 16-Apr-2012
744,Revenue,CCHD,Charlton,Gas,Corona Energy Retail 3 Limited,1444.33, 16-Apr-2012
745,Revenue,CCHD,Woodleaze,Gas,Corona Energy Retail 3 Limited,1636.77, 16-Apr-2012
746,Revenue,CCHD,Kerr House,Gas,Corona Energy Retail 3 Limited,1019.08, 16-Apr-2012
747,Revenue,CCHD,Newton House,Gas,Corona Energy Retail 3 Limited,523.21, 16-Apr-2012
748,Revenue,CCHD,Newton House,Gas,Corona Energy Retail 3 Limited,1906.24, 16-Apr-2012
749,Revenue,CCHD,Alexandra Way,Gas,Corona Energy Retail 3 Limited,2504.3, 16-Apr-2012
750,Revenue,CCHD,Charlton,Gas,Corona Energy Retail 3 Limited,1411.76, 16-Apr-2012
751,Revenue,CCHD,Wapley Court,Gas,Corona Energy Retail 3 Limited,592.27, 16-Apr-2012
752,Revenue,CCHD,Woodleaze,Gas,Corona Energy Retail 3 Limited,1531.76, 16-Apr-2012
753,Revenue,CCHD,Kerr House,Gas,Corona Energy Retail 3 Limited,996.01, 16-Apr-2012
754,Revenue,CCHD,Newton House,Gas,Corona Energy Retail 3 Limited,2201.02, 16-Apr-2012
755,Revenue,CCHD,Alexandra Way,Gas,Corona Energy Retail 3 Limited,2665.37, 16-Apr-2012
756,Revenue,CCHD,Charlton,Gas,Corona Energy Retail 3 Limited,1475.79, 16-Apr-2012
757,Revenue,CCHD,Wapley Court,Gas,Corona Energy Retail 3 Limited,566.4, 16-Apr-2012
758,Revenue,CCHD,Research & Conferences,Consultation Expenses,CPEA Ltd,6932.44, 05-Apr-2012
759,Revenue,CCHD,Bed purchasing - S28A Under 65 - South,Residential Homes,Cream Ii Ltd  Longrun House,7815.8, 17-Apr-2012
760,Revenue,CCHD,Bed purchasing -S28A  Under 65 - North,Residential Homes,Creedy Court,6806.13, 17-Apr-2012
761,Revenue,CCHD,Bed purchasing - S28A Under 65 - South,Residential Homes,Creedy Court,2233.71, 17-Apr-2012
762,Revenue,CCHD,Bed Purchasing - S28A - Over 65- North,Residential Homes,Creedy Court,5661.69, 17-Apr-2012
763,Revenue,CCHD,Bed Purchasing - LD S28A- Over 65- South,Residential Homes,Creedy Court,1858.53, 17-Apr-2012
764,Revenue,CCHD,Brokerage and Information Service,Grants to Voluntary Bodies,D H I,9210.09, 27-Apr-2012
765,Revenue,CCHD,Bed Purchasing - Under 65s PWLD - South,Residential Homes,Daneswood,8066.16, 17-Apr-2012
766,Revenue,CCHD,Bed Purchasing - Under 65s PWLD - South,Residential Homes,Daneswood,2647.05, 17-Apr-2012
767,Revenue,CCHD,Bed purchasing - Under 65s PWLD - North,Residential Homes,Daneswood,6675.93, 17-Apr-2012
768,Revenue,CCHD,Bed purchasing - Under 65s PWLD - North,Residential Homes,Daneswood,2189, 17-Apr-2012
769,Revenue,CCHD,Learning Difficulties PSL,Other Supplies & Services,Individual,2016.44, 20-Apr-2012
770,Revenue,CCHD,Day Care - South,Private & Voluntary Day Care,Deafblind UK,1945, 05-Apr-2012
771,Revenue,CCHD,Day Care - North,Private & Voluntary Day Care,Deafblind UK,1265.92, 23-Apr-2012
772,Revenue,CCHD,Day Care - South,Private & Voluntary Day Care,Deafblind UK,1944.39, 30-Apr-2012
773,Revenue,CCHD,Day Care - South,Private & Voluntary Day Care,Deafblind UK,1003.22, 30-Apr-2012
774,Revenue,CCHD,Electronic Home Care Monitoring,Other Supplies & Services,Dean Healthcare South West Ltd,450, 10-Apr-2012
775,Revenue,CCHD,Day Care - South,Private & Voluntary Day Care,Dhek Bhal,707.28, 23-Apr-2012
776,Revenue,CCHD,Day Care - South,Private & Voluntary Day Care,Dhek Bhal,898.27, 17-Apr-2012
777,Revenue,CCHD,Day Care - South,Private & Voluntary Day Care,Dhek Bhal,835.6, 17-Apr-2012
778,Revenue,CCHD,Supported Living - PS,Private & Voluntary Home Care,Dimensions (UK) Ltd,8006.68, 26-Apr-2012
779,Revenue,CCHD,Supported Living - PS,Private & Voluntary Home Care,Dimensions (UK) Ltd,8006.68, 26-Apr-2012
780,Revenue,CCHD,Supported Living - PS,Private & Voluntary Home Care,Dimensions (UK) Ltd,7490.12, 26-Apr-2012
781,Revenue,CCHD,Bed Purchasing - Under 65s PWLD - South,Residential Homes,Dimensions(Uk) Ltd,3572.58, 17-Apr-2012
782,Revenue,CCHD,Under 65s PWLD - KH,Residential Homes,Dimensions(Uk) Ltd,1174, 17-Apr-2012
783,Revenue,CCHD,Bed Purchasing - Under 65s PWLD - South,Residential Homes,Dimensions(Uk) Ltd,1721.88, 17-Apr-2012
784,Revenue,CCHD,Home Care - Elderly - South,Other Small Contracts,DoCare Ltd,2533.33, 11-Apr-2012
785,Revenue,CCHD,Home Care - Elderly - North,Other Small Contracts,DoCare Ltd,3568.45, 11-Apr-2012
786,Revenue,CCHD,Day Care - South,Private & Voluntary Day Care,DoCare Ltd,149.82, 11-Apr-2012
787,Revenue,CCHD,Day Care - North,Private & Voluntary Day Care,DoCare Ltd,454.02, 11-Apr-2012
788,Revenue,CCHD,Home care - Elderly MH - North,Other Small Contracts,DoCare Ltd,177.06, 11-Apr-2012
789,Revenue,CCHD,Elderly MH Day Care North,Private & Voluntary Day Care,DoCare Ltd,63.56, 11-Apr-2012
790,Revenue,CCHD,Home Care - Elderly - South,Other Small Contracts,DoCare Ltd,2891.99, 11-Apr-2012
791,Revenue,CCHD,Home Care - Elderly - North,Other Small Contracts,DoCare Ltd,3536.66, 11-Apr-2012
792,Revenue,CCHD,Day Care - South,Private & Voluntary Day Care,DoCare Ltd,158.9, 11-Apr-2012
793,Revenue,CCHD,Day Care - North,Private & Voluntary Day Care,DoCare Ltd,526.66, 11-Apr-2012
794,Revenue,CCHD,Home care - Elderly MH - North,Other Small Contracts,DoCare Ltd,181.6, 11-Apr-2012
795,Revenue,CCHD,Elderly MH Day Care North,Private & Voluntary Day Care,DoCare Ltd,54.48, 11-Apr-2012
796,Revenue,CCHD,Home Care - Elderly - South,Other Small Contracts,DoCare Ltd,2828.43, 17-Apr-2012
797,Revenue,CCHD,Home Care - Elderly - North,Other Small Contracts,DoCare Ltd,3595.69, 17-Apr-2012
798,Revenue,CCHD,Day Care - South,Private & Voluntary Day Care,DoCare Ltd,158.9, 17-Apr-2012
799,Revenue,CCHD,Day Care - North,Private & Voluntary Day Care,DoCare Ltd,540.28, 17-Apr-2012
800,Revenue,CCHD,Home care - Elderly MH - North,Other Small Contracts,DoCare Ltd,181.6, 17-Apr-2012
801,Revenue,CCHD,Elderly MH Day Care North,Private & Voluntary Day Care,DoCare Ltd,54.48, 17-Apr-2012
802,Revenue,CCHD,Home Care - Elderly - South,Other Small Contracts,DoCare Ltd,2778.49, 27-Apr-2012
803,Revenue,CCHD,Home Care - Elderly - North,Other Small Contracts,DoCare Ltd,3373.23, 27-Apr-2012
804,Revenue,CCHD,Day Care - South,Private & Voluntary Day Care,DoCare Ltd,149.82, 27-Apr-2012
805,Revenue,CCHD,Day Care - North,Private & Voluntary Day Care,DoCare Ltd,454.02, 27-Apr-2012
806,Revenue,CCHD,Home care - Elderly MH - North,Other Small Contracts,DoCare Ltd,186.14, 27-Apr-2012
807,Revenue,CCHD,Elderly MH Day Care North,Private & Voluntary Day Care,DoCare Ltd,108.96, 27-Apr-2012
808,Revenue,CCHD,Bed Purchasing - Elderly - South,Nursing Homes,Dunkirk Memorial House,1159.61, 17-Apr-2012
809,Revenue,CCHD,MH Purchasing - Younger,Residential Homes,Dunraven House,1805.58, 17-Apr-2012
810,Revenue,CCHD,Bed and Breakfast,Bed & Breakfast,E J Bartlett,420, 23-Apr-2012
811,Revenue,CCHD,Bed and Breakfast,Bed & Breakfast,E J Bartlett,480, 25-Apr-2012
812,Revenue,CCHD,Bed and Breakfast,Bed & Breakfast,E J Bartlett,630, 03-Apr-2012
813,Revenue,CCHD,Bed and Breakfast,Bed & Breakfast,E J Bartlett,420, 03-Apr-2012
814,Revenue,CCHD,Bed and Breakfast,Bed & Breakfast,E J Bartlett,735, 03-Apr-2012
815,Revenue,CCHD,Bed and Breakfast,Bed & Breakfast,E J Bartlett,420, 03-Apr-2012
816,Revenue,CCHD,Bed and Breakfast,Bed & Breakfast,E J Bartlett,525, 03-Apr-2012
817,Revenue,CCHD,Bed and Breakfast,Bed & Breakfast,E J Bartlett,540, 03-Apr-2012
818,Revenue,CCHD,Bed and Breakfast,Bed & Breakfast,E J Bartlett,420, 03-Apr-2012
819,Revenue,CCHD,Bed and Breakfast,Bed & Breakfast,E J Bartlett,600, 03-Apr-2012
820,Revenue,CCHD,Bed and Breakfast,Bed & Breakfast,E J Bartlett,630, 13-Apr-2012
821,Revenue,CCHD,Bed and Breakfast,Bed & Breakfast,E J Bartlett,420, 13-Apr-2012
822,Revenue,CCHD,Bed and Breakfast,Bed & Breakfast,E J Bartlett,600, 13-Apr-2012
823,Revenue,CCHD,Bed and Breakfast,Bed & Breakfast,E J Bartlett,735, 13-Apr-2012
824,Revenue,CCHD,Bed and Breakfast,Bed & Breakfast,E J Bartlett,525, 13-Apr-2012
825,Revenue,CCHD,Bed and Breakfast,Bed & Breakfast,E J Bartlett,420, 13-Apr-2012
826,Revenue,CCHD,Bed and Breakfast,Bed & Breakfast,E J Bartlett,420, 13-Apr-2012
827,Revenue,CCHD,Bed and Breakfast,Bed & Breakfast,E J Bartlett,840, 13-Apr-2012
828,Revenue,CCHD,Bed and Breakfast,Bed & Breakfast,E J Bartlett,630, 13-Apr-2012
829,Revenue,CCHD,Bed and Breakfast,Bed & Breakfast,E J Bartlett,420, 13-Apr-2012
830,Revenue,CCHD,Bed and Breakfast,Bed & Breakfast,E J Bartlett,525, 13-Apr-2012
831,Revenue,CCHD,Bed and Breakfast,Bed & Breakfast,E J Bartlett,735, 13-Apr-2012
832,Revenue,CCHD,Bed and Breakfast,Bed & Breakfast,E J Bartlett,525, 13-Apr-2012
833,Revenue,CCHD,Bed and Breakfast,Bed & Breakfast,E J Bartlett,420, 13-Apr-2012
834,Revenue,CCHD,Bed and Breakfast,Bed & Breakfast,E J Bartlett,420, 13-Apr-2012
835,Revenue,CCHD,Bed and Breakfast,Bed & Breakfast,E J Bartlett,840, 13-Apr-2012
836,Revenue,CCHD,Bed and Breakfast,Bed & Breakfast,E J Bartlett,630, 25-Apr-2012
837,Revenue,CCHD,Bed and Breakfast,Bed & Breakfast,E J Bartlett,420, 25-Apr-2012
838,Revenue,CCHD,Bed and Breakfast,Bed & Breakfast,E J Bartlett,525, 25-Apr-2012
839,Revenue,CCHD,Bed and Breakfast,Bed & Breakfast,E J Bartlett,735, 25-Apr-2012
840,Revenue,CCHD,Bed and Breakfast,Bed & Breakfast,E J Bartlett,525, 25-Apr-2012
841,Revenue,CCHD,Bed and Breakfast,Bed & Breakfast,E J Bartlett,420, 25-Apr-2012
842,Revenue,CCHD,Bed and Breakfast,Bed & Breakfast,E J Bartlett,420, 25-Apr-2012
843,Revenue,CCHD,Bed and Breakfast,Bed & Breakfast,E J Bartlett,840, 25-Apr-2012
844,Revenue,CCHD,Bed and Breakfast,Bed & Breakfast,E J Bartlett,630, 30-Apr-2012
845,Revenue,CCHD,Bed and Breakfast,Bed & Breakfast,E J Bartlett,525, 30-Apr-2012
846,Revenue,CCHD,Bed and Breakfast,Bed & Breakfast,E J Bartlett,735, 30-Apr-2012
847,Revenue,CCHD,Bed and Breakfast,Bed & Breakfast,E J Bartlett,525, 30-Apr-2012
848,Revenue,CCHD,Bed and Breakfast,Bed & Breakfast,E J Bartlett,420, 30-Apr-2012
849,Revenue,CCHD,Bed and Breakfast,Bed & Breakfast,E J Bartlett,420, 30-Apr-2012
850,Revenue,CCHD,Bed and Breakfast,Bed & Breakfast,E J Bartlett,840, 30-Apr-2012
851,Revenue,CCHD,Bed purchasing - Under 65s PWLD - North,Residential Homes,East Court,1620.6, 17-Apr-2012
852,Revenue,CCHD,Under 65s PWLD - KH,Residential Homes,East Court,534.09, 17-Apr-2012
853,Revenue,CCHD,Minor Adaptations Service,Operational Equipment,Eastman & Co (Timber) Limited,935.14, 17-Apr-2012
854,Revenue,CCHD,Charlton,Electricity,EDF Energy 1 Limited,1258.73, 11-Apr-2012
855,Revenue,CCHD,Woodleaze,Electricity,EDF Energy 1 Limited,1047.69, 11-Apr-2012
856,Revenue,CCHD,Newton House,Electricity,EDF Energy 1 Limited,924.04, 11-Apr-2012
857,Revenue,CCHD,Frenchay Hospital Purchasing,Residential Homes,Edgecumbe Lodge,887.88, 17-Apr-2012
858,Revenue,CCHD,Southmead Hospital Purchasing,Residential Homes,Edgecumbe Lodge,929.4, 17-Apr-2012
859,Revenue,CCHD,Bed Purchasing - Elderly - South,Residential Homes,Edgecumbe Lodge,922.05, 17-Apr-2012
860,Revenue,CCHD,Frenchay Hospital Purchasing,Residential Homes,Edgecumbe Lodge,832.89, 17-Apr-2012
861,Revenue,CCHD,Southmead Hospital Purchasing,Residential Homes,Edgecumbe Lodge,877.85, 17-Apr-2012
862,Revenue,CCHD,Frenchay Hospital Purchasing,Residential Homes,Edgecumbe Lodge,792, 17-Apr-2012
863,Revenue,CCHD,Bed Purchasing - Elderly MH - South,Residential Homes,Edgecumbe Lodge,860.88, 17-Apr-2012
864,Revenue,CCHD,Bed Purchasing - Elderly - North,Residential Homes,Edgemont House Ltd,1514.29, 17-Apr-2012
865,Revenue,CCHD,Bed purchasing - Elderly PWLD - South,Residential Homes,Edgemont House Ltd,983.16, 17-Apr-2012
866,Revenue,CCHD,Bed Purchasing - Elderly - South,Residential Homes,Edgemont House Ltd,1015.08, 17-Apr-2012
867,Revenue,CCHD,Bed Purchasing - Elderly - South,Residential Homes,Edgemont House Ltd,932.58, 17-Apr-2012
868,Revenue,CCHD,Bed Purchasing - Elderly - North,Residential Homes,Edgemont House Ltd,1285, 17-Apr-2012
869,Revenue,CCHD,Bed Purchasing - Elderly - South,Residential Homes,Edgemont House Ltd,847.05, 17-Apr-2012
870,Revenue,CCHD,Frenchay Hospital Purchasing,Residential Homes,Edgemont House Ltd,1021.17, 17-Apr-2012
871,Revenue,CCHD,Bed Purchasing - Elderly - South,Nursing Homes,Edgemont View Nursing Home,1063.89, 17-Apr-2012
872,Revenue,CCHD,Frenchay Hospital Purchasing,Nursing Homes,Edgemont View Nursing Home,1010.88, 17-Apr-2012
873,Revenue,CCHD,Bed Purchasing - Elderly - South,Nursing Homes,Edgemont View Nursing Home,947.4, 17-Apr-2012
874,Revenue,CCHD,Bed Purchasing - Elderly - South,Nursing Homes,Edgemont View Nursing Home,1202.07, 17-Apr-2012
875,Revenue,CCHD,Frenchay Hospital Purchasing,Nursing Homes,Edgemont View Nursing Home,963.93, 17-Apr-2012
876,Revenue,CCHD,Training - Adult Services,Training Expenses,Effective Training & Consultancy Limited,778.5, 05-Apr-2012
877,Revenue,CCHD,Supporting People Programme,Grants to Voluntary Bodies,Elim Housing Association Ltd,950.27, 10-Apr-2012
878,Revenue,CCHD,Home Care - Elderly - South,Other Small Contracts,Elite Home Care Ltd,2383.73, 12-Apr-2012
879,Revenue,CCHD,Day Care - South,Private & Voluntary Day Care,Elite Home Care Ltd,102, 12-Apr-2012
880,Revenue,CCHD,Home care - Elderly MH - North,Other Small Contracts,Elite Home Care Ltd,289, 12-Apr-2012
881,Revenue,CCHD,Home Care - Elderly - South,Other Small Contracts,Elite Home Care Ltd,2473.5, 10-Apr-2012
882,Revenue,CCHD,Day Care - South,Private & Voluntary Day Care,Elite Home Care Ltd,102, 10-Apr-2012
883,Revenue,CCHD,Home care - Elderly MH - North,Other Small Contracts,Elite Home Care Ltd,289, 10-Apr-2012
884,Revenue,CCHD,Home Care - Elderly - South,Other Small Contracts,Elite Home Care Ltd,2363, 10-Apr-2012
885,Revenue,CCHD,Day Care - South,Private & Voluntary Day Care,Elite Home Care Ltd,102, 10-Apr-2012
886,Revenue,CCHD,Home care - Elderly MH - North,Other Small Contracts,Elite Home Care Ltd,293.25, 10-Apr-2012
887,Revenue,CCHD,Home Care - Elderly - South,Other Small Contracts,Elite Home Care Ltd,2435.25, 13-Apr-2012
888,Revenue,CCHD,Day Care - South,Private & Voluntary Day Care,Elite Home Care Ltd,51, 13-Apr-2012
889,Revenue,CCHD,Under 65s -MH  Home Care Purch,Other Small Contracts,Elite Home Care Ltd,76.5, 13-Apr-2012
890,Revenue,CCHD,Home care - Elderly MH - North,Other Small Contracts,Elite Home Care Ltd,293.25, 13-Apr-2012
891,Revenue,CCHD,Bed Purchasing - Elderly - South,Residential Homes,Elmbridge Residential Home Ltd,1305.77, 17-Apr-2012
892,Revenue,CCHD,Frenchay Hospital Purchasing,Nursing Homes,Elmwood Nursing Home,2200.58, 17-Apr-2012
893,Revenue,CCHD,Younger MH non-res purchasing,Private & Voluntary Day Care,Enham,638.72, 23-Apr-2012
894,Revenue,CCHD,Training - Adult Services,Training Expenses,Equality & Diversity UK Limited,1543, 27-Apr-2012
895,Revenue,CCHD,Home Care - Elderly - South,Other Small Contracts,Everycare (Bristol) Ltd,359.31, 17-Apr-2012
896,Revenue,CCHD,Home Care - Elderly - North,Other Small Contracts,Everycare (Bristol) Ltd,280.84, 17-Apr-2012
897,Revenue,CCHD,Bed Purchasing - Elderly MH - South,Residential Homes,Exmouth House,1037.19, 17-Apr-2012
898,Revenue,CCHD,Bed Purchasing - Elderly MH - South,Residential Homes,Fairview Court,1052.4, 17-Apr-2012
899,Revenue,CCHD,Bed Purchasing - Elderly - South,Residential Homes,Fairview Court,1967.52, 17-Apr-2012
900,Revenue,CCHD,Bed Purchasing - Elderly - South,Residential Homes,Fairview Court,645, 17-Apr-2012
901,Revenue,CCHD,South Glos Users in South Glos Homes,Nursing Homes,Fairview Court,4348, 17-Apr-2012
902,Revenue,CCHD,Bed Purchasing - Elderly - South,Residential Homes,Fairview Court,1588.92, 17-Apr-2012
903,Revenue,CCHD,Bed Purchasing - Elderly - South,Residential Homes,Fairview Court,523.25, 17-Apr-2012
904,Revenue,CCHD,Frenchay Hospital Purchasing,Nursing Homes,Fairview Court Care Home,531.88, 10-Apr-2012
905,Revenue,CCHD,South Glos Users in South Glos Homes,Nursing Homes,Fairview Court Care Home,2127.41, 10-Apr-2012
906,Revenue,CCHD,Bed purchasing - Phys Dis - North,Nursing Homes,Fairview Court Care Home,1949.28, 10-Apr-2012
907,Revenue,CCHD,Bed purchasing - Elderly MH - North,Nursing Homes,Fairview Court Care Home,2066.82, 10-Apr-2012
908,Revenue,CCHD,Bed Purchasing - Elderly S117- North,Nursing Homes,Fairview Court Care Home,2507.9, 10-Apr-2012
909,Revenue,CCHD,Frenchay Hospital Purchasing,Residential Homes,Fairview House,645.45, 17-Apr-2012
910,Revenue,CCHD,Frenchay Hospital Purchasing,Residential Homes,Fairview House,746.58, 17-Apr-2012
911,Revenue,CCHD,Bed purchasing - Elderly S117 - South,Residential Homes,Fairview House,1403.19, 17-Apr-2012
912,Revenue,CCHD,Southmead Hospital Purchasing,Residential Homes,Fairview House,765.81, 17-Apr-2012
913,Revenue,CCHD,Southmead Hospital Purchasing,Residential Homes,Fairview House,1674.75, 17-Apr-2012
914,Revenue,CCHD,Southmead Hospital Purchasing,Residential Homes,Fairview House,1076.1, 17-Apr-2012
915,Revenue,CCHD,Southmead Hospital Purchasing,Residential Homes,Fairview House,833.46, 17-Apr-2012
916,Revenue,CCHD,Bed Purchasing - Elderly MH - South,Residential Homes,Fairview House,822.9, 17-Apr-2012
917,Revenue,CCHD,Frenchay Hospital Purchasing,Residential Homes,Fairview House,929.4, 17-Apr-2012
918,Revenue,CCHD,Bed Purchasing - Elderly MH - South,Residential Homes,Fairview House,778.83, 17-Apr-2012
919,Revenue,CCHD,Bed Purchasing - Elderly MH - South,Residential Homes,Fairview House,884.7, 17-Apr-2012
920,Revenue,CCHD,Frenchay Hospital Purchasing,Residential Homes,Fairview House,974.97, 17-Apr-2012
921,Revenue,CCHD,Bed Purchasing - Elderly - North,Residential Homes,Faith House,653.37, 17-Apr-2012
922,Revenue,CCHD,Frenchay Hospital Purchasing,Residential Homes,Faith House,976.5, 17-Apr-2012
923,Revenue,CCHD,Bed Purchasing - Elderly - North,Residential Homes,Faith House,829.8, 17-Apr-2012
924,Revenue,CCHD,Bed purchasing - Under 65s PWLD - North,Residential Homes,Fernbank,8447.19, 17-Apr-2012
925,Revenue,CCHD,Southmead Hospital Purchasing,Nursing Homes,Field House Care Home,2693.55, 17-Apr-2012
926,Revenue,CCHD,Learning Difficulties Development Fund,Other Supplies & Services,Forest of Avon Trust,12070, 19-Apr-2012
927,Revenue,CCHD,Bed Purchasing - Elderly - South,Nursing Homes,Four Seasons Health Care,933.09, 17-Apr-2012
928,Revenue,CCHD,Frenchay Hospital Purchasing,Residential Homes,Four Seasons Health Care,669.09, 17-Apr-2012
929,Revenue,CCHD,Bed Purchasing - Elderly MH - South,Nursing Homes,Four Seasons Health Care,1022.4, 17-Apr-2012
930,Revenue,CCHD,Southmead Hospital Purchasing,Nursing Homes,Four Seasons Health Care,3613.4, 17-Apr-2012
931,Revenue,CCHD,Southmead Hospital Purchasing,Nursing Homes,Four Seasons Health Care,1022.4, 17-Apr-2012
932,Revenue,CCHD,Frenchay Hospital Purchasing,Nursing Homes,Four Seasons Health Care,1022.4, 17-Apr-2012
933,Revenue,CCHD,Frenchay Hospital Purchasing,Nursing Homes,Four Seasons Health Care,1380, 17-Apr-2012
934,Revenue,CCHD,Southmead Hospital Purchasing,Nursing Homes,Four Seasons Health Care,1022.4, 17-Apr-2012
935,Revenue,CCHD,Frenchay Hospital Purchasing,Nursing Homes,Four Seasons Health Care,1300.82, 17-Apr-2012
936,Revenue,CCHD,Southmead Hospital Purchasing,Nursing Homes,Four Seasons Health Care,1022.4, 17-Apr-2012
937,Revenue,CCHD,Bed purchasing - Elderly MH - North,Residential Homes,Four Seasons Health Care,929.4, 17-Apr-2012
938,Revenue,CCHD,Southmead Hospital Purchasing,Nursing Homes,Four Seasons Health Care,1300.82, 17-Apr-2012
939,Revenue,CCHD,Bed Purchasing - Elderly - South,Nursing Homes,Four Seasons Health Care,677.88, 17-Apr-2012
940,Revenue,CCHD,Southmead Hospital Purchasing,Nursing Homes,Four Seasons Health Care,1022.4, 17-Apr-2012
941,Revenue,CCHD,Bed Purchasing - Elderly - South,Nursing Homes,Four Seasons Health Care,1021.23, 17-Apr-2012
942,Revenue,CCHD,Cash for Change Discharges,Nursing Homes,Four Seasons Health Care,1022.4, 17-Apr-2012
943,Revenue,CCHD,Southmead Hospital Purchasing,Nursing Homes,Four Seasons Health Care,4480.6, 17-Apr-2012
944,Revenue,CCHD,Southmead Hospital Purchasing,Nursing Homes,Four Seasons Health Care,1022.4, 17-Apr-2012
945,Revenue,CCHD,Bed Purchasing - Elderly - South,Nursing Homes,Four Seasons Health Care,995.4, 17-Apr-2012
946,Revenue,CCHD,Southmead Hospital Purchasing,Nursing Homes,Four Seasons Health Care,1022.4, 17-Apr-2012
947,Revenue,CCHD,Bed Purchasing - Elderly - South,Nursing Homes,Four Seasons Health Care,945.69, 17-Apr-2012
948,Revenue,CCHD,Southmead Hospital Purchasing,Nursing Homes,Four Seasons Health Care,951.9, 17-Apr-2012
949,Revenue,CCHD,Bed Purchasing - Elderly - South,Nursing Homes,Four Seasons Health Care,1022.4, 17-Apr-2012
950,Revenue,CCHD,Bed Purchasing - Elderly MH - South,Nursing Homes,Four Seasons Health Care,1022.4, 17-Apr-2012
951,Revenue,CCHD,Bed Purchasing - Elderly - South,Nursing Homes,Four Seasons Health Care,800.37, 17-Apr-2012
952,Revenue,CCHD,Bed Purchasing - Elderly - South,Nursing Homes,Four Seasons Health Care,995.4, 17-Apr-2012
953,Revenue,CCHD,Frenchay Hospital Purchasing,Nursing Homes,Four Seasons Health Care,722.68, 17-Apr-2012
954,Revenue,CCHD,Frenchay Hospital Purchasing,Nursing Homes,Four Seasons Health Care,803.7, 17-Apr-2012
955,Revenue,CCHD,Bed Purchasing - Elderly MH - South,Residential Homes,Four Seasons Health Care,813.39, 17-Apr-2012
956,Revenue,CCHD,Bed Purchasing - Elderly - South,Nursing Homes,Four Seasons Health Care,1022.4, 17-Apr-2012
957,Revenue,CCHD,Bed Purchasing - Elderly - South,Nursing Homes,Four Seasons Health Care,1021.35, 17-Apr-2012
958,Revenue,CCHD,Frenchay Hospital Purchasing,Nursing Homes,Four Seasons Health Care,1028.4, 17-Apr-2012
959,Revenue,CCHD,Bed Purchasing - Elderly MH - South,Nursing Homes,Four Seasons Health Care,909.33, 17-Apr-2012
960,Revenue,CCHD,Bed Purchasing - Elderly - North,Nursing Homes,Four Seasons Health Care,743.13, 17-Apr-2012
961,Revenue,CCHD,Frenchay Hospital Purchasing,Nursing Homes,Four Seasons Health Care,1151.4, 17-Apr-2012
962,Revenue,CCHD,Frenchay Hospital Purchasing,Nursing Homes,Four Seasons Health Care,960.63, 17-Apr-2012
963,Revenue,CCHD,Southmead Hospital Purchasing,Residential Homes,Four Seasons Health Care,921.99, 17-Apr-2012
964,Revenue,CCHD,Bed Purchasing - Elderly - North,Residential Homes,Four Seasons Health Care,769.86, 17-Apr-2012
965,Revenue,CCHD,Bed Purchasing - Elderly - North,Nursing Homes,Four Seasons Health Care,915.33, 17-Apr-2012
966,Revenue,CCHD,Bed purchasing - Elderly MH - North,Nursing Homes,Four Seasons Health Care,995.4, 17-Apr-2012
967,Revenue,CCHD,Frenchay Hospital Purchasing,Nursing Homes,Four Seasons Health Care,966.96, 17-Apr-2012
968,Revenue,CCHD,Bed Purchasing - Elderly - North,Nursing Homes,Four Seasons Health Care,1022.4, 17-Apr-2012
969,Revenue,CCHD,Southmead Hospital Purchasing,Nursing Homes,Four Seasons Health Care,1022.4, 17-Apr-2012
970,Revenue,CCHD,Bed Purchasing - Elderly - North,Nursing Homes,Four Seasons Health Care,1022.4, 17-Apr-2012
971,Revenue,CCHD,Bed purchasing - Elderly MH - North,Nursing Homes,Four Seasons Health Care,1093.11, 17-Apr-2012
972,Revenue,CCHD,Bed Purchasing - Elderly - North,Nursing Homes,Four Seasons Health Care,948.15, 17-Apr-2012
973,Revenue,CCHD,Bed Purchasing - Elderly - North,Nursing Homes,Four Seasons Health Care,822.42, 17-Apr-2012
974,Revenue,CCHD,Southmead Hospital Purchasing,Nursing Homes,Four Seasons Health Care,1017.42, 17-Apr-2012
975,Revenue,CCHD,Frenchay Hospital Purchasing,Nursing Homes,Four Seasons Health Care,963.3, 17-Apr-2012
976,Revenue,CCHD,Bed purchasing - Elderly MH - North,Nursing Homes,Four Seasons Health Care,1076.73, 17-Apr-2012
977,Revenue,CCHD,Frenchay Hospital Purchasing,Nursing Homes,Four Seasons Health Care,1007.55, 17-Apr-2012
978,Revenue,CCHD,Bed Purchasing - Elderly - North,Nursing Homes,Four Seasons Health Care,770.52, 17-Apr-2012
979,Revenue,CCHD,Bed Purchasing - Elderly - North,Nursing Homes,Four Seasons Health Care,588.91, 17-Apr-2012
980,Revenue,CCHD,Bed Purchasing - Elderly - North,Nursing Homes,Four Seasons Health Care,1124.4, 17-Apr-2012
981,Revenue,CCHD,Bed Purchasing - Elderly - North,Nursing Homes,Four Seasons Health Care,1022.4, 17-Apr-2012
982,Revenue,CCHD,Bed Purchasing - Elderly - North,Nursing Homes,Four Seasons Health Care,1073.85, 17-Apr-2012
983,Revenue,CCHD,Southmead Hospital Purchasing,Residential Homes,Four Seasons Health Care,528.87, 17-Apr-2012
984,Revenue,CCHD,Bed purchasing - Elderly MH - North,Nursing Homes,Four Seasons Health Care,1066.08, 17-Apr-2012
985,Revenue,CCHD,Southmead Hospital Purchasing,Nursing Homes,Four Seasons Health Care,1081.74, 17-Apr-2012
986,Revenue,CCHD,Southmead Hospital Purchasing,Nursing Homes,Four Seasons Health Care,1151.4, 17-Apr-2012
987,Revenue,CCHD,Bed purchasing - Elderly MH - North,Residential Homes,Four Seasons Health Care,897.87, 17-Apr-2012
988,Revenue,CCHD,Southmead Hospital Purchasing,Residential Homes,Four Seasons Health Care,929.4, 17-Apr-2012
989,Revenue,CCHD,Bed purchasing - Elderly MH - North,Residential Homes,Four Seasons Health Care,1024.53, 17-Apr-2012
990,Revenue,CCHD,Bed Purchasing - Elderly - North,Nursing Homes,Four Seasons Health Care,1009.95, 17-Apr-2012
991,Revenue,CCHD,Bed purchasing - Elderly MH - North,Nursing Homes,Four Seasons Health Care,768.93, 17-Apr-2012
992,Revenue,CCHD,Frenchay Hospital Purchasing,Nursing Homes,Four Seasons Health Care,1022.4, 17-Apr-2012
993,Revenue,CCHD,Southmead Hospital Purchasing,Nursing Homes,Four Seasons Health Care,1958.36, 17-Apr-2012
994,Revenue,CCHD,Bed Purchasing - Elderly - North,Residential Homes,Four Seasons Health Care,1316.78, 17-Apr-2012
995,Revenue,CCHD,Bed Purchasing - Elderly - North,Residential Homes,Four Seasons Health Care,929.4, 17-Apr-2012
996,Revenue,CCHD,Frenchay Hospital Purchasing,Nursing Homes,Four Seasons Health Care,903.33, 17-Apr-2012
997,Revenue,CCHD,Bed Purchasing - Elderly - South,Nursing Homes,Four Seasons Health Care,729.87, 17-Apr-2012
998,Revenue,CCHD,Frenchay Hospital Purchasing,Nursing Homes,Four Seasons Health Care,1349, 17-Apr-2012
999,Revenue,CCHD,Frenchay Hospital Purchasing,Nursing Homes,Four Seasons Health Care,1022.4, 17-Apr-2012
1000,Revenue,CCHD,Bed Purchasing - Elderly - North,Nursing Homes,Four Seasons Health Care,955.29, 17-Apr-2012
1001,Revenue,CCHD,Frenchay Hospital Purchasing,Nursing Homes,Four Seasons Health Care,970.62, 17-Apr-2012
1002,Revenue,CCHD,Frenchay Hospital Purchasing,Nursing Homes,Four Seasons Health Care,1022.4, 17-Apr-2012
1003,Revenue,CCHD,Bed Purchasing - Elderly - North,Nursing Homes,Four Seasons Health Care,1049.4, 17-Apr-2012
1004,Revenue,CCHD,Frenchay Hospital Purchasing,Nursing Homes,Four Seasons Health Care,1022.4, 17-Apr-2012
1005,Revenue,CCHD,Frenchay Hospital Purchasing,Nursing Homes,Four Seasons Health Care,1022.4, 17-Apr-2012
1006,Revenue,CCHD,Frenchay Hospital Purchasing,Nursing Homes,Four Seasons Health Care,1034.4, 17-Apr-2012
1007,Revenue,CCHD,Bed Purchasing - Elderly - South,Nursing Homes,Four Seasons Health Care,795.54, 17-Apr-2012
1008,Revenue,CCHD,Bed Purchasing - Elderly - North,Nursing Homes,Four Seasons Health Care,1808, 17-Apr-2012
1009,Revenue,CCHD,Southmead Hospital Purchasing,Residential Homes,Four Seasons Health Care,838.53, 17-Apr-2012
1010,Revenue,CCHD,Bed Purchasing - Elderly S117- North,Nursing Homes,Four Seasons Health Care,1092, 17-Apr-2012
1011,Revenue,CCHD,Southmead Hospital Purchasing,Nursing Homes,Four Seasons Health Care,1022.4, 17-Apr-2012
1012,Revenue,CCHD,Southmead Hospital Purchasing,Nursing Homes,Four Seasons Health Care,1871, 17-Apr-2012
1013,Revenue,CCHD,Southmead Hospital Purchasing,Nursing Homes,Four Seasons Health Care,1023.84, 17-Apr-2012
1014,Revenue,CCHD,South Glos Users in South Glos Homes,Nursing Homes,Four Seasons Health Care,3183.36, 17-Apr-2012
1015,Revenue,CCHD,Southmead Hospital Purchasing,Nursing Homes,Four Seasons Health Care,2539.68, 17-Apr-2012
1016,Revenue,CCHD,Bed purchasing - Phys Dis - North,Nursing Homes,Four Seasons Health Care,876.48, 17-Apr-2012
1017,Revenue,CCHD,Frenchay Hospital Purchasing,Nursing Homes,Four Seasons Health Care,997.14, 17-Apr-2012
1018,Revenue,CCHD,South Glos Users in South Glos Homes,Nursing Homes,Four Seasons Health Care,512.44, 17-Apr-2012
1019,Revenue,CCHD,Southmead Hospital Purchasing,Nursing Homes,Four Seasons Health Care,1002.63, 17-Apr-2012
1020,Revenue,CCHD,Bed purchasing - Phys Dis - North,Nursing Homes,Four Seasons Health Care,1364.59, 17-Apr-2012
1021,Revenue,CCHD,Bed Purchasing - Elderly - South,Nursing Homes,Four Seasons Health Care,928.98, 17-Apr-2012
1022,Revenue,CCHD,Southmead Hospital Purchasing,Nursing Homes,Four Seasons Health Care,969.27, 17-Apr-2012
1023,Revenue,CCHD,Bed purchasing - Elderly MH - North,Residential Homes,Four Seasons Health Care,1047.15, 17-Apr-2012
1024,Revenue,CCHD,Southmead Hospital Purchasing,Residential Homes,Four Seasons Health Care,872.76, 17-Apr-2012
1025,Revenue,CCHD,Frenchay Hospital Purchasing,Nursing Homes,Four Seasons Health Care,919.17, 17-Apr-2012
1026,Revenue,CCHD,Southmead Hospital Purchasing,Nursing Homes,Four Seasons Health Care,3692.32, 17-Apr-2012
1027,Revenue,CCHD,Bed purchasing - Elderly PWLD - South,Residential Homes,Four Seasons Health Care,929.4, 17-Apr-2012
1028,Revenue,CCHD,Frenchay Hospital Purchasing,Nursing Homes,Four Seasons Health Care,1022.4, 17-Apr-2012
1029,Revenue,CCHD,Southmead Hospital Purchasing,Nursing Homes,Four Seasons Health Care,827.82, 17-Apr-2012
1030,Revenue,CCHD,Bed Purchasing - Elderly - South,Nursing Homes,Four Seasons Health Care,964.89, 17-Apr-2012
1031,Revenue,CCHD,Bed Purchasing - Elderly - South,Nursing Homes,Four Seasons Health Care,1022.4, 17-Apr-2012
1032,Revenue,CCHD,Bed Purchasing - Elderly - South,Nursing Homes,Four Seasons Health Care,1014.36, 17-Apr-2012
1033,Revenue,CCHD,Frenchay Hospital Purchasing,Residential Homes,Four Seasons Health Care,560.88, 17-Apr-2012
1034,Revenue,CCHD,Southmead Hospital Purchasing,Nursing Homes,Four Seasons Health Care,854.19, 17-Apr-2012
1035,Revenue,CCHD,Bed Purchasing - Elderly - South,Residential Homes,Four Seasons Health Care,648.96, 17-Apr-2012
1036,Revenue,CCHD,Southmead Hospital Purchasing,Nursing Homes,Four Seasons Health Care,978.72, 17-Apr-2012
1037,Revenue,CCHD,Southmead Hospital Purchasing,Residential Homes,Four Seasons Health Care,1039.5, 17-Apr-2012
1038,Revenue,CCHD,Bed Purchasing - Elderly - South,Residential Homes,Four Seasons Health Care,542.88, 17-Apr-2012
1039,Revenue,CCHD,Frenchay Hospital Purchasing,Nursing Homes,Four Seasons Health Care,577.08, 17-Apr-2012
1040,Revenue,CCHD,Bed Purchasing - Elderly - South,Nursing Homes,Four Seasons Health Care,710.4, 17-Apr-2012
1041,Revenue,CCHD,Frenchay Hospital Purchasing,Residential Homes,Four Seasons Health Care,929.4, 17-Apr-2012
1042,Revenue,CCHD,Bed purchasing - Elderly S117 - South,Nursing Homes,Four Seasons Health Care,1380, 17-Apr-2012
1043,Revenue,CCHD,Frenchay Hospital Purchasing,Residential Homes,Four Seasons Health Care,827.13, 17-Apr-2012
1044,Revenue,CCHD,Bed Purchasing - Elderly MH - South,Nursing Homes,Four Seasons Health Care,881.1, 17-Apr-2012
1045,Revenue,CCHD,South Glos Users in South Glos Homes,Nursing Homes,Four Seasons Health Care,698.79, 17-Apr-2012
1046,Revenue,CCHD,Frenchay Hospital Purchasing,Nursing Homes,Four Seasons Health Care,1022.4, 17-Apr-2012
1047,Revenue,CCHD,Southmead Hospital Purchasing,Nursing Homes,Four Seasons Health Care,1018.47, 17-Apr-2012
1048,Revenue,CCHD,Bed Purchasing - Elderly - South,Nursing Homes,Four Seasons Health Care,529.97, 17-Apr-2012
1049,Revenue,CCHD,Bed Purchasing - Elderly MH - South,Residential Homes,Four Seasons Health Care,702.48, 17-Apr-2012
1050,Revenue,CCHD,Southmead Hospital Purchasing,Nursing Homes,Four Seasons Health Care,6889.53, 17-Apr-2012
1051,Revenue,CCHD,Southmead Hospital Purchasing,Nursing Homes,Four Seasons Health Care,1022.4, 17-Apr-2012
1052,Revenue,CCHD,Frenchay Hospital Purchasing,Nursing Homes,Four Seasons Health Care,832.17, 17-Apr-2012
1053,Revenue,CCHD,Southmead Hospital Purchasing,Nursing Homes,Four Seasons Health Care,533.43, 17-Apr-2012
1054,Revenue,CCHD,Bed Purchasing - Elderly - North,Nursing Homes,Four Seasons Health Care,977.07, 17-Apr-2012
1055,Revenue,CCHD,Southmead Hospital Purchasing,Nursing Homes,Four Seasons Health Care,2119.85, 17-Apr-2012
1056,Revenue,CCHD,Southmead Hospital Purchasing,Nursing Homes,Four Seasons Health Care,743.85, 17-Apr-2012
1057,Revenue,CCHD,Southmead Hospital Purchasing,Nursing Homes,Four Seasons Health Care,670.77, 17-Apr-2012
1058,Revenue,CCHD,Bed Purchasing - Elderly S117- North,Residential Homes,Four Seasons Health Care,1508.28, 17-Apr-2012
1059,Revenue,CCHD,Frenchay Hospital Purchasing,Residential Homes,Four Seasons Health Care,1136.88, 17-Apr-2012
1060,Revenue,CCHD,Freeways,Residential Homes,Freeways Trust Limited,44222.37, 10-Apr-2012
1061,Revenue,CCHD,Supported Living - PS,Private & Voluntary Home Care,Freeways Trust Limited,1969.45, 17-Apr-2012
1062,Revenue,CCHD,Supported Living - PS,Private & Voluntary Home Care,Freeways Trust Limited,1287, 17-Apr-2012
1063,Revenue,CCHD,Purchase of Non-Res Care - PS,Private & Voluntary Day Care,Freeways Trust Limited,770, 17-Apr-2012
1064,Revenue,CCHD,Bed purchasing - Under 65s PWLD - North,Residential Homes,Freeways Trust Ltd,2093.91, 17-Apr-2012
1065,Revenue,CCHD,Bed purchasing - Under 65s PWLD - North,Residential Homes,Freeways Trust Ltd,689.25, 17-Apr-2012
1066,Revenue,CCHD,Bed purchasing - S28A Under 65 - South,Residential Homes,Freeways Trust Ltd,2867, 17-Apr-2012
1067,Revenue,CCHD,Bed purchasing - Under 65s PWLD - North,Residential Homes,Freeways Trust Ltd,2238.41, 17-Apr-2012
1068,Revenue,CCHD,Bed purchasing - Under 65s PWLD - North,Residential Homes,Freeways Trust Ltd,1993.23, 17-Apr-2012
1069,Revenue,CCHD,Bed purchasing - Under 65s PWLD - North,Residential Homes,Freeways Trust Ltd,656.25, 17-Apr-2012
1070,Revenue,CCHD,Bed purchasing - Under 65s PWLD - North,Residential Homes,Freeways Trust Ltd,1674.39, 17-Apr-2012
1071,Revenue,CCHD,Bed purchasing - Under 65s PWLD - North,Residential Homes,Freeways Trust Ltd,1999.71, 17-Apr-2012
1072,Revenue,CCHD,Bed purchasing - Under 65s PWLD - North,Residential Homes,Freeways Trust Ltd,658.37, 17-Apr-2012
1073,Revenue,CCHD,Bed Purchasing - Under 65s PWLD - South,Residential Homes,Freeways Trust Ltd,2456.64, 17-Apr-2012
1074,Revenue,CCHD,Under 65s PWLD - KH,Residential Homes,Freeways Trust Ltd,804.13, 17-Apr-2012
1075,Revenue,CCHD,Bed purchasing - Elderly PWLD - North,Residential Homes,Freeways Trust Ltd,1664.43, 17-Apr-2012
1076,Revenue,CCHD,Bed purchasing - Elderly PWLD - North,Residential Homes,Freeways Trust Ltd,548.12, 17-Apr-2012
1077,Revenue,CCHD,Bed Purchasing - Under 65s PWLD - South,Residential Homes,Freeways Trust Ltd,1773.21, 17-Apr-2012
1078,Revenue,CCHD,Under 65s PWLD - KH,Residential Homes,Freeways Trust Ltd,583.78, 17-Apr-2012
1079,Revenue,CCHD,Under 65s PWLD - KH,Residential Homes,Freeways Trust Ltd,658.37, 17-Apr-2012
1080,Revenue,CCHD,Bed purchasing - Elderly PWLD - North,Residential Homes,Freeways Trust Ltd,1869.18, 17-Apr-2012
1081,Revenue,CCHD,Bed purchasing - Elderly PWLD - North,Residential Homes,Freeways Trust Ltd,615.25, 17-Apr-2012
1082,Revenue,CCHD,Section 117 Placements MH Younger,Residential Homes,Freeways Trust Ltd,3278.8, 17-Apr-2012
1083,Revenue,CCHD,Frenchay Hospital Purchasing,Nursing Homes,Frenchay Park Nursing Home,909.27, 17-Apr-2012
1084,Revenue,CCHD,Woodleaze,Furniture & Fittings Loose,Geoff Lewis Flooring Limited,6795, 24-Apr-2012
1085,Revenue,CCHD,Bed Purchasing - Under 65s PWLD - South,Residential Homes,Glasallt Fawr,4501.9, 17-Apr-2012
1086,Revenue,CCHD,South Glos Users in South Glos Homes,Nursing Homes,Glebe House Nursing Home,2577.74, 17-Apr-2012
1087,Revenue,CCHD,Bed Purchasing - Elderly - North,Nursing Homes,Glebe House Nursing Home,1036.41, 17-Apr-2012
1088,Revenue,CCHD,South Glos Users in South Glos Homes,Nursing Homes,Glebe House Nursing Home,1118.06, 17-Apr-2012
1089,Revenue,CCHD,Bed Purchasing - Elderly - South,Residential Homes,Glebe House Nursing Home,1472.64, 17-Apr-2012
1090,Revenue,CCHD,Bed Purchasing - Elderly - North,Nursing Homes,Glebe House Nursing Home,996.36, 17-Apr-2012
1091,Revenue,CCHD,Section 117 Placements MH Younger,Residential Homes,Glebe House Nursing Home,5344.67, 17-Apr-2012
1092,Revenue,CCHD,Southmead Hospital Purchasing,Nursing Homes,Glebe House Nursing Home,971.4, 17-Apr-2012
1093,Revenue,CCHD,Southmead Hospital Purchasing,Nursing Homes,Glebe House Nursing Home,1248.66, 17-Apr-2012
1094,Revenue,CCHD,Bed purchasing - Phys Dis - South,Nursing Homes,Glenside Centre For Brain Injury,7043.15, 17-Apr-2012
1095,Revenue,CCHD,Bed Purchasing - Under 65s PWLD - South,Residential Homes,Gordena Care Home,1547.52, 17-Apr-2012
1096,Revenue,CCHD,Under 65s PWLD - KH,Residential Homes,Gordena Care Home,510.13, 17-Apr-2012
1097,Revenue,CCHD,Bed purchasing - Elderly PWLD - South,Residential Homes,Gordena Care Home,3518.97, 17-Apr-2012
1098,Revenue,CCHD,Elderly PWLD - KH,Residential Homes,Gordena Care Home,1156.09, 17-Apr-2012
1099,Revenue,CCHD,Bed purchasing - Elderly PWLD - South,Residential Homes,Gordena Care Home,2191.5, 17-Apr-2012
1100,Revenue,CCHD,Elderly PWLD - KH,Residential Homes,Gordena Care Home,716.53, 17-Apr-2012
1101,Revenue,CCHD,Bed Purchasing - Under 65s PWLD - South,Residential Homes,Gordena Care Home,1420.53, 17-Apr-2012
1102,Revenue,CCHD,Under 65s PWLD - KH,Residential Homes,Gordena Care Home,509.17, 17-Apr-2012
1103,Revenue,CCHD,Bed Purchasing - Under 65s PWLD - South,Residential Homes,Gordena Care Limited,11938.32, 17-Apr-2012
1104,Revenue,CCHD,Bed purchasing - S28A Under 65 - South,Residential Homes,Gordena Care Limited,16723.86, 17-Apr-2012
1105,Revenue,CCHD,Home Care - Elderly - South,Other Small Contracts,Greenbanks Homecare (Western) Limited,3910.18, 10-Apr-2012
1106,Revenue,CCHD,Home Care - Elderly - North,Other Small Contracts,Greenbanks Homecare (Western) Limited,270.2, 10-Apr-2012
1107,Revenue,CCHD,Day Care - South,Private & Voluntary Day Care,Greenbanks Homecare (Western) Limited,289.5, 10-Apr-2012
1108,Revenue,CCHD,Day Care - North,Private & Voluntary Day Care,Greenbanks Homecare (Western) Limited,177.56, 10-Apr-2012
1109,Revenue,CCHD,Carer`s Grant - South,Carers Breaks & Services,Greenbanks Homecare (Western) Limited,108.08, 10-Apr-2012
1110,Revenue,CCHD,Home care - Elderly MH - North,Other Small Contracts,Greenbanks Homecare (Western) Limited,521.1, 10-Apr-2012
1111,Revenue,CCHD,Elderly MH Day Care North,Private & Voluntary Day Care,Greenbanks Homecare (Western) Limited,19.3, 10-Apr-2012
1112,Revenue,CCHD,Home Care - Elderly - South,Other Small Contracts,Greenbanks Homecare (Western) Limited,3512.6, 27-Apr-2012
1113,Revenue,CCHD,Home Care - Elderly - North,Other Small Contracts,Greenbanks Homecare (Western) Limited,220.02, 27-Apr-2012
1114,Revenue,CCHD,Day Care - South,Private & Voluntary Day Care,Greenbanks Homecare (Western) Limited,274.06, 27-Apr-2012
1115,Revenue,CCHD,Day Care - North,Private & Voluntary Day Care,Greenbanks Homecare (Western) Limited,46.32, 27-Apr-2012
1116,Revenue,CCHD,Carer`s Grant - South,Carers Breaks & Services,Greenbanks Homecare (Western) Limited,108.08, 27-Apr-2012
1117,Revenue,CCHD,Home care - Elderly MH - North,Other Small Contracts,Greenbanks Homecare (Western) Limited,443.9, 27-Apr-2012
1118,Revenue,CCHD,Elderly MH Day Care North,Private & Voluntary Day Care,Greenbanks Homecare (Western) Limited,23.16, 27-Apr-2012
1119,Revenue,CCHD,Home Care - Elderly - South,Other Small Contracts,Greenbanks Homecare (Western) Limited,3674.72, 27-Apr-2012
1120,Revenue,CCHD,Home Care - Elderly - North,Other Small Contracts,Greenbanks Homecare (Western) Limited,173.7, 27-Apr-2012
1121,Revenue,CCHD,Day Care - South,Private & Voluntary Day Care,Greenbanks Homecare (Western) Limited,208.44, 27-Apr-2012
1122,Revenue,CCHD,Day Care - North,Private & Voluntary Day Care,Greenbanks Homecare (Western) Limited,50.18, 27-Apr-2012
1123,Revenue,CCHD,Carer`s Grant - South,Carers Breaks & Services,Greenbanks Homecare (Western) Limited,108.08, 27-Apr-2012
1124,Revenue,CCHD,Home care - Elderly MH - North,Other Small Contracts,Greenbanks Homecare (Western) Limited,451.62, 27-Apr-2012
1125,Revenue,CCHD,Elderly MH Day Care North,Private & Voluntary Day Care,Greenbanks Homecare (Western) Limited,23.16, 27-Apr-2012
1126,Revenue,CCHD,Home Care - Elderly - South,Other Small Contracts,Greenbanks Homecare (Western) Limited,3277.14, 10-Apr-2012
1127,Revenue,CCHD,Home Care - Elderly - North,Other Small Contracts,Greenbanks Homecare (Western) Limited,185.28, 10-Apr-2012
1128,Revenue,CCHD,Day Care - South,Private & Voluntary Day Care,Greenbanks Homecare (Western) Limited,216.16, 10-Apr-2012
1129,Revenue,CCHD,Day Care - North,Private & Voluntary Day Care,Greenbanks Homecare (Western) Limited,127.38, 10-Apr-2012
1130,Revenue,CCHD,Carer`s Grant - South,Carers Breaks & Services,Greenbanks Homecare (Western) Limited,108.08, 10-Apr-2012
1131,Revenue,CCHD,Home care - Elderly MH - North,Other Small Contracts,Greenbanks Homecare (Western) Limited,413.02, 10-Apr-2012
1132,Revenue,CCHD,Elderly MH Day Care North,Private & Voluntary Day Care,Greenbanks Homecare (Western) Limited,23.16, 10-Apr-2012
1133,Revenue,CCHD,Home Care - Elderly - South,Other Small Contracts,Greenbanks Homecare (Western) Limited,3525.66, 19-Apr-2012
1134,Revenue,CCHD,Home Care - Elderly - North,Other Small Contracts,Greenbanks Homecare (Western) Limited,169.84, 19-Apr-2012
1135,Revenue,CCHD,Day Care - South,Private & Voluntary Day Care,Greenbanks Homecare (Western) Limited,250.9, 19-Apr-2012
1136,Revenue,CCHD,Day Care - North,Private & Voluntary Day Care,Greenbanks Homecare (Western) Limited,185.28, 19-Apr-2012
1137,Revenue,CCHD,Carer`s Grant - South,Carers Breaks & Services,Greenbanks Homecare (Western) Limited,108.08, 19-Apr-2012
1138,Revenue,CCHD,Home care - Elderly MH - North,Other Small Contracts,Greenbanks Homecare (Western) Limited,370.56, 19-Apr-2012
1139,Revenue,CCHD,Elderly MH Day Care North,Private & Voluntary Day Care,Greenbanks Homecare (Western) Limited,30.88, 19-Apr-2012
1140,Revenue,CCHD,Home Care - Elderly - South,Other Small Contracts,Greenbanks Homecare (Western) Limited,3643.84, 19-Apr-2012
1141,Revenue,CCHD,Home Care - Elderly - North,Other Small Contracts,Greenbanks Homecare (Western) Limited,185.28, 19-Apr-2012
1142,Revenue,CCHD,Day Care - South,Private & Voluntary Day Care,Greenbanks Homecare (Western) Limited,289.5, 19-Apr-2012
1143,Revenue,CCHD,Day Care - North,Private & Voluntary Day Care,Greenbanks Homecare (Western) Limited,50.18, 19-Apr-2012
1144,Revenue,CCHD,Carer`s Grant - South,Carers Breaks & Services,Greenbanks Homecare (Western) Limited,111.94, 19-Apr-2012
1145,Revenue,CCHD,Home care - Elderly MH - North,Other Small Contracts,Greenbanks Homecare (Western) Limited,413.02, 19-Apr-2012
1146,Revenue,CCHD,Elderly MH Day Care North,Private & Voluntary Day Care,Greenbanks Homecare (Western) Limited,23.16, 19-Apr-2012
1147,Revenue,CCHD,Bed Purchasing - Elderly - North,Residential Homes,Greensleeves,2594.07, 17-Apr-2012
1148,Revenue,CCHD,Bed purchasing - Under 65s PWLD - North,Residential Homes,Greyhound Care Home,1739.57, 17-Apr-2012
1149,Revenue,CCHD,Frenchay Hospital Purchasing,Residential Homes,Gwendoline House,893.43, 17-Apr-2012
1150,Revenue,CCHD,Bed Purchasing - Elderly - South,Residential Homes,Gwendoline House,1110.09, 17-Apr-2012
1151,Revenue,CCHD,Bed Purchasing - Elderly - South,Residential Homes,Gwendoline House,869.16, 17-Apr-2012
1152,Revenue,CCHD,Bed Purchasing - Elderly MH - South,Residential Homes,Gwendoline House,937.92, 17-Apr-2012
1153,Revenue,CCHD,Bed Purchasing - Elderly - South,Residential Homes,Gwendoline House,1063.68, 17-Apr-2012
1154,Revenue,CCHD,Bed Purchasing - Elderly - South,Residential Homes,Gwendoline House,842.34, 17-Apr-2012
1155,Revenue,CCHD,Bed Purchasing - Elderly - South,Residential Homes,Gwendoline House,723.42, 17-Apr-2012
1156,Revenue,CCHD,Bed Purchasing - Elderly - South,Residential Homes,Harefield Hall,971.11, 17-Apr-2012
1157,Revenue,CCHD,Bed Purchasing - Elderly MH - South,Residential Homes,Harefield Hall,818.61, 17-Apr-2012
1158,Revenue,CCHD,Southmead Hospital Purchasing,Nursing Homes,Hc-One Ltd,1598.62, 17-Apr-2012
1159,Revenue,CCHD,Bed Purchasing - Elderly S117- North,Nursing Homes,Hc-One Ltd,1912, 17-Apr-2012
1160,Revenue,CCHD,Bed Purchasing - Elderly S117- North,Nursing Homes,Hc-One Ltd,1458, 17-Apr-2012
1161,Revenue,CCHD,Southmead Hospital Purchasing,Nursing Homes,Hc-One Ltd,4568.63, 17-Apr-2012
1162,Revenue,CCHD,Southmead Hospital Purchasing,Nursing Homes,Hc-One Ltd,649.07, 17-Apr-2012
1163,Revenue,CCHD,Frenchay Hospital Purchasing,Nursing Homes,Hc-One Ltd,2782.88, 17-Apr-2012
1164,Revenue,CCHD,Bed purchasing - Elderly MH - North,Nursing Homes,Hc-One Ltd,1453, 17-Apr-2012
1165,Revenue,CCHD,Bed purchasing - Elderly MH - North,Nursing Homes,Hc-One Ltd,1100.4, 17-Apr-2012
1166,Revenue,CCHD,Bed purchasing - Elderly MH - North,Nursing Homes,Hc-One Ltd,1210.72, 17-Apr-2012
1167,Revenue,CCHD,Bed purchasing - Elderly MH - North,Nursing Homes,Hc-One Ltd,906.87, 17-Apr-2012
1168,Revenue,CCHD,Bed purchasing - Elderly MH - North,Nursing Homes,Hc-One Ltd,1453, 17-Apr-2012
1169,Revenue,CCHD,Bed purchasing - Elderly MH - North,Nursing Homes,Hc-One Ltd,1100.4, 17-Apr-2012
1170,Revenue,CCHD,Bed purchasing - Elderly MH - North,Nursing Homes,Hc-One Ltd,1166.48, 17-Apr-2012
1171,Revenue,CCHD,Bed purchasing - Elderly MH - North,Nursing Homes,Hc-One Ltd,867.72, 17-Apr-2012
1172,Revenue,CCHD,Frenchay Hospital Purchasing,Residential Homes,Hc-One Ltd,1701.72, 17-Apr-2012
1173,Revenue,CCHD,Frenchay Hospital Purchasing,Residential Homes,Hc-One Ltd,739.88, 17-Apr-2012
1174,Revenue,CCHD,Frenchay Hospital Purchasing,Residential Homes,Hc-One Ltd,781.23, 17-Apr-2012
1175,Revenue,CCHD,Day Care - North,Private & Voluntary Day Care,Headway Bristol,893.25, 27-Apr-2012
1176,Revenue,CCHD,Day Care - South,Private & Voluntary Day Care,Headway Bristol,893.25, 27-Apr-2012
1177,Revenue,CCHD,Day Care - South,Private & Voluntary Day Care,Headway Bristol,1140.6, 27-Apr-2012
1178,Revenue,CCHD,Day Care - North,Private & Voluntary Day Care,Headway Bristol,928.98, 27-Apr-2012
1179,Revenue,CCHD,Day Care - South,Private & Voluntary Day Care,Headway Bristol,893.25, 27-Apr-2012
1180,Revenue,CCHD,Day Care - South,Private & Voluntary Day Care,Headway Bristol,893.25, 27-Apr-2012
1181,Revenue,CCHD,Day Care - South,Private & Voluntary Day Care,Headway Bristol,2315.62, 27-Apr-2012
1182,Revenue,CCHD,Day Care - North,Private & Voluntary Day Care,Headway Bristol,928.88, 27-Apr-2012
1183,Revenue,CCHD,Bed purchasing - Phys Dis - North,Nursing Homes,Helen & Douglas House,900, 30-Apr-2012
1184,Revenue,CCHD,Supported Living - KD,Private & Voluntary Home Care,HFT,1995.12, 30-Apr-2012
1185,Revenue,CCHD,Supported Living - KD,Private & Voluntary Home Care,HFT,1923.87, 30-Apr-2012
1186,Revenue,CCHD,Southmead Hospital Purchasing,Residential Homes,Highgate Studios,1169.3, 17-Apr-2012
1187,Revenue,CCHD,Bed Purchasing - Under 65s PWLD - South,Residential Homes,Hillcrest - Gordena Care Homes,11938.32, 04-Apr-2012
1188,Revenue,CCHD,Bed purchasing - Under 65s PWLD - North,Residential Homes,Holmleigh Care Homes Ltd,1116.18, 17-Apr-2012
1189,Revenue,CCHD,Bed Purchasing - Under 65s PWLD - South,Residential Homes,Holmleigh Care Homes Ltd,3747.84, 17-Apr-2012
1190,Revenue,CCHD,Under 65s PWLD - KH,Residential Homes,Holmleigh Care Homes Ltd,1227.42, 17-Apr-2012
1191,Revenue,CCHD,South Glos Users in South Glos Homes,Nursing Homes,Holmwood House,2655.39, 17-Apr-2012
1192,Revenue,CCHD,South Glos Users in South Glos Homes,Nursing Homes,Holmwood House,1537.33, 17-Apr-2012
1193,Revenue,CCHD,Bed purchasing - Under 65s PWLD - North,Residential Homes,Home Farm Trust Ltd  5-6 Brook Office Pa,2088.09, 17-Apr-2012
1194,Revenue,CCHD,Bed purchasing - Under 65s PWLD - North,Residential Homes,Home Farm Trust Ltd  5-6 Brook Office Pa,687.34, 17-Apr-2012
1195,Revenue,CCHD,Bed Purchasing - Under 65s PWLD - South,Residential Homes,Home Farm Trust Ltd  5-6 Brook Office Pa,2420.43, 17-Apr-2012
1196,Revenue,CCHD,Bed Purchasing - Under 65s PWLD - South,Residential Homes,Home Farm Trust Ltd  5-6 Brook Office Pa,2265.9, 17-Apr-2012
1197,Revenue,CCHD,Bed Purchasing - Under 65s PWLD - South,Residential Homes,Home Farm Trust Ltd  5-6 Brook Office Pa,746.1, 17-Apr-2012
1198,Revenue,CCHD,Bed purchasing - Under 65s PWLD - North,Residential Homes,Home Farm Trust Ltd  5-6 Brook Office Pa,2534.46, 17-Apr-2012
1199,Revenue,CCHD,Bed purchasing - Under 65s PWLD - North,Residential Homes,Home Farm Trust Ltd  5-6 Brook Office Pa,829.97, 17-Apr-2012
1200,Revenue,CCHD,Bed Purchasing - Under 65s PWLD - South,Residential Homes,Home Farm Trust Ltd  5-6 Brook Office Pa,3368.7, 17-Apr-2012
1201,Revenue,CCHD,Bed Purchasing - Under 65s PWLD - South,Residential Homes,Home Farm Trust Ltd  5-6 Brook Office Pa,1107.16, 17-Apr-2012
1202,Revenue,CCHD,Bed purchasing - Under 65s PWLD - North,Residential Homes,Home From Home Care Ltd,8993.62, 17-Apr-2012
1203,Revenue,CCHD,Home Care - Elderly - North,Private & Voluntary Home Care,Housing 21,35812.8, 10-Apr-2012
1204,Revenue,CCHD,Getting a Life Project,Other Supplies & Services,Housing Options Limited,4000, 30-Apr-2012
1205,Revenue,CCHD,Housing Needs,Other Supplies & Services,HQN Limited,620, 26-Apr-2012
1206,Revenue,CCHD,Training - Adult Services,Training Expenses,Inky Little Fingers,630, 24-Apr-2012
1207,Revenue,CCHD,Safeguarding and DOLs,Agency Staff (Operational)/PCT Pay,IPE,3900, 19-Apr-2012
1208,Revenue,CCHD,Bed Purchasing - Elderly - South,Residential Homes,Jah-Jireh Charity Homes,1248.65, 17-Apr-2012
1209,Revenue,CCHD,Training - Adult Services,Training Expenses,Jo Williams,782, 19-Apr-2012
1210,Revenue,CCHD,Training - Adult Services,Training Expenses,Jonathan Nash Legal Training,2154.43, 05-Apr-2012
1211,Revenue,CCHD,Bed purchasing - Elderly PWLD - South,Residential Homes,Julia Simone- Supp. Ind.,2646.93, 17-Apr-2012
1212,Revenue,CCHD,Bed purchasing - Under 65s PWLD - North,Residential Homes,Julia Simone- Supp. Ind.,870.55, 17-Apr-2012
1213,Revenue,CCHD,Bed purchasing -S28A  Under 65 - North,Residential Homes,Julia Simone- Supp. Ind.,2558.37, 17-Apr-2012
1214,Revenue,CCHD,Bed purchasing - S28A Under 65 - South,Residential Homes,Julia Simone- Supp. Ind.,841.51, 17-Apr-2012
1215,Revenue,CCHD,Bed Purchasing - Elderly - North,Residential Homes,Katherine House,1185.88, 17-Apr-2012
1216,Revenue,CCHD,Bed Purchasing - Elderly MH - South,Residential Homes,Kenver House Residential Home,1135.38, 17-Apr-2012
1217,Revenue,CCHD,Bed purchasing - Elderly S117 - South,Residential Homes,Kenver House Residential Home,1051.68, 17-Apr-2012
1218,Revenue,CCHD,Frenchay Hospital Purchasing,Residential Homes,Kenver House Residential Home,670.41, 17-Apr-2012
1219,Revenue,CCHD,Bed Purchasing - Elderly MH - South,Residential Homes,Kenver House Residential Home,1015.56, 17-Apr-2012
1220,Revenue,CCHD,Bed Purchasing - Elderly MH - South,Residential Homes,Kenver House Residential Home,1228.62, 17-Apr-2012
1221,Revenue,CCHD,Frenchay Hospital Purchasing,Residential Homes,Kenver House Residential Home,710.52, 17-Apr-2012
1222,Revenue,CCHD,Bed purchasing - Elderly S117 - South,Residential Homes,Kenver House Residential Home,1409.28, 17-Apr-2012
1223,Revenue,CCHD,Bed Purchasing - Elderly MH - South,Residential Homes,Kenver House Residential Home,955.29, 17-Apr-2012
1224,Revenue,CCHD,Southmead Hospital Purchasing,Residential Homes,Kenver House Residential Home,1146.3, 17-Apr-2012
1225,Revenue,CCHD,Bed Purchasing - Elderly MH - South,Residential Homes,Kenver House Residential Home,1228.62, 17-Apr-2012
1226,Revenue,CCHD,Frenchay Hospital Purchasing,Residential Homes,Kenver House Residential Home,1228.62, 17-Apr-2012
1227,Revenue,CCHD,Frenchay Hospital Purchasing,Residential Homes,Kenver House Residential Home,825.3, 17-Apr-2012
1228,Revenue,CCHD,Bed Purchasing - Elderly MH - South,Residential Homes,Kenver House Residential Home,888.27, 17-Apr-2012
1229,Revenue,CCHD,Bed Purchasing - Elderly MH - South,Residential Homes,Kenver House Residential Home,919.74, 17-Apr-2012
1230,Revenue,CCHD,Frenchay Hospital Purchasing,Residential Homes,Kenver House Residential Home,1057.95, 17-Apr-2012
1231,Revenue,CCHD,Bed Purchasing - Elderly MH - South,Residential Homes,Kenver House Residential Home,875.91, 17-Apr-2012
1232,Revenue,CCHD,Bed Purchasing - Elderly - South,Residential Homes,Kenver House Residential Home,1147.08, 17-Apr-2012
1233,Revenue,CCHD,Frenchay Hospital Purchasing,Residential Homes,Kenver House Residential Home,1170.96, 17-Apr-2012
1234,Revenue,CCHD,Bed Purchasing - Elderly MH - South,Residential Homes,Kenver House Residential Home,1090.56, 17-Apr-2012
1235,Revenue,CCHD,Supporting People Programme,Grants to Voluntary Bodies,Keyring Living Support Networks,552.35, 19-Apr-2012
1236,Revenue,CCHD,Bed purchasing - Under 65s PWLD - North,Residential Homes,Kisimul Group,8441.43, 17-Apr-2012
1237,Revenue,CCHD,Under 65s PWLD - KH,Residential Homes,Kisimul Group,2769.68, 17-Apr-2012
1238,Revenue,CCHD,Home Care - Elderly - South,Other Small Contracts,Kumari Care Limited,4312.5, 13-Apr-2012
1239,Revenue,CCHD,Home Care - Elderly - North,Other Small Contracts,Kumari Care Limited,863.48, 13-Apr-2012
1240,Revenue,CCHD,Day Care - South,Private & Voluntary Day Care,Kumari Care Limited,330, 13-Apr-2012
1241,Revenue,CCHD,Under 65s -MH  Home Care Purch,Other Small Contracts,Kumari Care Limited,146.25, 13-Apr-2012
1242,Revenue,CCHD,Home care - Elderly MH - North,Other Small Contracts,Kumari Care Limited,37.5, 13-Apr-2012
1243,Revenue,CCHD,PWLD Home Care - Under 65 - KH,Private & Voluntary Home Care,Kumari Care Limited,300, 13-Apr-2012
1244,Revenue,CCHD,Home Care - Elderly - South,Other Small Contracts,Kumari Care Limited,4308.75, 16-Apr-2012
1245,Revenue,CCHD,Home Care - Elderly - North,Other Small Contracts,Kumari Care Limited,862.68, 16-Apr-2012
1246,Revenue,CCHD,Day Care - South,Private & Voluntary Day Care,Kumari Care Limited,225, 16-Apr-2012
1247,Revenue,CCHD,Under 65s -MH  Home Care Purch,Other Small Contracts,Kumari Care Limited,142.5, 16-Apr-2012
1248,Revenue,CCHD,Home care - Elderly MH - North,Other Small Contracts,Kumari Care Limited,37.5, 16-Apr-2012
1249,Revenue,CCHD,PWLD Home Care - Under 65 - KH,Private & Voluntary Home Care,Kumari Care Limited,307.5, 16-Apr-2012
1250,Revenue,CCHD,Home Care - Elderly - South,Other Small Contracts,Kumari Care Limited,4151.25, 12-Apr-2012
1251,Revenue,CCHD,Home Care - Elderly - North,Other Small Contracts,Kumari Care Limited,862.68, 12-Apr-2012
1252,Revenue,CCHD,Day Care - South,Private & Voluntary Day Care,Kumari Care Limited,165, 12-Apr-2012
1253,Revenue,CCHD,Under 65s -MH  Home Care Purch,Other Small Contracts,Kumari Care Limited,142.5, 12-Apr-2012
1254,Revenue,CCHD,Home care - Elderly MH - North,Other Small Contracts,Kumari Care Limited,37.5, 12-Apr-2012
1255,Revenue,CCHD,PWLD Home Care - Under 65 - KH,Private & Voluntary Home Care,Kumari Care Limited,289.05, 12-Apr-2012
1256,Revenue,CCHD,Home Care - Elderly - South,Other Small Contracts,Kumari Care Limited,4410, 11-Apr-2012
1257,Revenue,CCHD,Home Care - Elderly - North,Other Small Contracts,Kumari Care Limited,862.68, 11-Apr-2012
1258,Revenue,CCHD,Day Care - South,Private & Voluntary Day Care,Kumari Care Limited,225, 11-Apr-2012
1259,Revenue,CCHD,Under 65s -MH  Home Care Purch,Other Small Contracts,Kumari Care Limited,142.5, 11-Apr-2012
1260,Revenue,CCHD,Home care - Elderly MH - North,Other Small Contracts,Kumari Care Limited,37.5, 11-Apr-2012
1261,Revenue,CCHD,PWLD Home Care - Under 65 - KH,Private & Voluntary Home Care,Kumari Care Limited,307.5, 11-Apr-2012
1262,Revenue,CCHD,Home Care - Elderly - South,Other Small Contracts,Kumari Care Limited,4327.5, 17-Apr-2012
1263,Revenue,CCHD,Home Care - Elderly - North,Other Small Contracts,Kumari Care Limited,847.68, 17-Apr-2012
1264,Revenue,CCHD,Day Care - South,Private & Voluntary Day Care,Kumari Care Limited,285, 17-Apr-2012
1265,Revenue,CCHD,Under 65s -MH  Home Care Purch,Other Small Contracts,Kumari Care Limited,120, 17-Apr-2012
1266,Revenue,CCHD,Home care - Elderly MH - North,Other Small Contracts,Kumari Care Limited,37.5, 17-Apr-2012
1267,Revenue,CCHD,PWLD Home Care - Under 65 - KH,Private & Voluntary Home Care,Kumari Care Limited,165, 17-Apr-2012
1268,Revenue,CCHD,Home Care - Elderly - South,Other Small Contracts,Kumari Care Limited,4293.63, 24-Apr-2012
1269,Revenue,CCHD,Home Care - Elderly - North,Other Small Contracts,Kumari Care Limited,810.18, 24-Apr-2012
1270,Revenue,CCHD,Day Care - South,Private & Voluntary Day Care,Kumari Care Limited,225, 24-Apr-2012
1271,Revenue,CCHD,Under 65s -MH  Home Care Purch,Other Small Contracts,Kumari Care Limited,108.75, 24-Apr-2012
1272,Revenue,CCHD,Home care - Elderly MH - North,Other Small Contracts,Kumari Care Limited,37.5, 24-Apr-2012
1273,Revenue,CCHD,PWLD Home Care - Under 65 - KH,Private & Voluntary Home Care,Kumari Care Limited,288.75, 24-Apr-2012
1274,Revenue,CCHD,Bed purchasing - Phys Dis - North,Nursing Homes,Ladymead Care Home,2042.6, 17-Apr-2012
1275,Revenue,CCHD,Homeless - Private Sector Leasing,Other Supplies & Services,Leanne White,613.55, 26-Apr-2012
1276,Revenue,CCHD,Bed purchasing - Phys Dis - North,Nursing Homes,Leonard Cheshire  National Account Centr,1973.82, 17-Apr-2012
1277,Revenue,CCHD,Bed purchasing - Phys Dis - North,Nursing Homes,Leonard Cheshire  National Account Centr,647.07, 17-Apr-2012
1278,Revenue,CCHD,Bed purchasing - Phys Dis - North,Residential Homes,Leonard Cheshire  National Account Centr,1747.95, 17-Apr-2012
1279,Revenue,CCHD,Bed purchasing - Phys Dis - North,Residential Homes,Leonard Cheshire  National Account Centr,575.84, 17-Apr-2012
1280,Revenue,CCHD,Bed Purchasing - Under 65s PWLD - South,Residential Homes,Leonard Cheshire  National Account Centr,2211.39, 17-Apr-2012
1281,Revenue,CCHD,Under 65s PWLD - KH,Residential Homes,Leonard Cheshire  National Account Centr,723.73, 17-Apr-2012
1282,Revenue,CCHD,Bed Purchasing - Elderly - North,Nursing Homes,Leonard Cheshire  National Account Centr,2577.45, 17-Apr-2012
1283,Revenue,CCHD,Bed Purchasing - Elderly - North,Nursing Homes,Leonard Cheshire  National Account Centr,847.77, 17-Apr-2012
1284,Revenue,CCHD,Bed purchasing - Phys Dis - North,Nursing Homes,Leonard Cheshire  National Account Centr,2052.45, 17-Apr-2012
1285,Revenue,CCHD,Bed purchasing - Phys Dis - North,Nursing Homes,Leonard Cheshire  National Account Centr,673.3, 17-Apr-2012
1286,Revenue,CCHD,Bed Purchasing - Elderly - North,Residential Homes,Leonard Cheshire  National Account Centr,2341.68, 17-Apr-2012
1287,Revenue,CCHD,Bed Purchasing - Elderly - North,Residential Homes,Leonard Cheshire  National Account Centr,771.12, 17-Apr-2012
1288,Revenue,CCHD,Bed purchasing - Under 65s PWLD - North,Residential Homes,Leonard Cheshire  National Account Centr,4362.81, 17-Apr-2012
1289,Revenue,CCHD,Bed purchasing - Under 65s PWLD - North,Residential Homes,Leonard Cheshire  National Account Centr,1433.06, 17-Apr-2012
1290,Revenue,CCHD,Bed purchasing - Under 65s PWLD - North,Residential Homes,Leonard Cheshire  National Account Centr,4361.67, 17-Apr-2012
1291,Revenue,CCHD,Bed purchasing - Under 65s PWLD - North,Residential Homes,Leonard Cheshire  National Account Centr,1432.68, 17-Apr-2012
1292,Revenue,CCHD,Bed Purchasing - Elderly - South,Residential Homes,Leonard Cheshire  National Account Centr,3299.19, 17-Apr-2012
1293,Revenue,CCHD,Bed Purchasing - Elderly - South,Residential Homes,Leonard Cheshire  National Account Centr,1084.04, 17-Apr-2012
1294,Revenue,CCHD,Bed purchasing - Phys Dis - North,Nursing Homes,Leonard Cheshire  National Account Centr,2109.33, 17-Apr-2012
1295,Revenue,CCHD,Bed purchasing - Phys Dis - North,Nursing Homes,Leonard Cheshire  National Account Centr,694.31, 17-Apr-2012
1296,Revenue,CCHD,Bed purchasing - Phys Dis - North,Nursing Homes,Leonard Cheshire  National Account Centr,3143.8, 17-Apr-2012
1297,Revenue,CCHD,Bed purchasing - Phys Dis - North,Nursing Homes,Leonard Cheshire  National Account Centr,2387.34, 17-Apr-2012
1298,Revenue,CCHD,Bed purchasing - Phys Dis - North,Nursing Homes,Leonard Cheshire  National Account Centr,785.95, 17-Apr-2012
1299,Revenue,CCHD,Bed purchasing - Phys Dis - North,Residential Homes,Leonard Cheshire  National Account Centr,2167.14, 17-Apr-2012
1300,Revenue,CCHD,Bed purchasing - Phys Dis - North,Residential Homes,Leonard Cheshire  National Account Centr,709.27, 17-Apr-2012
1301,Revenue,CCHD,Bed Purchasing - Elderly - North,Nursing Homes,Leonard Cheshire  National Account Centr,3464.96, 17-Apr-2012
1302,Revenue,CCHD,Bed Purchasing - Elderly - North,Nursing Homes,Leonard Cheshire  National Account Centr,2640.99, 17-Apr-2012
1303,Revenue,CCHD,Bed Purchasing - Elderly - North,Nursing Homes,Leonard Cheshire  National Account Centr,866.24, 17-Apr-2012
1304,Revenue,CCHD,Bed purchasing - Phys Dis - North,Nursing Homes,Leonard Cheshire  National Account Centr,2394.87, 17-Apr-2012
1305,Revenue,CCHD,Bed purchasing - Phys Dis - South,Nursing Homes,Leonard Cheshire  National Account Centr,785.1, 17-Apr-2012
1306,Revenue,CCHD,Bed purchasing - Phys Dis - South,Nursing Homes,Leonard Cheshire  National Account Centr,4542.48, 17-Apr-2012
1307,Revenue,CCHD,Bed purchasing - Phys Dis - South,Nursing Homes,Leonard Cheshire  National Account Centr,1489.14, 17-Apr-2012
1308,Revenue,CCHD,Bed purchasing - Phys Dis - North,Nursing Homes,Leonard Cheshire  National Account Centr,4101.63, 17-Apr-2012
1309,Revenue,CCHD,Bed purchasing - Phys Dis - North,Nursing Homes,Leonard Cheshire  National Account Centr,1344.62, 17-Apr-2012
1310,Revenue,CCHD,Bed Purchasing - Elderly - South,Nursing Homes,Leonard Cheshire  National Account Centr,33774.27, 17-Apr-2012
1311,Revenue,CCHD,Bed Purchasing - Elderly - South,Nursing Homes,Leonard Cheshire  National Account Centr,2808.12, 17-Apr-2012
1312,Revenue,CCHD,Bed Purchasing - Elderly - South,Nursing Homes,Leonard Cheshire  National Account Centr,3865.79, 17-Apr-2012
1313,Revenue,CCHD,South Glos Users in all other LA Homes,Nursing Homes,Leonard Cheshire  National Account Centr,7821.94, 17-Apr-2012
1314,Revenue,CCHD,Southmead Hospital Purchasing,Nursing Homes,Leonard Cheshire  National Account Centr,2968.53, 17-Apr-2012
1315,Revenue,CCHD,Bed purchasing - Phys Dis - North,Nursing Homes,Leonard Cheshire  National Account Centr,2458.89, 17-Apr-2012
1316,Revenue,CCHD,Bed purchasing - Phys Dis - North,Nursing Homes,Leonard Cheshire  National Account Centr,808.9, 17-Apr-2012
1317,Revenue,CCHD,Frenchay Hospital Purchasing,Residential Homes,Leonard Cheshire  National Account Centr,3687.8, 17-Apr-2012
1318,Revenue,CCHD,Frenchay Hospital Purchasing,Residential Homes,Leonard Cheshire  National Account Centr,2803.74, 17-Apr-2012
1319,Revenue,CCHD,Frenchay Hospital Purchasing,Residential Homes,Leonard Cheshire  National Account Centr,921.95, 17-Apr-2012
1320,Revenue,CCHD,Bed Purchasing - Elderly - South,Nursing Homes,Leonard Cheshire  National Account Centr,3245.61, 17-Apr-2012
1321,Revenue,CCHD,Bed Purchasing - Elderly - North,Nursing Homes,Leonard Cheshire  National Account Centr,1066.21, 17-Apr-2012
1322,Revenue,CCHD,Bed Purchasing - LD S28A- Over 65- South,Residential Homes,Leonard Cheshire  National Account Centr,2883.02, 17-Apr-2012
1323,Revenue,CCHD,Community Support ACM - South,Preventative Assistance,Leonard Cheshire Disability,720, 05-Apr-2012
1324,Revenue,CCHD,Supported Living - KH,Private & Voluntary Home Care,Lifeways Community Care (Gloucester) Ltd,11373, 10-Apr-2012
1325,Revenue,CCHD,Supported Living - KH,Private & Voluntary Home Care,Lifeways Community Care (Gloucester) Ltd,11373, 10-Apr-2012
1326,Revenue,CCHD,Supported Living - KH,Private & Voluntary Home Care,Lifeways Community Care (Gloucester) Ltd,11373, 10-Apr-2012
1327,Revenue,CCHD,Supported Living - KH,Private & Voluntary Home Care,Lifeways Community Care (Gloucester) Ltd,11373, 10-Apr-2012
1328,Revenue,CCHD,Supported Living - KH,Private & Voluntary Home Care,Lifeways Community Care (Gloucester) Ltd,11373, 02-Apr-2012
1329,Revenue,CCHD,Supported Living - KH,Private & Voluntary Home Care,Lifeways Community Care (Gloucester) Ltd,10990, 05-Apr-2012
1330,Revenue,CCHD,Supported Living - KH,Private & Voluntary Home Care,Lifeways Community Care (Gloucester) Ltd,8792, 05-Apr-2012
1331,Revenue,CCHD,Supported Living - KH,Private & Voluntary Home Care,Lifeways Community Care (Gloucester) Ltd,10990, 05-Apr-2012
1332,Revenue,CCHD,Supported Living - KH,Private & Voluntary Home Care,Lifeways Community Care (Gloucester) Ltd,8792, 05-Apr-2012
1333,Revenue,CCHD,Woodleaze,Prop.Serv. General Repairs,Lionel Saunders & Co (Bristol) Limited,2369, 27-Apr-2012
1334,Revenue,CCHD,Tenancy Start Up Scheme,Other Supplies & Services,Individual,1100, 24-Apr-2012
1335,Revenue,CCHD,Bed Purchasing - Elderly - South,Residential Homes,Little Croft,942.18, 17-Apr-2012
1336,Revenue,CCHD,Bed Purchasing - Elderly - South,Residential Homes,Little Croft,929.4, 17-Apr-2012
1337,Revenue,CCHD,Bed Purchasing - Elderly - South,Residential Homes,Little Croft,1063.95, 17-Apr-2012
1338,Revenue,CCHD,Bed Purchasing - Elderly - South,Residential Homes,Little Croft,1378.77, 17-Apr-2012
1339,Revenue,CCHD,Bed Purchasing - Elderly - South,Residential Homes,Little Croft,938.04, 17-Apr-2012
1340,Revenue,CCHD,Southmead Hospital Purchasing,Residential Homes,Little Croft,549.72, 17-Apr-2012
1341,Revenue,CCHD,Southmead Hospital Purchasing,Residential Homes,Little Croft,909.57, 17-Apr-2012
1342,Revenue,CCHD,Bed Purchasing - Elderly MH - South,Residential Homes,Little Croft,875.31, 17-Apr-2012
1343,Revenue,CCHD,Southmead Hospital Purchasing,Residential Homes,Little Croft,945.42, 17-Apr-2012
1344,Revenue,CCHD,Southmead Hospital Purchasing,Residential Homes,Little Croft,4025.69, 17-Apr-2012
1345,Revenue,CCHD,Southmead Hospital Purchasing,Residential Homes,Little Croft,926.85, 17-Apr-2012
1346,Revenue,CCHD,Frenchay Hospital Purchasing,Residential Homes,Little Croft,929.4, 17-Apr-2012
1347,Revenue,CCHD,Frenchay Hospital Purchasing,Residential Homes,Little Croft,614.5, 17-Apr-2012
1348,Revenue,CCHD,Bed purchasing - Under 65s PWLD - North,Residential Homes,Littlecroft Residential Homes  Longcroft,6500.3, 17-Apr-2012
1349,Revenue,CCHD,Supported Living - PS,Private & Voluntary Home Care,Lloyds TSB Commercial Finance Limited,1130.4, 23-Apr-2012
1350,Revenue,CCHD,Supported Living - PS,Private & Voluntary Home Care,Lloyds TSB Commercial Finance Limited,3647.74, 04-Apr-2012
1351,Revenue,CCHD,Supported Living - PS,Private & Voluntary Home Care,Lloyds TSB Commercial Finance Limited,3644.38, 04-Apr-2012
1352,Revenue,CCHD,Supported Living - KD,Private & Voluntary Home Care,Lloyds TSB Commercial Finance Limited,3674.02, 27-Apr-2012
1353,Revenue,CCHD,Supported Living - PS,Private & Voluntary Home Care,Lloyds TSB Commercial Finance Limited,5860.47, 03-Apr-2012
1354,Revenue,CCHD,Supported Living - KD,Private & Voluntary Home Care,Lloyds TSB Commercial Finance Limited,3787.62, 27-Apr-2012
1355,Revenue,CCHD,Supported Living - PS,Private & Voluntary Home Care,Lloyds TSB Commercial Finance Limited,3819.49, 04-Apr-2012
1356,Revenue,CCHD,Supported Living - PS,Private & Voluntary Home Care,Lloyds TSB Commercial Finance Limited,1130.4, 23-Apr-2012
1357,Revenue,CCHD,Supported Living - PS,Private & Voluntary Home Care,Lloyds TSB Commercial Finance Limited,3566.95, 03-Apr-2012
1358,Revenue,CCHD,Supported Living - PS,Private & Voluntary Home Care,Lloyds TSB Commercial Finance Limited,3408.88, 03-Apr-2012
1359,Revenue,CCHD,Supported Living - PS,Private & Voluntary Home Care,Lloyds TSB Commercial Finance Limited,3325.79, 03-Apr-2012
1360,Revenue,CCHD,Home Care - Elderly - South,Other Small Contracts,Lloyds TSB Commercial Finance Limited,706.8, 20-Apr-2012
1361,Revenue,CCHD,Home Care - Elderly - North,Other Small Contracts,Lloyds TSB Commercial Finance Limited,4723.4, 20-Apr-2012
1362,Revenue,CCHD,Day Care - South,Private & Voluntary Day Care,Lloyds TSB Commercial Finance Limited,117.8, 20-Apr-2012
1363,Revenue,CCHD,Day Care - North,Private & Voluntary Day Care,Lloyds TSB Commercial Finance Limited,577.6, 20-Apr-2012
1364,Revenue,CCHD,Home care - Elderly MH - North,Other Small Contracts,Lloyds TSB Commercial Finance Limited,638.4, 20-Apr-2012
1365,Revenue,CCHD,Elderly MH Day Care North,Private & Voluntary Day Care,Lloyds TSB Commercial Finance Limited,45.6, 20-Apr-2012
1366,Revenue,CCHD,Home Care - Elderly - South,Other Small Contracts,Lloyds TSB Commercial Finance Limited,402.8, 19-Apr-2012
1367,Revenue,CCHD,Home Care - Elderly - North,Other Small Contracts,Lloyds TSB Commercial Finance Limited,4518.2, 19-Apr-2012
1368,Revenue,CCHD,Day Care - South,Private & Voluntary Day Care,Lloyds TSB Commercial Finance Limited,121.6, 19-Apr-2012
1369,Revenue,CCHD,Day Care - North,Private & Voluntary Day Care,Lloyds TSB Commercial Finance Limited,471.2, 19-Apr-2012
1370,Revenue,CCHD,Home care - Elderly MH - North,Other Small Contracts,Lloyds TSB Commercial Finance Limited,600.4, 19-Apr-2012
1371,Revenue,CCHD,Elderly MH Day Care North,Private & Voluntary Day Care,Lloyds TSB Commercial Finance Limited,45.6, 19-Apr-2012
1372,Revenue,CCHD,Home Care - Elderly - South,Other Small Contracts,Lloyds TSB Commercial Finance Limited,687.8, 19-Apr-2012
1373,Revenue,CCHD,Home Care - Elderly - North,Other Small Contracts,Lloyds TSB Commercial Finance Limited,4590.4, 19-Apr-2012
1374,Revenue,CCHD,Day Care - South,Private & Voluntary Day Care,Lloyds TSB Commercial Finance Limited,117.8, 19-Apr-2012
1375,Revenue,CCHD,Day Care - North,Private & Voluntary Day Care,Lloyds TSB Commercial Finance Limited,566.2, 19-Apr-2012
1376,Revenue,CCHD,Home care - Elderly MH - North,Other Small Contracts,Lloyds TSB Commercial Finance Limited,771.4, 19-Apr-2012
1377,Revenue,CCHD,Elderly MH Day Care North,Private & Voluntary Day Care,Lloyds TSB Commercial Finance Limited,45.6, 19-Apr-2012
1378,Revenue,CCHD,Home Care - Elderly - South,Other Small Contracts,Lloyds TSB Commercial Finance Limited,680.2, 19-Apr-2012
1379,Revenue,CCHD,Home Care - Elderly - North,Other Small Contracts,Lloyds TSB Commercial Finance Limited,4696.8, 19-Apr-2012
1380,Revenue,CCHD,Day Care - South,Private & Voluntary Day Care,Lloyds TSB Commercial Finance Limited,121.6, 19-Apr-2012
1381,Revenue,CCHD,Day Care - North,Private & Voluntary Day Care,Lloyds TSB Commercial Finance Limited,543.4, 19-Apr-2012
1382,Revenue,CCHD,Home care - Elderly MH - North,Other Small Contracts,Lloyds TSB Commercial Finance Limited,741, 19-Apr-2012
1383,Revenue,CCHD,Elderly MH Day Care North,Private & Voluntary Day Care,Lloyds TSB Commercial Finance Limited,45.6, 19-Apr-2012
1384,Revenue,CCHD,Home Care - Elderly - South,Other Small Contracts,Lloyds TSB Commercial Finance Limited,741, 27-Apr-2012
1385,Revenue,CCHD,Home Care - Elderly - North,Other Small Contracts,Lloyds TSB Commercial Finance Limited,4354.8, 27-Apr-2012
1386,Revenue,CCHD,Day Care - South,Private & Voluntary Day Care,Lloyds TSB Commercial Finance Limited,110.2, 27-Apr-2012
1387,Revenue,CCHD,Day Care - North,Private & Voluntary Day Care,Lloyds TSB Commercial Finance Limited,406.6, 27-Apr-2012
1388,Revenue,CCHD,Home care - Elderly MH - North,Other Small Contracts,Lloyds TSB Commercial Finance Limited,680.2, 27-Apr-2012
1389,Revenue,CCHD,Elderly MH Day Care North,Private & Voluntary Day Care,Lloyds TSB Commercial Finance Limited,45.6, 27-Apr-2012
1390,Revenue,CCHD,Home Care - Elderly - South,Other Small Contracts,Lloyds TSB Commercial Finance Limited,713.61, 27-Apr-2012
1391,Revenue,CCHD,Home Care - Elderly - North,Other Small Contracts,Lloyds TSB Commercial Finance Limited,4378.57, 27-Apr-2012
1392,Revenue,CCHD,Day Care - South,Private & Voluntary Day Care,Lloyds TSB Commercial Finance Limited,96.64, 27-Apr-2012
1393,Revenue,CCHD,Day Care - North,Private & Voluntary Day Care,Lloyds TSB Commercial Finance Limited,415.55, 27-Apr-2012
1394,Revenue,CCHD,Home care - Elderly MH - North,Other Small Contracts,Lloyds TSB Commercial Finance Limited,656.93, 27-Apr-2012
1395,Revenue,CCHD,Elderly MH Day Care North,Private & Voluntary Day Care,Lloyds TSB Commercial Finance Limited,45.6, 27-Apr-2012
1396,Revenue,CCHD,Home Care - Elderly - South,Other Small Contracts,Lloyds TSB Commercial Finance Limited,672.6, 16-Apr-2012
1397,Revenue,CCHD,Home Care - Elderly - North,Other Small Contracts,Lloyds TSB Commercial Finance Limited,4788, 16-Apr-2012
1398,Revenue,CCHD,Day Care - South,Private & Voluntary Day Care,Lloyds TSB Commercial Finance Limited,114, 16-Apr-2012
1399,Revenue,CCHD,Day Care - North,Private & Voluntary Day Care,Lloyds TSB Commercial Finance Limited,596.6, 16-Apr-2012
1400,Revenue,CCHD,Home care - Elderly MH - North,Other Small Contracts,Lloyds TSB Commercial Finance Limited,684, 16-Apr-2012
1401,Revenue,CCHD,Elderly MH Day Care North,Private & Voluntary Day Care,Lloyds TSB Commercial Finance Limited,41.8, 16-Apr-2012
1402,Revenue,CCHD,Home Care - Elderly - South,Other Small Contracts,Lloyds TSB Commercial Finance Limited,668.8, 16-Apr-2012
1403,Revenue,CCHD,Home Care - Elderly - North,Other Small Contracts,Lloyds TSB Commercial Finance Limited,4734.8, 16-Apr-2012
1404,Revenue,CCHD,Day Care - South,Private & Voluntary Day Care,Lloyds TSB Commercial Finance Limited,125.4, 16-Apr-2012
1405,Revenue,CCHD,Day Care - North,Private & Voluntary Day Care,Lloyds TSB Commercial Finance Limited,585.2, 16-Apr-2012
1406,Revenue,CCHD,Home care - Elderly MH - North,Other Small Contracts,Lloyds TSB Commercial Finance Limited,665, 16-Apr-2012
1407,Revenue,CCHD,Elderly MH Day Care North,Private & Voluntary Day Care,Lloyds TSB Commercial Finance Limited,45.6, 16-Apr-2012
1408,Revenue,CCHD,Home Care - Elderly - South,Other Small Contracts,Lloyds TSB Commercial Finance Limited,581.4, 16-Apr-2012
1409,Revenue,CCHD,Home Care - Elderly - North,Other Small Contracts,Lloyds TSB Commercial Finance Limited,4871.6, 16-Apr-2012
1410,Revenue,CCHD,Day Care - South,Private & Voluntary Day Care,Lloyds TSB Commercial Finance Limited,121.6, 16-Apr-2012
1411,Revenue,CCHD,Day Care - North,Private & Voluntary Day Care,Lloyds TSB Commercial Finance Limited,623.2, 16-Apr-2012
1412,Revenue,CCHD,Home care - Elderly MH - North,Other Small Contracts,Lloyds TSB Commercial Finance Limited,691.6, 16-Apr-2012
1413,Revenue,CCHD,Elderly MH Day Care North,Private & Voluntary Day Care,Lloyds TSB Commercial Finance Limited,45.6, 16-Apr-2012
1414,Revenue,CCHD,Home Care - Elderly - South,Other Small Contracts,Lloyds TSB Commercial Finance Limited,53.62, 02-Apr-2012
1415,Revenue,CCHD,Home Care - Elderly - North,Other Small Contracts,Lloyds TSB Commercial Finance Limited,4738.84, 02-Apr-2012
1416,Revenue,CCHD,Day Care - North,Carers Breaks & Services,Lloyds TSB Commercial Finance Limited,383, 02-Apr-2012
1417,Revenue,CCHD,Home care - Elderly MH - North,Other Small Contracts,Lloyds TSB Commercial Finance Limited,84.26, 02-Apr-2012
1418,Revenue,CCHD,Elderly MH Day Care North,Private & Voluntary Day Care,Lloyds TSB Commercial Finance Limited,111.07, 02-Apr-2012
1419,Revenue,CCHD,Supported Living - KD,Private & Voluntary Home Care,Lloyds TSB Commercial Finance Limited,3592.86, 27-Apr-2012
1420,Revenue,CCHD,Supported Living - KH,Private & Voluntary Home Care,Lloyds TSB Commercial Finance Limited,1130.4, 23-Apr-2012
1421,Revenue,CCHD,Supported Living - KH,Private & Voluntary Home Care,Lloyds TSB Commercial Finance Limited,3488.52, 23-Apr-2012
1422,Revenue,CCHD,Supported Living - PS,Private & Voluntary Home Care,Lloyds TSB Commercial Finance Limited,3216.68, 23-Apr-2012
1423,Revenue,CCHD,Bed Purchasing - Under 65s PWLD - South,Residential Homes,Longton Court,7131.66, 17-Apr-2012
1424,Revenue,CCHD,Under 65s PWLD - KH,Residential Homes,Longton Court,2340.3, 17-Apr-2012
1425,Revenue,CCHD,Social Lettings Agency,Other Supplies & Services,Individual,565, 05-Apr-2012
1426,Revenue,CCHD,Southmead Hospital Purchasing,Nursing Homes,Majestic 3 Limited,1005.77, 17-Apr-2012
1427,Revenue,CCHD,Frenchay Hospital Purchasing,Residential Homes,Manor Cottage,1843.5, 17-Apr-2012
1428,Revenue,CCHD,Bed Purchasing - Elderly - South,Residential Homes,Manor Cottage,543.48, 17-Apr-2012
1429,Revenue,CCHD,Bed Purchasing - Elderly - South,Residential Homes,Manor Cottage,1068.63, 17-Apr-2012
1430,Revenue,CCHD,Southmead Hospital Purchasing,Residential Homes,Manor Cottage,1024.86, 17-Apr-2012
1431,Revenue,CCHD,Bed Purchasing - Elderly - South,Residential Homes,Manor Cottage,974.13, 17-Apr-2012
1432,Revenue,CCHD,Bed Purchasing - Under 65s PWLD - South,Residential Homes,Marsden Healthcare Limited,651.54, 17-Apr-2012
1433,Revenue,CCHD,Bed purchasing - Elderly PWLD - South,Residential Homes,Marsden Healthcare Limited,2337.57, 17-Apr-2012
1434,Revenue,CCHD,Bed purchasing - Elderly PWLD - South,Residential Homes,Marsden Healthcare Limited,783.64, 17-Apr-2012
1435,Revenue,CCHD,Elderly PWLD - KH,Residential Homes,Marsden Healthcare Limited,1097.7, 17-Apr-2012
1436,Revenue,CCHD,User Involvement,Conference Expenses,Marshfield Media,1000.8, 02-Apr-2012
1437,Revenue,CCHD,Bed Purchasing - Elderly MH - South,Nursing Homes,Meadow Care Home,1100.46, 17-Apr-2012
1438,Revenue,CCHD,Home Care - Elderly - South,Private & Voluntary Home Care,Mears Care,47442.58, 27-Apr-2012
1439,Revenue,CCHD,Home Care - Elderly - South,Other Small Contracts,Mears Care,572.4, 25-Apr-2012
1440,Revenue,CCHD,Home Care - Elderly - North,Other Small Contracts,Mears Care,6746.4, 25-Apr-2012
1441,Revenue,CCHD,Day Care - South,Private & Voluntary Day Care,Mears Care,172.8, 25-Apr-2012
1442,Revenue,CCHD,Day Care - North,Private & Voluntary Day Care,Mears Care,309.6, 25-Apr-2012
1443,Revenue,CCHD,Under 65s -MH  Home Care Purch,Other Small Contracts,Mears Care,108, 25-Apr-2012
1444,Revenue,CCHD,Home care - Elderly MH - North,Other Small Contracts,Mears Care,655.2, 25-Apr-2012
1445,Revenue,CCHD,Elderly MH Day Care North,Private & Voluntary Day Care,Mears Care,95.2, 25-Apr-2012
1446,Revenue,CCHD,Home Care - Elderly LD - KH,Private & Voluntary Home Care,Mears Care,50.4, 25-Apr-2012
1447,Revenue,CCHD,Home Care - Elderly - South,Other Small Contracts,Mears Care,558, 25-Apr-2012
1448,Revenue,CCHD,Home Care - Elderly - North,Other Small Contracts,Mears Care,6937.2, 25-Apr-2012
1449,Revenue,CCHD,Day Care - South,Private & Voluntary Day Care,Mears Care,147.6, 25-Apr-2012
1450,Revenue,CCHD,Day Care - North,Private & Voluntary Day Care,Mears Care,255.6, 25-Apr-2012
1451,Revenue,CCHD,Under 65s -MH  Home Care Purch,Other Small Contracts,Mears Care,108, 25-Apr-2012
1452,Revenue,CCHD,Home care - Elderly MH - North,Other Small Contracts,Mears Care,648, 25-Apr-2012
1453,Revenue,CCHD,Elderly MH Day Care North,Private & Voluntary Day Care,Mears Care,90, 25-Apr-2012
1454,Revenue,CCHD,Home Care - Elderly LD - KH,Private & Voluntary Home Care,Mears Care,50.4, 25-Apr-2012
1455,Revenue,CCHD,Home Care - Elderly - South,Other Small Contracts,Mears Care,486, 25-Apr-2012
1456,Revenue,CCHD,Home Care - Elderly - North,Other Small Contracts,Mears Care,6703.2, 25-Apr-2012
1457,Revenue,CCHD,Day Care - South,Private & Voluntary Day Care,Mears Care,115.2, 25-Apr-2012
1458,Revenue,CCHD,Day Care - North,Private & Voluntary Day Care,Mears Care,259.2, 25-Apr-2012
1459,Revenue,CCHD,Under 65s -MH  Home Care Purch,Other Small Contracts,Mears Care,111.6, 25-Apr-2012
1460,Revenue,CCHD,Home care - Elderly MH - North,Other Small Contracts,Mears Care,651.6, 25-Apr-2012
1461,Revenue,CCHD,Elderly MH Day Care North,Private & Voluntary Day Care,Mears Care,61.2, 25-Apr-2012
1462,Revenue,CCHD,Home Care - Elderly LD - KH,Private & Voluntary Home Care,Mears Care,43.2, 25-Apr-2012
1463,Revenue,CCHD,Home Care - Elderly - South,Other Small Contracts,Medacs Home Care,40.8, 19-Apr-2012
1464,Revenue,CCHD,Home Care - Elderly - North,Other Small Contracts,Medacs Home Care,877.2, 19-Apr-2012
1465,Revenue,CCHD,Home care - Elderly MH - North,Other Small Contracts,Medacs Home Care,125.8, 19-Apr-2012
1466,Revenue,CCHD,Elderly MH Day Care North,Private & Voluntary Day Care,Medacs Home Care,71.4, 19-Apr-2012
1467,Revenue,CCHD,Home Care - Elderly - South,Other Small Contracts,Medacs Home Care,40.8, 27-Apr-2012
1468,Revenue,CCHD,Home Care - Elderly - North,Other Small Contracts,Medacs Home Care,765, 27-Apr-2012
1469,Revenue,CCHD,Home care - Elderly MH - North,Other Small Contracts,Medacs Home Care,112.2, 27-Apr-2012
1470,Revenue,CCHD,Elderly MH Day Care North,Private & Voluntary Day Care,Medacs Home Care,71.4, 27-Apr-2012
1471,Revenue,CCHD,Home Care - Elderly - South,Other Small Contracts,Medacs Home Care,41.48, 27-Apr-2012
1472,Revenue,CCHD,Home Care - Elderly - North,Other Small Contracts,Medacs Home Care,857.17, 27-Apr-2012
1473,Revenue,CCHD,Home care - Elderly MH - North,Other Small Contracts,Medacs Home Care,131.29, 27-Apr-2012
1474,Revenue,CCHD,Elderly MH Day Care North,Private & Voluntary Day Care,Medacs Home Care,34.58, 27-Apr-2012
1475,Revenue,CCHD,Home Care - Elderly - South,Other Small Contracts,Medacs Home Care,54.4, 10-Apr-2012
1476,Revenue,CCHD,Home Care - Elderly - North,Other Small Contracts,Medacs Home Care,887.4, 10-Apr-2012
1477,Revenue,CCHD,Home care - Elderly MH - North,Other Small Contracts,Medacs Home Care,115.6, 10-Apr-2012
1478,Revenue,CCHD,Elderly MH Day Care North,Private & Voluntary Day Care,Medacs Home Care,71.4, 10-Apr-2012
1479,Revenue,CCHD,Home Care - Elderly - South,Other Small Contracts,Medacs Home Care,54.4, 19-Apr-2012
1480,Revenue,CCHD,Home Care - Elderly - North,Other Small Contracts,Medacs Home Care,822.8, 19-Apr-2012
1481,Revenue,CCHD,Home care - Elderly MH - North,Other Small Contracts,Medacs Home Care,129.2, 19-Apr-2012
1482,Revenue,CCHD,Elderly MH Day Care North,Private & Voluntary Day Care,Medacs Home Care,71.4, 19-Apr-2012
1483,Revenue,CCHD,Home Care - Elderly - South,Other Small Contracts,Medacs Home Care,54.4, 03-Apr-2012
1484,Revenue,CCHD,Home Care - Elderly - North,Other Small Contracts,Medacs Home Care,975.8, 03-Apr-2012
1485,Revenue,CCHD,Home care - Elderly MH - North,Other Small Contracts,Medacs Home Care,136, 03-Apr-2012
1486,Revenue,CCHD,Elderly MH Day Care North,Private & Voluntary Day Care,Medacs Home Care,34, 03-Apr-2012
1487,Revenue,CCHD,Home Care - Elderly - South,Other Small Contracts,Medacs Home Care,54.4, 03-Apr-2012
1488,Revenue,CCHD,Home Care - Elderly - North,Other Small Contracts,Medacs Home Care,972.4, 03-Apr-2012
1489,Revenue,CCHD,Home care - Elderly MH - North,Other Small Contracts,Medacs Home Care,136, 03-Apr-2012
1490,Revenue,CCHD,Elderly MH Day Care North,Private & Voluntary Day Care,Medacs Home Care,34, 03-Apr-2012
1491,Revenue,CCHD,NRS Contract,Daily Living Equipment,Medequip Assistive Technology Ltd,20095.31, 04-Apr-2012
1492,Revenue,CCHD,NRS Contract,Daily Living Equipment,Medequip Assistive Technology Ltd,57945.77, 04-Apr-2012
1493,Revenue,CCHD,NRS Contract,Other Supplies & Services,Medequip Assistive Technology Ltd,7255.36, 04-Apr-2012
1494,Revenue,CCHD,NRS Contract,Daily Living Equipment,Medequip Assistive Technology Ltd,31613.82, 26-Apr-2012
1495,Revenue,CCHD,NRS Contract,Daily Living Equipment,Medequip Assistive Technology Ltd,52702.4, 26-Apr-2012
1496,Revenue,CCHD,NRS Contract,Daily Living Equipment,Medequip Assistive Technology Ltd,892.5, 23-Apr-2012
1497,Revenue,CCHD,Home Care - Elderly - South,Other Small Contracts,Medico Nursing & Homecare Ltd,2241, 19-Apr-2012
1498,Revenue,CCHD,Home Care - Elderly - North,Other Small Contracts,Medico Nursing & Homecare Ltd,7310.93, 19-Apr-2012
1499,Revenue,CCHD,Day Care - South,Private & Voluntary Day Care,Medico Nursing & Homecare Ltd,83, 19-Apr-2012
1500,Revenue,CCHD,Day Care - North,Private & Voluntary Day Care,Medico Nursing & Homecare Ltd,693.05, 19-Apr-2012
1501,Revenue,CCHD,Home care - Elderly MH - North,Other Small Contracts,Medico Nursing & Homecare Ltd,1033.35, 19-Apr-2012
1502,Revenue,CCHD,Elderly MH Day Care North,Private & Voluntary Day Care,Medico Nursing & Homecare Ltd,149.4, 19-Apr-2012
1503,Revenue,CCHD,Home Care - LD Under 65 - South,Private & Voluntary Home Care,Medico Nursing & Homecare Ltd,265.6, 19-Apr-2012
1504,Revenue,CCHD,Home Care - LD Under 65 - North,Private & Voluntary Home Care,Medico Nursing & Homecare Ltd,124.5, 19-Apr-2012
1505,Revenue,CCHD,PWLD Home Care - Under 65 - KH,Private & Voluntary Home Care,Medico Nursing & Homecare Ltd,713.8, 19-Apr-2012
1506,Revenue,CCHD,Home Care - Elderly - South,Other Small Contracts,Medico Nursing & Homecare Ltd,2099.9, 19-Apr-2012
1507,Revenue,CCHD,Home Care - Elderly - North,Other Small Contracts,Medico Nursing & Homecare Ltd,7962.48, 19-Apr-2012
1508,Revenue,CCHD,Day Care - South,Private & Voluntary Day Care,Medico Nursing & Homecare Ltd,70.55, 19-Apr-2012
1509,Revenue,CCHD,Day Care - North,Private & Voluntary Day Care,Medico Nursing & Homecare Ltd,742.85, 19-Apr-2012
1510,Revenue,CCHD,Home care - Elderly MH - North,Other Small Contracts,Medico Nursing & Homecare Ltd,1012.6, 19-Apr-2012
1511,Revenue,CCHD,Elderly MH Day Care North,Private & Voluntary Day Care,Medico Nursing & Homecare Ltd,153.55, 19-Apr-2012
1512,Revenue,CCHD,Home Care - LD Under 65 - South,Private & Voluntary Home Care,Medico Nursing & Homecare Ltd,261.45, 19-Apr-2012
1513,Revenue,CCHD,Home Care - LD Under 65 - North,Private & Voluntary Home Care,Medico Nursing & Homecare Ltd,124.5, 19-Apr-2012
1514,Revenue,CCHD,PWLD Home Care - Under 65 - KH,Private & Voluntary Home Care,Medico Nursing & Homecare Ltd,680.6, 19-Apr-2012
1515,Revenue,CCHD,Home Care - Elderly - South,Other Small Contracts,Medico Nursing & Homecare Ltd,2199.5, 19-Apr-2012
1516,Revenue,CCHD,Home Care - Elderly - North,Other Small Contracts,Medico Nursing & Homecare Ltd,7233.98, 19-Apr-2012
1517,Revenue,CCHD,Day Care - South,Private & Voluntary Day Care,Medico Nursing & Homecare Ltd,66.4, 19-Apr-2012
1518,Revenue,CCHD,Day Care - North,Private & Voluntary Day Care,Medico Nursing & Homecare Ltd,527.05, 19-Apr-2012
1519,Revenue,CCHD,Home care - Elderly MH - North,Other Small Contracts,Medico Nursing & Homecare Ltd,996, 19-Apr-2012
1520,Revenue,CCHD,Elderly MH Day Care North,Private & Voluntary Day Care,Medico Nursing & Homecare Ltd,149.4, 19-Apr-2012
1521,Revenue,CCHD,Home Care - LD Under 65 - South,Private & Voluntary Home Care,Medico Nursing & Homecare Ltd,265.6, 19-Apr-2012
1522,Revenue,CCHD,Home Care - LD Under 65 - North,Private & Voluntary Home Care,Medico Nursing & Homecare Ltd,124.5, 19-Apr-2012
1523,Revenue,CCHD,PWLD Home Care - Under 65 - KH,Private & Voluntary Home Care,Medico Nursing & Homecare Ltd,664, 19-Apr-2012
1524,Revenue,CCHD,Home Care - Elderly - South,Other Small Contracts,Medico Nursing & Homecare Ltd,2166.3, 19-Apr-2012
1525,Revenue,CCHD,Home Care - Elderly - North,Other Small Contracts,Medico Nursing & Homecare Ltd,7491.75, 19-Apr-2012
1526,Revenue,CCHD,Day Care - South,Private & Voluntary Day Care,Medico Nursing & Homecare Ltd,91.3, 19-Apr-2012
1527,Revenue,CCHD,Day Care - North,Private & Voluntary Day Care,Medico Nursing & Homecare Ltd,672.3, 19-Apr-2012
1528,Revenue,CCHD,Home care - Elderly MH - North,Other Small Contracts,Medico Nursing & Homecare Ltd,1025.05, 19-Apr-2012
1529,Revenue,CCHD,Elderly MH Day Care North,Private & Voluntary Day Care,Medico Nursing & Homecare Ltd,33.2, 19-Apr-2012
1530,Revenue,CCHD,Home Care - LD Under 65 - South,Private & Voluntary Home Care,Medico Nursing & Homecare Ltd,273.9, 19-Apr-2012
1531,Revenue,CCHD,Home Care - LD Under 65 - North,Private & Voluntary Home Care,Medico Nursing & Homecare Ltd,49.8, 19-Apr-2012
1532,Revenue,CCHD,PWLD Home Care - Under 65 - KH,Private & Voluntary Home Care,Medico Nursing & Homecare Ltd,659.85, 19-Apr-2012
1533,Revenue,CCHD,Home Care - Elderly - South,Other Small Contracts,Medico Nursing & Homecare Ltd,2255.29, 19-Apr-2012
1534,Revenue,CCHD,Home Care - Elderly - North,Other Small Contracts,Medico Nursing & Homecare Ltd,7538.31, 19-Apr-2012
1535,Revenue,CCHD,Day Care - South,Private & Voluntary Day Care,Medico Nursing & Homecare Ltd,112.05, 19-Apr-2012
1536,Revenue,CCHD,Day Care - North,Private & Voluntary Day Care,Medico Nursing & Homecare Ltd,697.2, 19-Apr-2012
1537,Revenue,CCHD,Home care - Elderly MH - North,Other Small Contracts,Medico Nursing & Homecare Ltd,1020.9, 19-Apr-2012
1538,Revenue,CCHD,Elderly MH Day Care North,Private & Voluntary Day Care,Medico Nursing & Homecare Ltd,149.4, 19-Apr-2012
1539,Revenue,CCHD,Home Care - LD Under 65 - South,Private & Voluntary Home Care,Medico Nursing & Homecare Ltd,265.6, 19-Apr-2012
1540,Revenue,CCHD,Home Care - LD Under 65 - North,Private & Voluntary Home Care,Medico Nursing & Homecare Ltd,124.5, 19-Apr-2012
1541,Revenue,CCHD,PWLD Home Care - Under 65 - KH,Private & Voluntary Home Care,Medico Nursing & Homecare Ltd,713.8, 19-Apr-2012
1542,Revenue,CCHD,Home Care - Elderly - South,Other Small Contracts,Medico Nursing & Homecare Ltd,2070.85, 19-Apr-2012
1543,Revenue,CCHD,Home Care - Elderly - North,Other Small Contracts,Medico Nursing & Homecare Ltd,7701.5, 19-Apr-2012
1544,Revenue,CCHD,Day Care - South,Private & Voluntary Day Care,Medico Nursing & Homecare Ltd,66.4, 19-Apr-2012
1545,Revenue,CCHD,Day Care - North,Private & Voluntary Day Care,Medico Nursing & Homecare Ltd,709.65, 19-Apr-2012
1546,Revenue,CCHD,Home care - Elderly MH - North,Other Small Contracts,Medico Nursing & Homecare Ltd,1004.3, 19-Apr-2012
1547,Revenue,CCHD,Elderly MH Day Care North,Private & Voluntary Day Care,Medico Nursing & Homecare Ltd,141.1, 19-Apr-2012
1548,Revenue,CCHD,Home Care - LD Under 65 - South,Private & Voluntary Home Care,Medico Nursing & Homecare Ltd,265.6, 19-Apr-2012
1549,Revenue,CCHD,Home Care - LD Under 65 - North,Private & Voluntary Home Care,Medico Nursing & Homecare Ltd,124.5, 19-Apr-2012
1550,Revenue,CCHD,PWLD Home Care - Under 65 - KH,Private & Voluntary Home Care,Medico Nursing & Homecare Ltd,709.65, 19-Apr-2012
1551,Revenue,CCHD,Home Care - Elderly - South,Other Small Contracts,Medico Nursing & Homecare Ltd,2282.5, 19-Apr-2012
1552,Revenue,CCHD,Home Care - Elderly - North,Other Small Contracts,Medico Nursing & Homecare Ltd,7879.72, 19-Apr-2012
1553,Revenue,CCHD,Day Care - South,Private & Voluntary Day Care,Medico Nursing & Homecare Ltd,66.4, 19-Apr-2012
1554,Revenue,CCHD,Day Care - North,Private & Voluntary Day Care,Medico Nursing & Homecare Ltd,722.1, 19-Apr-2012
1555,Revenue,CCHD,Home care - Elderly MH - North,Other Small Contracts,Medico Nursing & Homecare Ltd,1041.65, 19-Apr-2012
1556,Revenue,CCHD,Elderly MH Day Care North,Private & Voluntary Day Care,Medico Nursing & Homecare Ltd,149.4, 19-Apr-2012
1557,Revenue,CCHD,Home Care - LD Under 65 - South,Private & Voluntary Home Care,Medico Nursing & Homecare Ltd,265.6, 19-Apr-2012
1558,Revenue,CCHD,Home Care - LD Under 65 - North,Private & Voluntary Home Care,Medico Nursing & Homecare Ltd,120.34, 19-Apr-2012
1559,Revenue,CCHD,PWLD Home Care - Under 65 - KH,Private & Voluntary Home Care,Medico Nursing & Homecare Ltd,722.1, 19-Apr-2012
1560,Revenue,CCHD,Home Care - Elderly - South,Other Small Contracts,Medico Nursing & Homecare Ltd,2162.15, 19-Apr-2012
1561,Revenue,CCHD,Home Care - Elderly - North,Other Small Contracts,Medico Nursing & Homecare Ltd,7608.19, 19-Apr-2012
1562,Revenue,CCHD,Day Care - South,Private & Voluntary Day Care,Medico Nursing & Homecare Ltd,66.4, 19-Apr-2012
1563,Revenue,CCHD,Day Care - North,Private & Voluntary Day Care,Medico Nursing & Homecare Ltd,680.6, 19-Apr-2012
1564,Revenue,CCHD,Home care - Elderly MH - North,Other Small Contracts,Medico Nursing & Homecare Ltd,1016.75, 19-Apr-2012
1565,Revenue,CCHD,Elderly MH Day Care North,Private & Voluntary Day Care,Medico Nursing & Homecare Ltd,153.55, 19-Apr-2012
1566,Revenue,CCHD,Home Care - LD Under 65 - South,Private & Voluntary Home Care,Medico Nursing & Homecare Ltd,265.6, 19-Apr-2012
1567,Revenue,CCHD,Home Care - LD Under 65 - North,Private & Voluntary Home Care,Medico Nursing & Homecare Ltd,107.9, 19-Apr-2012
1568,Revenue,CCHD,PWLD Home Care - Under 65 - KH,Private & Voluntary Home Care,Medico Nursing & Homecare Ltd,717.95, 19-Apr-2012
1569,Revenue,CCHD,Home Care - Elderly - South,Other Small Contracts,Medico Nursing & Homecare Ltd,2145.55, 19-Apr-2012
1570,Revenue,CCHD,Home Care - Elderly - North,Other Small Contracts,Medico Nursing & Homecare Ltd,7690.95, 19-Apr-2012
1571,Revenue,CCHD,Day Care - South,Private & Voluntary Day Care,Medico Nursing & Homecare Ltd,66.4, 19-Apr-2012
1572,Revenue,CCHD,Day Care - North,Private & Voluntary Day Care,Medico Nursing & Homecare Ltd,693.05, 19-Apr-2012
1573,Revenue,CCHD,Home care - Elderly MH - North,Other Small Contracts,Medico Nursing & Homecare Ltd,991.85, 19-Apr-2012
1574,Revenue,CCHD,Elderly MH Day Care North,Private & Voluntary Day Care,Medico Nursing & Homecare Ltd,149.4, 19-Apr-2012
1575,Revenue,CCHD,Home Care - LD Under 65 - South,Private & Voluntary Home Care,Medico Nursing & Homecare Ltd,265.6, 19-Apr-2012
1576,Revenue,CCHD,Home Care - LD Under 65 - North,Private & Voluntary Home Care,Medico Nursing & Homecare Ltd,124.5, 19-Apr-2012
1577,Revenue,CCHD,PWLD Home Care - Under 65 - KH,Private & Voluntary Home Care,Medico Nursing & Homecare Ltd,742.85, 19-Apr-2012
1578,Revenue,CCHD,Home Care - Elderly - South,Other Small Contracts,Medico Nursing & Homecare Ltd,2112.35, 19-Apr-2012
1579,Revenue,CCHD,Home Care - Elderly - North,Other Small Contracts,Medico Nursing & Homecare Ltd,8076.43, 19-Apr-2012
1580,Revenue,CCHD,Day Care - South,Private & Voluntary Day Care,Medico Nursing & Homecare Ltd,29.05, 19-Apr-2012
1581,Revenue,CCHD,Day Care - North,Private & Voluntary Day Care,Medico Nursing & Homecare Ltd,709.65, 19-Apr-2012
1582,Revenue,CCHD,Home care - Elderly MH - North,Other Small Contracts,Medico Nursing & Homecare Ltd,1029.2, 19-Apr-2012
1583,Revenue,CCHD,Elderly MH Day Care North,Private & Voluntary Day Care,Medico Nursing & Homecare Ltd,149.4, 19-Apr-2012
1584,Revenue,CCHD,Home Care - LD Under 65 - South,Private & Voluntary Home Care,Medico Nursing & Homecare Ltd,265.6, 19-Apr-2012
1585,Revenue,CCHD,Home Care - LD Under 65 - North,Private & Voluntary Home Care,Medico Nursing & Homecare Ltd,124.5, 19-Apr-2012
1586,Revenue,CCHD,PWLD Home Care - Under 65 - KH,Private & Voluntary Home Care,Medico Nursing & Homecare Ltd,730.4, 19-Apr-2012
1587,Revenue,CCHD,Contracts & Commissioning Team,Other Small Contracts,Medico Nursing & Homecare Ltd,49000, 19-Apr-2012
1588,Revenue,CCHD,Bed Purchasing - Under 65s PWLD - South,Residential Homes,Mencap,1649.16, 17-Apr-2012
1589,Revenue,CCHD,Under 65s PWLD - KH,Residential Homes,Mencap,543.45, 17-Apr-2012
1590,Revenue,CCHD,Supported Living (S28a) South,Private & Voluntary Home Care,Mencap - PS North,3689, 23-Apr-2012
1591,Revenue,CCHD,Supported Living (S28a) South,Private & Voluntary Home Care,Mencap - PS North,3689, 23-Apr-2012
1592,Revenue,CCHD,Learning Difficulties Development Fund,Other Supplies & Services,Mencap Employment,1056, 10-Apr-2012
1593,Revenue,CCHD,Charlton,Prop.Serv. General Repairs,Merlin Housing Society,250, 23-Apr-2012
1594,Revenue,CCHD,Bed purchasing - Elderly MH - North,Residential Homes,Mid Lothian Council,1714, 12-Apr-2012
1595,Revenue,CCHD,Home Care - Elderly - South,Other Small Contracts,Milestones Outreach Dementia Services,438.75, 10-Apr-2012
1596,Revenue,CCHD,Home Care - Elderly - North,Other Small Contracts,Milestones Outreach Dementia Services,202.5, 10-Apr-2012
1597,Revenue,CCHD,Day Care - South,Private & Voluntary Day Care,Milestones Outreach Dementia Services,105, 10-Apr-2012
1598,Revenue,CCHD,Day Care - North,Private & Voluntary Day Care,Milestones Outreach Dementia Services,150, 10-Apr-2012
1599,Revenue,CCHD,Home care - Elderly MH - North,Other Small Contracts,Milestones Outreach Dementia Services,840, 10-Apr-2012
1600,Revenue,CCHD,Elderly MH Day Care North,Private & Voluntary Day Care,Milestones Outreach Dementia Services,742.5, 10-Apr-2012
1601,Revenue,CCHD,Home Care - Elderly - South,Other Small Contracts,Milestones Outreach Dementia Services,442.5, 10-Apr-2012
1602,Revenue,CCHD,Home Care - Elderly - North,Other Small Contracts,Milestones Outreach Dementia Services,195, 10-Apr-2012
1603,Revenue,CCHD,Day Care - South,Private & Voluntary Day Care,Milestones Outreach Dementia Services,45, 10-Apr-2012
1604,Revenue,CCHD,Day Care - North,Private & Voluntary Day Care,Milestones Outreach Dementia Services,150, 10-Apr-2012
1605,Revenue,CCHD,Home care - Elderly MH - North,Other Small Contracts,Milestones Outreach Dementia Services,847.5, 10-Apr-2012
1606,Revenue,CCHD,Elderly MH Day Care North,Private & Voluntary Day Care,Milestones Outreach Dementia Services,813.75, 10-Apr-2012
1607,Revenue,CCHD,Home Care - Elderly - South,Other Small Contracts,Milestones Outreach Dementia Services,450, 10-Apr-2012
1608,Revenue,CCHD,Home Care - Elderly - North,Other Small Contracts,Milestones Outreach Dementia Services,195, 10-Apr-2012
1609,Revenue,CCHD,Day Care - South,Private & Voluntary Day Care,Milestones Outreach Dementia Services,105, 10-Apr-2012
1610,Revenue,CCHD,Day Care - North,Private & Voluntary Day Care,Milestones Outreach Dementia Services,150, 10-Apr-2012
1611,Revenue,CCHD,Home care - Elderly MH - North,Other Small Contracts,Milestones Outreach Dementia Services,780, 10-Apr-2012
1612,Revenue,CCHD,Elderly MH Day Care North,Private & Voluntary Day Care,Milestones Outreach Dementia Services,626.25, 10-Apr-2012
1613,Revenue,CCHD,Home Care - Elderly - South,Other Small Contracts,Milestones Outreach Dementia Services,416.25, 10-Apr-2012
1614,Revenue,CCHD,Day Care - South,Private & Voluntary Day Care,Milestones Outreach Dementia Services,15, 10-Apr-2012
1615,Revenue,CCHD,Home care - Elderly MH - North,Other Small Contracts,Milestones Outreach Dementia Services,911.25, 10-Apr-2012
1616,Revenue,CCHD,Elderly MH Day Care North,Private & Voluntary Day Care,Milestones Outreach Dementia Services,363.75, 10-Apr-2012
1617,Revenue,CCHD,Contracts & Commissioning Team,Other Small Contracts,Milestones Outreach Dementia Services,44465, 04-Apr-2012
1618,Revenue,CCHD,Supported Living (S28a) South,Private & Voluntary Home Care,Milestones Trust,46370.5, 04-Apr-2012
1619,Revenue,CCHD,Supported Living - PS,Private & Voluntary Home Care,Milestones Trust,13978.9, 02-Apr-2012
1620,Revenue,CCHD,Supported Living - PS,Private & Voluntary Home Care,Milestones Trust,17731, 02-Apr-2012
1621,Revenue,CCHD,Supported Living - PS,Private & Voluntary Home Care,Milestones Trust,14145.65, 02-Apr-2012
1622,Revenue,CCHD,Supported Living - PS,Private & Voluntary Home Care,Milestones Trust,10414.28, 23-Apr-2012
1623,Revenue,CCHD,Supported Living - PS,Private & Voluntary Home Care,Milestones Trust,3410.47, 23-Apr-2012
1624,Revenue,CCHD,Supported Living - PS,Private & Voluntary Home Care,Milestones Trust,18216.75, 02-Apr-2012
1625,Revenue,CCHD,Supported Living - PS,Private & Voluntary Home Care,Milestones Trust,817.19, 02-Apr-2012
1626,Revenue,CCHD,Purchase of Non-Res Care - PS,Private & Voluntary Day Care,Milestones Trust,1596.25, 02-Apr-2012
1627,Revenue,CCHD,Purchase of Non-Res Care - PS,Private & Voluntary Day Care,Milestones Trust,639.81, 02-Apr-2012
1628,Revenue,CCHD,Purchase of Non-Res Care - PS,Private & Voluntary Day Care,Milestones Trust,1680.33, 02-Apr-2012
1629,Revenue,CCHD,Purchase of Non-Res Care - PS,Private & Voluntary Day Care,Milestones Trust,1491.64, 02-Apr-2012
1630,Revenue,CCHD,Elderly MH Day Care North,Private & Voluntary Day Care,Milestones Trust,680, 10-Apr-2012
1631,Revenue,CCHD,Elderly MH Day Care North,Private & Voluntary Day Care,Milestones Trust,1550.39, 10-Apr-2012
1632,Revenue,CCHD,Bed Purchasing - Elderly S117- North,Private & Voluntary Day Care,Milestones Trust,627.66, 10-Apr-2012
1633,Revenue,CCHD,Supported Living (S28a) South,Private & Voluntary Home Care,Milestones Trust,1047.12, 02-Apr-2012
1634,Revenue,CCHD,Elderly MH Day Care North,Private & Voluntary Day Care,Milestones Trust,737.65, 10-Apr-2012
1635,Revenue,CCHD,Section 117 Placements MH Younger,Private & Voluntary Day Care,Milestones Trust,1269.82, 10-Apr-2012
1636,Revenue,CCHD,Younger MH non-res purchasing,Private & Voluntary Day Care,Milestones Trust,718.88, 10-Apr-2012
1637,Revenue,CCHD,Elderly MH Day Care North,Private & Voluntary Day Care,Milestones Trust,534.02, 10-Apr-2012
1638,Revenue,CCHD,Elderly MH Day Care North,Private & Voluntary Day Care,Milestones Trust,581.1, 10-Apr-2012
1639,Revenue,CCHD,Elderly MH Day Care North,Private & Voluntary Day Care,Milestones Trust,518.02, 10-Apr-2012
1640,Revenue,CCHD,Supported Living (S28a) South,Private & Voluntary Home Care,Milestones Trust,4143.36, 02-Apr-2012
1641,Revenue,CCHD,Supported Living (S28a) South,Private & Voluntary Home Care,Milestones Trust,4143.36, 02-Apr-2012
1642,Revenue,CCHD,Supported Living (S28a) South,Private & Voluntary Home Care,Milestones Trust,3662.32, 02-Apr-2012
1643,Revenue,CCHD,Supported Living (S28a) South,Private & Voluntary Home Care,Milestones Trust,3662.32, 02-Apr-2012
1644,Revenue,CCHD,Supported Living (S28a) South,Private & Voluntary Home Care,Milestones Trust,3662.32, 02-Apr-2012
1645,Revenue,CCHD,Supported Living (S28a) South,Private & Voluntary Home Care,Milestones Trust,804.6, 02-Apr-2012
1646,Revenue,CCHD,Supported Living - KH,Private & Voluntary Home Care,Milestones Trust,1248.18, 05-Apr-2012
1647,Revenue,CCHD,Supported Living (S28a) South,Private & Voluntary Home Care,Milestones Trust,3693.91, 02-Apr-2012
1648,Revenue,CCHD,Supported Living (S28a) South,Private & Voluntary Home Care,Milestones Trust,8751.52, 02-Apr-2012
1649,Revenue,CCHD,Supported Living (S28a) South,Private & Voluntary Home Care,Milestones Trust,9891.09, 02-Apr-2012
1650,Revenue,CCHD,Supported Living (S28a) South,Private & Voluntary Home Care,Milestones Trust,2920, 02-Apr-2012
1651,Revenue,CCHD,Supported Living (S28a) South,Private & Voluntary Home Care,Milestones Trust,3172, 02-Apr-2012
1652,Revenue,CCHD,Supported Living - KH,Private & Voluntary Home Care,Milestones Trust,2812, 19-Apr-2012
1653,Revenue,CCHD,Supported Living (S28a) South,Private & Voluntary Home Care,Milestones Trust,3188, 02-Apr-2012
1654,Revenue,CCHD,Supported Living (S28a) South,Private & Voluntary Home Care,Milestones Trust,569.19, 02-Apr-2012
1655,Revenue,CCHD,Supported Living (S28a) South,Private & Voluntary Home Care,Milestones Trust,5431.24, 02-Apr-2012
1656,Revenue,CCHD,Purchase of Non-Res Care - KD,Private & Voluntary Day Care,Milestones Trust,4467.67, 16-Apr-2012
1657,Revenue,CCHD,Stibbs and Fairburn,Private & Voluntary Respite Care,Milestones Trust,122736.57, 10-Apr-2012
1658,Revenue,CCHD,Supported Living - PS,Private & Voluntary Home Care,Milestones Trust,14225.4, 18-Apr-2012
1659,Revenue,CCHD,Bed Purchasing - Elderly S117- North,Private & Voluntary Day Care,Milestones Trust,611.4, 10-Apr-2012
1660,Revenue,CCHD,Supported Living - KD,Private & Voluntary Home Care,Milestones Trust,1716.5, 16-Apr-2012
1661,Revenue,CCHD,Supported Living - KH,Private & Voluntary Home Care,Milestones Trust,1058.58, 23-Apr-2012
1662,Revenue,CCHD,Purchase of Non-Res Care - KH,Private & Voluntary Day Care,Milestones Trust,1344.62, 19-Apr-2012
1663,Revenue,CCHD,Purchase of Non-Res Care - PS,Private & Voluntary Day Care,Milestones Trust,1242.62, 16-Apr-2012
1664,Revenue,CCHD,Purchase of Non-Res Care - KH,Private & Voluntary Day Care,Milestones Trust,1423.19, 19-Apr-2012
1665,Revenue,CCHD,Purchase of Non-Res Care - KH,Private & Voluntary Day Care,Milestones Trust,1235.29, 19-Apr-2012
1666,Revenue,CCHD,Purchase of Non-Res Care - PS,Private & Voluntary Day Care,Milestones Trust,1297.44, 16-Apr-2012
1667,Revenue,CCHD,Purchase of Non-Res Care - KH,Private & Voluntary Day Care,Milestones Trust,1285.16, 19-Apr-2012
1668,Revenue,CCHD,Supported Living - KD,Private & Voluntary Home Care,Milestones Trust,652.05, 27-Apr-2012
1669,Revenue,CCHD,Supported Living (S28a) South,Private & Voluntary Home Care,Milestones Trust,819.23, 27-Apr-2012
1670,Revenue,CCHD,Supported Living (S28a) South,Private & Voluntary Home Care,Milestones Trust,3537.71, 27-Apr-2012
1671,Revenue,CCHD,Supported Living (S28a) South,Private & Voluntary Home Care,Milestones Trust,3144.43, 27-Apr-2012
1672,Revenue,CCHD,Supported Living (S28a) South,Private & Voluntary Home Care,Milestones Trust,2876.43, 27-Apr-2012
1673,Revenue,CCHD,Supported Living (S28a) South,Private & Voluntary Home Care,Milestones Trust,3068.43, 27-Apr-2012
1674,Revenue,CCHD,Supported Living (S28a) South,Private & Voluntary Home Care,Milestones Trust,576.08, 27-Apr-2012
1675,Revenue,CCHD,Supported Living (S28a) North,Private & Voluntary Home Care,Milestones Trust,3995.38, 27-Apr-2012
1676,Revenue,CCHD,Supported Living (S28a) North,Private & Voluntary Home Care,Milestones Trust,3995.38, 27-Apr-2012
1677,Revenue,CCHD,Supported Living (S28a) North,Private & Voluntary Home Care,Milestones Trust,3531.52, 27-Apr-2012
1678,Revenue,CCHD,Supported Living (S28a) North,Private & Voluntary Home Care,Milestones Trust,3531.52, 27-Apr-2012
1679,Revenue,CCHD,Supported Living (S28a) North,Private & Voluntary Home Care,Milestones Trust,3531.52, 27-Apr-2012
1680,Revenue,CCHD,Supported Living (S28a) North,Private & Voluntary Home Care,Milestones Trust,4498.19, 27-Apr-2012
1681,Revenue,CCHD,Supported Living (S28a) North,Private & Voluntary Home Care,Milestones Trust,1027.67, 27-Apr-2012
1682,Revenue,CCHD,Supported Living (S28a) North,Private & Voluntary Home Care,Milestones Trust,9019.07, 27-Apr-2012
1683,Revenue,CCHD,Bed Purchasing - Under 65s PWLD - South,Residential Homes,Miller Farm,3338.06, 17-Apr-2012
1684,Revenue,CCHD,Bed purchasing - Elderly S117 - South,Nursing Homes,Mimosa Healthcare Holdings Ltd,1439.79, 17-Apr-2012
1685,Revenue,CCHD,Bed Purchasing - Under 65s PWLD - South,Residential Homes,Mmcg  Westcourt,9612.54, 17-Apr-2012
1686,Revenue,CCHD,Under 65s PWLD - KH,Residential Homes,Mmcg  Westcourt,3154.7, 17-Apr-2012
1687,Revenue,CCHD,User Involvement,Conference Expenses,Mo Dymond Support Groups,6000, 10-Apr-2012
1688,Revenue,CCHD,Bed Purchasing - Elderly - North,Nursing Homes,Mortimer House Nursing Home,1927.56, 17-Apr-2012
1689,Revenue,CCHD,Bed Purchasing - Elderly - North,Nursing Homes,Mortimer House Nursing Home,638.22, 17-Apr-2012
1690,Revenue,CCHD,Bed Purchasing - LD S28A- Over 65- South,Nursing Homes,Mortimer House Nursing Home,1915.38, 17-Apr-2012
1691,Revenue,CCHD,Bed Purchasing - LD S28A- Over 65- South,Nursing Homes,Mortimer House Nursing Home,630.39, 17-Apr-2012
1692,Revenue,CCHD,Bed Purchasing - LD S28A- Over 65- South,Nursing Homes,Mortimer House Nursing Home,2247.39, 17-Apr-2012
1693,Revenue,CCHD,Bed Purchasing - LD S28A- Over 65- South,Nursing Homes,Mortimer House Nursing Home,738.25, 17-Apr-2012
1694,Revenue,CCHD,Bed Purchasing - LD S28A- Over 65- South,Nursing Homes,Mortimer House Nursing Home,1915.38, 17-Apr-2012
1695,Revenue,CCHD,Bed Purchasing - LD S28A- Over 65- South,Nursing Homes,Mortimer House Nursing Home,630.39, 17-Apr-2012
1696,Revenue,CCHD,Bed Purchasing - LD S28A- Over 65- South,Nursing Homes,Mortimer House Nursing Home,2453.94, 17-Apr-2012
1697,Revenue,CCHD,Bed Purchasing - LD S28A- Over 65- South,Nursing Homes,Mortimer House Nursing Home,806.95, 17-Apr-2012
1698,Revenue,CCHD,Bed purchasing - Elderly PWLD - South,Nursing Homes,Mortimer House Nursing Home,2332.32, 17-Apr-2012
1699,Revenue,CCHD,Bed purchasing - Elderly PWLD - South,Nursing Homes,Mortimer House Nursing Home,727.55, 17-Apr-2012
1700,Revenue,CCHD,Bed Purchasing - LD S28A- Over 65- South,Nursing Homes,Mortimer House Nursing Home,2457.93, 17-Apr-2012
1701,Revenue,CCHD,Bed Purchasing - LD S28A- Over 65- South,Nursing Homes,Mortimer House Nursing Home,808.25, 17-Apr-2012
1702,Revenue,CCHD,Bed purchasing - Elderly S117 - South,Residential Homes,Mostyn Lodge Residential Home,1410, 17-Apr-2012
1703,Revenue,CCHD,Supported Living - PS,Private & Voluntary Home Care,Moving On,3449.28, 17-Apr-2012
1704,Revenue,CCHD,Supported Living - PS,Private & Voluntary Home Care,Moving On,2498.36, 17-Apr-2012
1705,Revenue,CCHD,Supported Living - PS,Private & Voluntary Home Care,Moving On,6038.35, 17-Apr-2012
1706,Revenue,CCHD,Supported Living - PS,Private & Voluntary Home Care,Moving On,6440.99, 16-Apr-2012
1707,Revenue,CCHD,Social Lettings Agency,Other Supplies & Services,Individual,625, 10-Apr-2012
1708,Revenue,CCHD,Social Lettings Agency,Other Supplies & Services,Individual,950, 11-Apr-2012
1709,Revenue,CCHD,Tenancy Start Up Scheme,Other Supplies & Services,Individual,610, 30-Apr-2012
1710,Revenue,CCHD,Under 65s PWLD - KH,Residential Homes,Mr J Davis & Mrs S Davis,1840, 24-Apr-2012
1711,Revenue,CCHD,Social Lettings Agency,Other Supplies & Services,Individual,565, 10-Apr-2012
1712,Revenue,CCHD,Tenancy Start Up Scheme,Other Supplies & Services,Individual,625, 25-Apr-2012
1713,Revenue,CCHD,Social Lettings Agency,Other Supplies & Services,Individual,632.81, 23-Apr-2012
1714,Revenue,CCHD,Social Lettings Agency,Other Supplies & Services,Individual,551.44, 10-Apr-2012
1715,Revenue,CCHD,Social Lettings Agency,Other Supplies & Services,Individual,565, 27-Apr-2012
1716,Revenue,CCHD,Social Lettings Agency,Other Supplies & Services,Individual,632.81, 17-Apr-2012
1717,Revenue,CCHD,Supported Living - PS,Private & Voluntary Home Care,Mrs B Kimber,7852.94, 03-Apr-2012
1718,Revenue,CCHD,Purchase of Non-Res Care - KD,Private & Voluntary Day Care,Mrs B Kimber,761.87, 20-Apr-2012
1719,Revenue,CCHD,Day Care - South,Private & Voluntary Day Care,Mrs B Kimber,669.8, 05-Apr-2012
1720,Revenue,CCHD,Elderly MH Day Care North,Private & Voluntary Day Care,Mrs B Kimber,681.38, 10-Apr-2012
1721,Revenue,CCHD,Elderly MH Day Care North,Private & Voluntary Day Care,Mrs B Kimber,563.27, 10-Apr-2012
1722,Revenue,CCHD,Elderly MH Day Care North,Private & Voluntary Day Care,Mrs B Kimber,699.54, 10-Apr-2012
1723,Revenue,CCHD,Purchase of Non-Res Care - KD,Private & Voluntary Day Care,Mrs B Kimber,652.85, 02-Apr-2012
1724,Revenue,CCHD,Purchase of Non-Res Care - PS,Private & Voluntary Day Care,Mrs B Kimber,9744.5, 04-Apr-2012
1725,Revenue,CCHD,Day Care - South,Private & Voluntary Day Care,Mrs B Kimber,817.62, 30-Apr-2012
1726,Revenue,CCHD,Day Care - North,Private & Voluntary Day Care,Mrs B Kimber,534.44, 17-Apr-2012
1727,Revenue,CCHD,Day Care - North,Private & Voluntary Day Care,Mrs B Kimber,1090.2, 17-Apr-2012
1728,Revenue,CCHD,Purchase of Non-Res Care - KD,Private & Voluntary Day Care,Mrs B Kimber,686.76, 27-Apr-2012
1729,Revenue,CCHD,Supported Living - KD,Private & Voluntary Home Care,Mrs B Kimber,1243.33, 19-Apr-2012
1730,Revenue,CCHD,Day Care - South,Private & Voluntary Day Care,Mrs B Kimber,598.88, 23-Apr-2012
1731,Revenue,CCHD,Home Care - Elderly - South,Other Small Contracts,Mrs B Kimber - Stepping Stones,3152, 10-Apr-2012
1732,Revenue,CCHD,Home Care - Elderly - North,Other Small Contracts,Mrs B Kimber - Stepping Stones,2679.2, 10-Apr-2012
1733,Revenue,CCHD,Day Care - South,Private & Voluntary Day Care,Mrs B Kimber - Stepping Stones,713.14, 10-Apr-2012
1734,Revenue,CCHD,Day Care - North,Private & Voluntary Day Care,Mrs B Kimber - Stepping Stones,70.92, 10-Apr-2012
1735,Revenue,CCHD,Under 65s -MH  Home Care Purch,Other Small Contracts,Mrs B Kimber - Stepping Stones,242.11, 10-Apr-2012
1736,Revenue,CCHD,Home care - Elderly MH - North,Other Small Contracts,Mrs B Kimber - Stepping Stones,354.6, 10-Apr-2012
1737,Revenue,CCHD,Elderly MH Day Care North,Private & Voluntary Day Care,Mrs B Kimber - Stepping Stones,287.62, 10-Apr-2012
1738,Revenue,CCHD,Supported Living - KD,Private & Voluntary Home Care,Mrs B Kimber - Stepping Stones,815.58, 10-Apr-2012
1739,Revenue,CCHD,Home Care - LD Under 65 - South,Private & Voluntary Home Care,Mrs B Kimber - Stepping Stones,90.62, 10-Apr-2012
1740,Revenue,CCHD,Home Care - LD Under 65 - North,Private & Voluntary Home Care,Mrs B Kimber - Stepping Stones,47.28, 10-Apr-2012
1741,Revenue,CCHD,PWLD Home Care - Under 65 - KH,Private & Voluntary Home Care,Mrs B Kimber - Stepping Stones,86.68, 10-Apr-2012
1742,Revenue,CCHD,Home Care - Elderly LD - North,Private & Voluntary Home Care,Mrs B Kimber - Stepping Stones,878.62, 10-Apr-2012
1743,Revenue,CCHD,Home Care - Elderly - South,Other Small Contracts,Mrs B Kimber - Stepping Stones,3037.74, 10-Apr-2012
1744,Revenue,CCHD,Home Care - Elderly - North,Other Small Contracts,Mrs B Kimber - Stepping Stones,2687.08, 10-Apr-2012
1745,Revenue,CCHD,Day Care - South,Private & Voluntary Day Care,Mrs B Kimber - Stepping Stones,654.04, 10-Apr-2012
1746,Revenue,CCHD,Day Care - North,Private & Voluntary Day Care,Mrs B Kimber - Stepping Stones,212.76, 10-Apr-2012
1747,Revenue,CCHD,Under 65s -MH  Home Care Purch,Other Small Contracts,Mrs B Kimber - Stepping Stones,183.42, 10-Apr-2012
1748,Revenue,CCHD,Home care - Elderly MH - North,Other Small Contracts,Mrs B Kimber - Stepping Stones,362.48, 10-Apr-2012
1749,Revenue,CCHD,Elderly MH Day Care North,Private & Voluntary Day Care,Mrs B Kimber - Stepping Stones,425.52, 10-Apr-2012
1750,Revenue,CCHD,Supported Living - KD,Private & Voluntary Home Care,Mrs B Kimber - Stepping Stones,768.3, 10-Apr-2012
1751,Revenue,CCHD,Home Care - LD Under 65 - South,Private & Voluntary Home Care,Mrs B Kimber - Stepping Stones,114.26, 10-Apr-2012
1752,Revenue,CCHD,Home Care - LD Under 65 - North,Private & Voluntary Home Care,Mrs B Kimber - Stepping Stones,47.28, 10-Apr-2012
1753,Revenue,CCHD,PWLD Home Care - Under 65 - KH,Private & Voluntary Home Care,Mrs B Kimber - Stepping Stones,86.68, 10-Apr-2012
1754,Revenue,CCHD,Home Care - Elderly LD - North,Private & Voluntary Home Care,Mrs B Kimber - Stepping Stones,945.6, 10-Apr-2012
1755,Revenue,CCHD,Home Care - Elderly - South,Other Small Contracts,Mrs B Kimber - Stepping Stones,2974.7, 19-Apr-2012
1756,Revenue,CCHD,Home Care - Elderly - North,Other Small Contracts,Mrs B Kimber - Stepping Stones,2683.14, 19-Apr-2012
1757,Revenue,CCHD,Day Care - South,Private & Voluntary Day Care,Mrs B Kimber - Stepping Stones,622.52, 19-Apr-2012
1758,Revenue,CCHD,Day Care - North,Private & Voluntary Day Care,Mrs B Kimber - Stepping Stones,208.82, 19-Apr-2012
1759,Revenue,CCHD,Under 65s -MH  Home Care Purch,Other Small Contracts,Mrs B Kimber - Stepping Stones,242.11, 19-Apr-2012
1760,Revenue,CCHD,Home care - Elderly MH - North,Other Small Contracts,Mrs B Kimber - Stepping Stones,256.1, 19-Apr-2012
1761,Revenue,CCHD,Elderly MH Day Care North,Private & Voluntary Day Care,Mrs B Kimber - Stepping Stones,374.3, 19-Apr-2012
1762,Revenue,CCHD,Supported Living - KD,Private & Voluntary Home Care,Mrs B Kimber - Stepping Stones,689.5, 19-Apr-2012
1763,Revenue,CCHD,Home Care - LD Under 65 - South,Private & Voluntary Home Care,Mrs B Kimber - Stepping Stones,90.62, 19-Apr-2012
1764,Revenue,CCHD,Home Care - LD Under 65 - North,Private & Voluntary Home Care,Mrs B Kimber - Stepping Stones,47.28, 19-Apr-2012
1765,Revenue,CCHD,PWLD Home Care - Under 65 - KH,Private & Voluntary Home Care,Mrs B Kimber - Stepping Stones,90.62, 19-Apr-2012
1766,Revenue,CCHD,Home Care - Elderly LD - North,Private & Voluntary Home Care,Mrs B Kimber - Stepping Stones,1028.34, 19-Apr-2012
1767,Revenue,CCHD,Home Care - Elderly - South,Other Small Contracts,Mrs B Kimber - Stepping Stones,2931.36, 19-Apr-2012
1768,Revenue,CCHD,Home Care - Elderly - North,Other Small Contracts,Mrs B Kimber - Stepping Stones,2505.84, 19-Apr-2012
1769,Revenue,CCHD,Day Care - South,Private & Voluntary Day Care,Mrs B Kimber - Stepping Stones,646.16, 19-Apr-2012
1770,Revenue,CCHD,Day Care - North,Private & Voluntary Day Care,Mrs B Kimber - Stepping Stones,228.52, 19-Apr-2012
1771,Revenue,CCHD,Under 65s -MH  Home Care Purch,Other Small Contracts,Mrs B Kimber - Stepping Stones,242.11, 19-Apr-2012
1772,Revenue,CCHD,Home care - Elderly MH - North,Other Small Contracts,Mrs B Kimber - Stepping Stones,303.38, 19-Apr-2012
1773,Revenue,CCHD,Elderly MH Day Care North,Private & Voluntary Day Care,Mrs B Kimber - Stepping Stones,425.52, 19-Apr-2012
1774,Revenue,CCHD,Supported Living - KD,Private & Voluntary Home Care,Mrs B Kimber - Stepping Stones,728.9, 19-Apr-2012
1775,Revenue,CCHD,Home Care - LD Under 65 - South,Private & Voluntary Home Care,Mrs B Kimber - Stepping Stones,114.26, 19-Apr-2012
1776,Revenue,CCHD,Home Care - LD Under 65 - North,Private & Voluntary Home Care,Mrs B Kimber - Stepping Stones,47.28, 19-Apr-2012
1777,Revenue,CCHD,PWLD Home Care - Under 65 - KH,Private & Voluntary Home Care,Mrs B Kimber - Stepping Stones,86.68, 19-Apr-2012
1778,Revenue,CCHD,Home Care - Elderly LD - North,Private & Voluntary Home Care,Mrs B Kimber - Stepping Stones,977.12, 19-Apr-2012
